Workbook

Sheet Dt (hidden)
B1: No eliminar Hoja … :))) | H1: Cronograma | K1: Integrante | AA1: No | AB1: Campo | AC1: 1_Opcion | AD1: 2_Opcion | AF1: Avaya1719 | AP1: 2018-03-16 | AQ1: http://scienti.colciencias.gov.co:8080/gruplac/jsp/visualiza/visualizagr.jsp?nro=
F2: Tipo | G2: Objetivo | H2: Actividad | I2: Mes Inicio | J2: Duracion | K2: CC | L2: Nombre | M2: Apellidos | N2: Nivel | O2: Mes | P2: Horas | Q2: Rol | R2: Vin | S2: NBC | T2: Cvlac | U2: Nombre Completo | AA2: 1 | AB2: Sedes | AC2: Bogotá | AT2: BB | AV2: =MIN(BD3:BD293) -> 4 | AW2: =MAX(BD3:BD293) -> 293
C3: Dato | F3: =ROW()-3 -> 0 | G3: =CLEAN(TRIM(Objetivos!C8)) ->  | H3: NA | I3: NA | J3: NA | K3: NA | L3: NA | M3: NA | N3: NA | O3: NA | P3: NA | Q3: NA | R3: NA | S3: NA | T3: NA | U3: NA | AA3: 2 | AB3: Sedes | AC3: Campus Nueva Granada | AK3: Hoja | AN3: Hoja | AO3: FAC | AP3: Grupo | AQ3: COD | AR3: Clas | AS3: Link | AT3: Lineas | AU3: Fila Grupo | AV3: Min | AW3: Max | AX3: FAC | BA3: COD | BB3: Linea | BC3: Cel | BD3: Fila | BE3: E:Gp | BH3: Hora | BI3: Agente | BJ3: Agente
C4: Titulo | D4: =TRIM(CLEAN(General!B9)) -> Formato: actualizado a 06 Nov 2019 | F4: =ROW()-3 -> 1 | G4: =CLEAN(TRIM(Objetivos!C9)) ->  | H4: =CLEAN(TRIM(Cronograma!C8)) ->  | I4: =Cronograma!D8 -> 0 | J4: =Cronograma!E8 -> 0 | K4: =INDEX(Dt_Integ,2+($F4-1)*3,(COLUMN()-9)) -> 0 | L4: a | M4: 0 | N4: 0 | O4: 24 | P4: 0 | Q4: =INDEX(Dt_Integ,3+($F4-1)*3,(COLUMN()-14)) -> Investigador Principal | R4: =INDEX(Dt_Integ,3+($F4-1)*3,(COLUMN()-14)) -> Doc. Carrera TC | S4: =INDEX(Dt_Integ,3+($F4-1)*3,(COLUMN()-14)) -> 0 | T4: =INDEX(Dt_Integ,4+($F4-1)*3,(COLUMN()-17)) -> 0 | U4: =(TRIM(L4&" "&M4)) -> a 0 | AA4: 3 | AB4: Sedes | AC4: Medicina | AD4: No habilitada 2018 | AK4: 3 | AL4: 1 | AM4: =COUNTIF($AN$4:$AN$806,AL4) -> 1 | AN4: 1 | AO4: CIAS | AP4: Fitoplasmas y Virus | AQ4: COL0028687 | AR4: C | AS4: http://scienti.colciencias.gov.co:8085/gruplac/jsp/visualiza/visualizagr.jsp?nro=00000000008436 | AT4: =$AT$2&AV4&":"&$AT$2&AW4 -> BB10:BB11 | AU4: =ROW() -> 4 | AV4: =MINA(IF(AQ4=$BA$4:$BA$401,$BD$4:$BD$401)) -> 10 | AW4: =MAXA(IF(AQ4=$BA$4:$BA$401,$BD$4:$BD$401)) -> 11 | AX4: =AO4 -> CIAS | BA4: COL0049659 | BB4: Medios de comunicación, educación y salud | BC4: =COUNTIF(BA$4:BA4,BA4) -> 1 | BD4: =ROW() -> 4 | BE4: =COUNTIF($AQ$3:$AQ$80,BA4) -> 1 | BH4: 19:54:00 | BI4: a | BJ4: a | BK4: =DMIN(BH3:BI12,"hora",BJ3:BJ4) -> 0.4548611111 | BL4: |
C5: Lider | D5: =TRIM(CLEAN(General!C10)) ->  | F5: =ROW()-3 -> 2 | G5: =CLEAN(TRIM(Objetivos!C10)) ->  | H5: =CLEAN(TRIM(Cronograma!C9)) ->  | I5: =Cronograma!D9 -> 0 | J5: =Cronograma!E9 -> 0 | K5: 0 | L5: 0 | M5: 0 | N5: 0 | O5: 10 | P5: 0 | Q5: =INDEX(Dt_Integ,3+($F5-1)*3,(COLUMN()-14)) -> Auxiliar de Investigación. | R5: Estímulo a estudiante | T5: 0 | U5: =TRIM(L5&" "&M5) -> 0 0 | AA5: 4 | AB5: Sedes | AC5: Otros | AD5: No habilitada 2018 | AK5: 4 | AL5: 2 | AM5: 1 | AN5: =AN4+1 -> 2 | AO5: CIAS | AP5: Grupo de investigación en Biodiversidad y ecología de abejas silvestres | AQ5: COL0031959 | AR5: B | AS5: http://scienti.colciencias.gov.co:8085/gruplac/jsp/visualiza/visualizagr.jsp?nro=00000000001366 | AT5: =$AT$2&AV5&":"&$AT$2&AW5 -> BB12:BB16 | AU5: =ROW() -> 5 | AV5: =MINA(IF(AQ5=$BA$4:$BA$401,$BD$4:$BD$401)) -> 12 | AW5: =MAXA(IF(AQ5=$BA$4:$BA$401,$BD$4:$BD$401)) -> 16 | AX5: =AO5 -> CIAS | BA5: COL0049659 | BB5: Salud Pública y Nutrición, Prevención de la Enfermedad y Promoción de la Salud | BC5: =COUNTIF(BA$4:BA5,BA5) -> 2 | BD5: =ROW() -> 5 | BE5: 1 | BH5: 09:54:00 | BI5: b | BJ5: B
C6: Sede | D6: =General!H12 -> 0 | F6: 3 | G6: =CLEAN(TRIM(Objetivos!C11)) ->  | H6: =CLEAN(TRIM(Cronograma!C10)) ->  | I6: =Cronograma!D10 -> 0 | J6: =Cronograma!E10 -> 0 | K6: 0 | L6: 0 | M6: 0 | N6: 0 | O6: 10 | P6: 0 | Q6: 0 | R6: 0 | T6: 0 | U6: 0 0 | AA6: 1 | AB6: Facultad | AC6: Ciencias Básicas y Aplicadas | AD6: CIAS | AK6: 12 | AL6: 3 | AM6: 1 | AN6: =AN5+1 -> 3 | AO6: CIAS | AP6: MATRIX | AQ6: COL0039321 | AR6: C | AS6: http://scienti.colciencias.gov.co:8085/gruplac/jsp/visualiza/visualizagr.jsp?nro=00000000002208 | AT6: BB38:BB42 | AU6: =ROW() -> 6 | AV6: =MINA(IF(AQ6=$BA$4:$BA$401,$BD$4:$BD$401)) -> 38 | AW6: =MAXA(IF(AQ6=$BA$4:$BA$401,$BD$4:$BD$401)) -> 42 | AX6: CIAS | BA6: COL0062704 | BB6: Procesos Organizacionales (Prospectiva de las Organizaciones), Programáticos y Políticos para la Promoción del Desarrollo. | BC6: =COUNTIF(BA$4:BA6,BA6) -> 1 | BD6: =ROW() -> 6 | BE6: 1 | BH6: 17:54:00 | BI6: c | BJ6: c
C7: Facultad | D7: =General!C13 -> 0 | F7: 4 | G7: =CLEAN(TRIM(Objetivos!C12)) ->  | H7: =CLEAN(TRIM(Cronograma!C11)) ->  | I7: =Cronograma!D11 -> 0 | J7: =Cronograma!E11 -> 0 | K7: 0 | L7: 0 | M7: 0 | N7: 0 | O7: 10 | P7: 0 | Q7: 0 | R7: 0 | T7: 0 | U7: 0 0 | AA7: 2 | AB7: Facultad | AC7: Ciencias Económicas | AD7: ECO | AK7: 18 | AL7: 4 | AM7: 1 | AN7: 4 | AO7: CIAS | AP7: Desarrollo e integración de estrategias alternativas para la protección de cultivos de importancia económica, con énfasis en control biológico. | AQ7: COL0032278 | AR7: A | AS7: http://scienti.colciencias.gov.co:8085/gruplac/jsp/visualiza/visualizagr.jsp?nro=00000000001399 | AT7: BB64:BB65 | AU7: =ROW() -> 7 | AV7: =MINA(IF(AQ7=$BA$4:$BA$401,$BD$4:$BD$401)) -> 64 | AW7: =MAXA(IF(AQ7=$BA$4:$BA$401,$BD$4:$BD$401)) -> 65 | AX7: CIAS | BA7: COL0062704 | BB7: Prospectiva de las Organizaciones | BC7: =COUNTIF(BA$4:BA7,BA7) -> 2 | BD7: =ROW() -> 7 | BE7: 1 | BH7: 10:55:00 | BI7: a
C8: Programa | D8: =CLEAN(General!H13) ->  | F8: 5 | G8: =CLEAN(TRIM(Objetivos!C13)) ->  | H8: =CLEAN(TRIM(Cronograma!C12)) ->  | I8: =Cronograma!D12 -> 0 | J8: =Cronograma!E12 -> 0 | K8: 0 | L8: 0 | M8: 0 | N8: 0 | O8: 10 | P8: 0 | Q8: 0 | R8: 0 | T8: 0 | U8: 0 0 | AA8: 3 | AB8: Facultad | AC8: Derecho | AD8: DER | AK8: 28 | AL8: 6 | AM8: 1 | AN8: 5 | AO8: CIAS | AP8: Fitopatologia molecular | AQ8: COL0086179 | AR8: C | AS8: http://scienti.colciencias.gov.co:8085/gruplac/jsp/visualiza/visualizagr.jsp?nro=00000000007907 | AT8: BB118:BB120 | AU8: =ROW() -> 8 | AV8: =MINA(IF(AQ8=$BA$4:$BA$401,$BD$4:$BD$401)) -> 118 | AW8: =MAXA(IF(AQ8=$BA$4:$BA$401,$BD$4:$BD$401)) -> 120 | AX8: CIAS | BA8: COL0062704 | BB8: Responsabilidad Ambiental | BC8: =COUNTIF(BA$4:BA8,BA8) -> 3 | BD8: =ROW() -> 8 | BE8: 1 | BH8: 11:45:00 | BI8: a
C9: Correo | D9: =TRIM(CLEAN(General!C11)) ->  | F9: 6 | G9: =CLEAN(TRIM(Objetivos!C14)) ->  | H9: =CLEAN(TRIM(Cronograma!C13)) ->  | I9: =Cronograma!D13 -> 0 | J9: =Cronograma!E13 -> 0 | K9: 0 | L9: 0 | M9: 0 | N9: 0 | O9: 0 | P9: 0 | Q9: 0 | R9: 0 | T9: 0 | U9: 0 0 | AA9: 4 | AB9: Facultad | AC9: Educación y Humanidades | AD9: HUM | AK9: 32 | AL9: 8 | AM9: 1 | AN9: 6 | AO9: CIAS | AP9: Grupo de Ecotoxicología, Evolución, Medio ambiente y conservación (E = mc2) | AQ9: COL0038084 | AR9: C | AS9: http://scienti.colciencias.gov.co:8085/gruplac/jsp/visualiza/visualizagr.jsp?nro=00000000002068 | AT9: BB134:BB138 | AU9: =ROW() -> 9 | AV9: =MINA(IF(AQ9=$BA$4:$BA$401,$BD$4:$BD$401)) -> 134 | AW9: =MAXA(IF(AQ9=$BA$4:$BA$401,$BD$4:$BD$401)) -> 138 | AX9: CIAS | BA9: COL0062704 | BB9: Responsabilidad Social Empresarial | BC9: =COUNTIF(BA$4:BA9,BA9) -> 4 | BD9: =ROW() -> 9 | BE9: 1 | BH9: 15:12:00 | BI9: b
C10: Fase | D10: =General!F12 -> No | F10: 7 | G10: =CLEAN(TRIM(Objetivos!C15)) ->  | H10: =CLEAN(TRIM(Cronograma!C14)) ->  | I10: =Cronograma!D14 -> 0 | J10: =Cronograma!E14 -> 0 | K10: 0 | L10: 0 | M10: 0 | N10: 0 | O10: 0 | P10: 0 | Q10: 0 | R10: 0 | T10: 0 | U10: 0 0 | AA10: 5 | AB10: Facultad | AC10: Estudios a Distancia | AD10: DIS | AK10: 41 | AL10: 9 | AM10: 1 | AN10: 7 | AO10: CIAS | AP10: Grupo de Investigación en Hidrobiología Aplicada (HIDROBIA) | AQ10: COL0048492 | AR10: C | AS10: http://scienti.colciencias.gov.co:8085/gruplac/jsp/visualiza/visualizagr.jsp?nro=00000000005664 | AT10: BB167:BB170 | AU10: =ROW() -> 10 | AV10: =MINA(IF(AQ10=$BA$4:$BA$401,$BD$4:$BD$401)) -> 167 | AW10: =MAXA(IF(AQ10=$BA$4:$BA$401,$BD$4:$BD$401)) -> 170 | AX10: CIAS | BA10: COL0028687 | BB10: Fitoplasmas | BC10: =COUNTIF(BA$4:BA10,BA10) -> 1 | BD10: =ROW() -> 10 | BE10: 1 | BH10: 23:12:00 | BI10: b
C11: Finan Antes | D11: =General!I12 -> No | F11: 8 | G11: =CLEAN(TRIM(Objetivos!C16)) ->  | H11: =CLEAN(TRIM(Cronograma!C15)) ->  | I11: =Cronograma!D15 -> 0 | J11: =Cronograma!E15 -> 0 | K11: 0 | L11: 0 | M11: 0 | N11: 0 | O11: 0 | P11: 0 | Q11: 0 | R11: 0 | T11: 0 | U11: 0 0 | AA11: 6 | AB11: Facultad | AC11: Ingeniería | AD11: ING | AK11: 42 | AL11: 10 | AM11: 1 | AN11: 8 | AO11: CIAS | AP11: Agrobiología de especies vegetales promisorias de clima frío | AQ11: COL0077814 | AR11: C | AS11: http://scienti.colciencias.gov.co:8085/gruplac/jsp/visualiza/visualizagr.jsp?nro=00000000006560 | AT11: BB171:BB171 | AU11: =ROW() -> 11 | AV11: =MINA(IF(AQ11=$BA$4:$BA$401,$BD$4:$BD$401)) -> 171 | AW11: =MAXA(IF(AQ11=$BA$4:$BA$401,$BD$4:$BD$401)) -> 171 | AX11: CIAS | BA11: COL0028687 | BB11: Virus | BC11: =COUNTIF(BA$4:BA11,BA11) -> 2 | BD11: =ROW() -> 11 | BE11: 1 | BH11: 06:20:00 | BI11: c
C12: Resumen | D12: =CLEAN(TRIM(Resumen!C7&" "&Resumen!C8&" "&Resumen!C9&" "&Resumen!C10&" "&Resumen!C11&" "&Resumen!C12&" "&Resumen!C13&" "&Resumen!C14)) ->  | F12: 9 | G12: =CLEAN(TRIM(Objetivos!C17)) ->  | H12: =CLEAN(TRIM(Cronograma!C16)) ->  | I12: =Cronograma!D16 -> 0 | J12: =Cronograma!E16 -> 0 | K12: 0 | L12: 0 | M12: 0 | N12: 0 | O12: 0 | P12: 0 | Q12: 0 | R12: 0 | T12: 0 | U12: 0 0 | AA12: 7 | AB12: Facultad | AC12: Medicina y Ciencias de la Salud | AD12: MED | AK12: 43 | AL12: 11 | AM12: 1 | AN12: 9 | AO12: CIAS | AP12: Grupo Integrado de Investigaciones en Química y Biología (InQuiBio) | AQ12: COL0077707 | AR12: A1 | AS12: http://scienti.colciencias.gov.co:8085/gruplac/jsp/visualiza/visualizagr.jsp?nro=00000000008358 | AT12: BB172:BB180 | AU12: =ROW() -> 12 | AV12: =MINA(IF(AQ12=$BA$4:$BA$401,$BD$4:$BD$401)) -> 172 | AW12: =MAXA(IF(AQ12=$BA$4:$BA$401,$BD$4:$BD$401)) -> 180 | AX12: CIAS | BA12: COL0031959 | BB12: Análisis de redes de interacción planta-polinizador a partir de técnicas palinológicas | BC12: =COUNTIF(BA$4:BA12,BA12) -> 1 | BD12: =ROW() -> 12 | BE12: 1 | BH12: 12:30:00 | BI12: a
C13: Total Vicen | D13: =General!G51 -> 0 | F13: 10 | G13: =CLEAN(TRIM(Objetivos!C18)) ->  | H13: =CLEAN(TRIM(Cronograma!C17)) ->  | I13: =Cronograma!D17 -> 0 | J13: =Cronograma!E17 -> 0 | K13: 0 | L13: 0 | M13: 0 | N13: 0 | O13: 0 | P13: 0 | Q13: 0 | R13: 0 | T13: 0 | U13: 0 0 | AA13: 8 | AB13: Facultad | AC13: Relaciones Internacionales, Estrategia y Seguridad | AD13: EES | AK13: 44 | AL13: 12 | AM13: 1 | AN13: 10 | AO13: CIAS | AP13: Grupo de investigación en química ambiental y tecnologías limpias - QUATELI | AQ13: COL0110436 | AR13: C | AS13: http://scienti.colciencias.gov.co:8085/gruplac/jsp/visualiza/visualizagr.jsp?nro=00000000011141 | AT13: BB181:BB185 | AU13: =ROW() -> 13 | AV13: =MINA(IF(AQ13=$BA$4:$BA$401,$BD$4:$BD$401)) -> 181 | AW13: =MAXA(IF(AQ13=$BA$4:$BA$401,$BD$4:$BD$401)) -> 185 | AX13: CIAS | BA13: COL0031959 | BB13: Cría de especies del género Bombus para su utilización como polinizadores en cultivos de la sabana Cundi-boyacense. | BC13: =COUNTIF(BA$4:BA13,BA13) -> 2 | BD13: =ROW() -> 13 | BE13: 1
C14: Total Pts | D14: =General!D51 -> 0 | F14: 11 | G14: =CLEAN(TRIM(Objetivos!C19)) ->  | H14: =CLEAN(TRIM(Cronograma!C18)) ->  | I14: =Cronograma!D18 -> 0 | J14: =Cronograma!E18 -> 0 | AA14: 1 | AB14: Programa | AC14: CIAS | AD14: Biología Aplicada | AE14: 2 | AK14: 56 | AL14: 13 | AM14: 1 | AN14: 11 | AO14: CIAS | AP14: ECMU (Evaluacion en Competencias y Matemáticas Universitarias) | AQ14: COL0110329 | AR14: C | AS14: http://scienti.colciencias.gov.co:8085/gruplac/jsp/visualiza/visualizagr.jsp?nro=00000000011130 | AT14: BB240:BB242 | AU14: =ROW() -> 14 | AV14: =MINA(IF(AQ14=$BA$4:$BA$401,$BD$4:$BD$401)) -> 240 | AW14: =MAXA(IF(AQ14=$BA$4:$BA$401,$BD$4:$BD$401)) -> 242 | AX14: CIAS | BA14: COL0031959 | BB14: Diversidad, biología y taxonomia de polinizadores colombianos | BC14: =COUNTIF(BA$4:BA14,BA14) -> 3 | BD14: =ROW() -> 14 | BE14: 1
F15: 12 | G15: =CLEAN(TRIM(Objetivos!C20)) ->  | H15: =CLEAN(TRIM(Cronograma!C19)) ->  | I15: =Cronograma!D19 -> 0 | J15: =Cronograma!E19 -> 0 | L15: Datos de Grupos de Investigación Integrantes | AA15: 2 | AB15: Programa | AC15: CIAS | AD15: Tecnologia en Gestion y Produccion horticola | AE15: 3 | AK15: 58 | AL15: 14 | AM15: 1 | AN15: 12 | AO15: CIAS | AP15: Grupo de Docencia e Investigación en Física | AQ15: COL0138796 | AR15: C | AS15: http://scienti.colciencias.gov.co:8085/gruplac/jsp/visualiza/visualizagr.jsp?nro=00000000014082 | AT15: =$AT$2&AV15&":"&$AT$2&AW15 -> BB248:BB252 | AU15: =ROW() -> 15 | AV15: =MINA(IF(AQ15=$BA$4:$BA$401,$BD$4:$BD$401)) -> 248 | AW15: =MAXA(IF(AQ15=$BA$4:$BA$401,$BD$4:$BD$401)) -> 252 | AX15: =AO15 -> CIAS | BA15: COL0031959 | BB15: Ecología de la polinización: estudios del uso sostenible de especies de abejas silvestres como polinizadores de hortalizas y frutales | BC15: =COUNTIF(BA$4:BA15,BA15) -> 4 | BD15: =ROW() -> 15 | BE15: 1
F16: 13 | G16: =CLEAN(TRIM(Objetivos!C21)) ->  | H16: =CLEAN(TRIM(Cronograma!C20)) ->  | I16: =Cronograma!D20 -> 0 | J16: =Cronograma!E20 -> 0 | L16: Fila\ Columna | M16: D | AA16: 3 | AB16: Programa | AC16: CIAS | AD16: Maestría en Biología Aplicada | AE16: 33 | AK16: 71 | AL16: 71 | AM16: 0 | AN16: 13 | AO16: CIAS | AP16: DIVERSITAS | AQ16: COL0178619 | AR16: NR | AS16: http://scienti.colciencias.gov.co:8085/gruplac/jsp/visualiza/visualizagr.jsp?nro=00000000018063 | AT16: =$AT$2&AV16&":"&$AT$2&AW16 -> BB296:BB301 | AU16: =ROW() -> 16 | AV16: =MINA(IF(AQ16=$BA$4:$BA$401,$BD$4:$BD$401)) -> 296 | AW16: =MAXA(IF(AQ16=$BA$4:$BA$401,$BD$4:$BD$401)) -> 301 | AX16: =AO16 -> CIAS | BA16: COL0031959 | BB16: Modelos biológicos y ecológicos de insectos benéficos | BC16: =COUNTIF(BA$4:BA16,BA16) -> 5 | BD16: =ROW() -> 16 | BE16: 1
F17: 14 | G17: =CLEAN(TRIM(Objetivos!C22)) ->  | H17: =CLEAN(TRIM(Cronograma!C21)) ->  | I17: =Cronograma!D21 -> 0 | J17: =Cronograma!E21 -> 0 | L17: General | M17: Nombre | N17: Cod | O17: Clas | P17: Fac | Q17: Linea | R17: Cvlac | S17: Ref | AA17: 3 | AB17: Programa | AC17: CIAS | AD17: Departamento de Matemáticas | AE17: 34 | AK17: 72 | AL17: 72 | AM17: 0 | AN17: 14 | AO17: CIAS | AP17: Nanofab | AQ17: COL0179618 | AR17: NR | AS17: http://scienti.colciencias.gov.co:8085/gruplac/jsp/visualiza/visualizagr.jsp?nro=00000000018163 | AT17: =$AT$2&AV17&":"&$AT$2&AW17 -> BB302:BB305 | AU17: =ROW() -> 17 | AV17: =MINA(IF(AQ17=$BA$4:$BA$401,$BD$4:$BD$401)) -> 302 | AW17: =MAXA(IF(AQ17=$BA$4:$BA$401,$BD$4:$BD$401)) -> 305 | AX17: =AO17 -> CIAS | BA17: COL0044859 | BB17: Multimedia Educativa | BC17: =COUNTIF(BA$4:BA17,BA17) -> 1 | BD17: =ROW() -> 17 | BE17: 1
F18: 15 | G18: =CLEAN(TRIM(Objetivos!C23)) ->  | H18: =CLEAN(TRIM(Cronograma!C22)) ->  | I18: =Cronograma!D22 -> 0 | J18: =Cronograma!E22 -> 0 | L18: 1 | M18: =General!D17 -> 0 | N18: =General!L17 -> 0 | O18: =General!I18 ->  | P18: =General!C17 -> 0 | Q18: =General!C19 -> 0 | R18: =General!C18 ->  | S18: =General!L19 -> 0 | AA18: 3 | AB18: Programa | AC18: CIAS | AD18: Departamento de Física | AE18: 35 | AK18: 11 | AL18: 15 | AM18: 1 | AN18: 15 | AO18: DER | AP18: Grupo de derecho público | AQ18: COL0028918 | AR18: B | AS18: http://scienti.colciencias.gov.co:8085/gruplac/jsp/visualiza/visualizagr.jsp?nro=00000000001079 | AT18: BB33:BB37 | AU18: =ROW() -> 18 | AV18: =MINA(IF(AQ18=$BA$4:$BA$401,$BD$4:$BD$401)) -> 33 | AW18: =MAXA(IF(AQ18=$BA$4:$BA$401,$BD$4:$BD$401)) -> 37 | AX18: DER | BA18: COL0044859 | BB18: Procesamiento digital de imágenes y Visión por computador | BC18: =COUNTIF(BA$4:BA18,BA18) -> 2 | BD18: =ROW() -> 18 | BE18: 1
F19: 16 | H19: =CLEAN(TRIM(Cronograma!C23)) ->  | I19: =Cronograma!D23 -> 0 | J19: =Cronograma!E23 -> 0 | L19: 2 | M19: =General!D21 -> 0 | N19: =General!L21 -> 0 | O19: =General!I22 ->  | P19: =General!C21 -> 0 | Q19: =General!C23 -> 0 | R19: =General!C22 ->  | S19: =General!L23 -> 0 | AA19: 3 | AB19: Programa | AC19: CIAS | AD19: Departamento de Química | AE19: 36 | AK19: 47 | AL19: 16 | AM19: 1 | AN19: 16 | AO19: DER | AP19: Grupo de Derecho Privado | AQ19: COL0128047 | AR19: R | AS19: http://scienti.colciencias.gov.co:8085/gruplac/jsp/visualiza/visualizagr.jsp?nro=00000000012964 | AT19: BB198:BB199 | AU19: =ROW() -> 19 | AV19: =MINA(IF(AQ19=$BA$4:$BA$401,$BD$4:$BD$401)) -> 198 | AW19: =MAXA(IF(AQ19=$BA$4:$BA$401,$BD$4:$BD$401)) -> 199 | AX19: DER | BA19: COL0044859 | BB19: Sistemas Multimedia | BC19: =COUNTIF(BA$4:BA19,BA19) -> 3 | BD19: =ROW() -> 19 | BE19: 1
F20: 17 | H20: =CLEAN(TRIM(Cronograma!C24)) ->  | I20: =Cronograma!D24 -> 0 | J20: =Cronograma!E24 -> 0 | L20: 3 | M20: =General!D25 -> 0 | N20: =General!L25 -> 0 | O20: =General!I26 ->  | P20: =General!C25 -> 0 | Q20: =General!C27 -> 0 | R20: =General!C26 ->  | S20: =General!L27 -> 0 | AA20: 3 | AB20: Programa | AC20: CIAS | AD20: Doctorado en Ciencias Aplicadas | AE20: 33 | AK20: 68 | AL20: 17 | AM20: 1 | AN20: 17 | AO20: DER | AP20: Red de estudios sociojurídicos comparados y políticas públicas | AQ20: COL0142449 | AR20: NR | AS20: http://scienti.colciencias.gov.co:8085/gruplac/jsp/visualiza/visualizagr.jsp?nro=00000000014449 | AT20: BB273:BB278 | AU20: =ROW() -> 20 | AV20: =MINA(IF(AQ20=$BA$4:$BA$401,$BD$4:$BD$401)) -> 273 | AW20: =MAXA(IF(AQ20=$BA$4:$BA$401,$BD$4:$BD$401)) -> 278 | AX20: DER | BA20: COL0044859 | BB20: Visualización y Computación Gráfica | BC20: =COUNTIF(BA$4:BA20,BA20) -> 4 | BD20: =ROW() -> 20 | BE20: 1
F21: 18 | H21: =CLEAN(TRIM(Cronograma!C25)) ->  | I21: =Cronograma!D25 -> 0 | J21: =Cronograma!E25 -> 0 | AA21: 4 | AB21: Programa | AC21: DER | AD21: Derecho | AE21: 16 | AK21: 2 | AL21: 18 | AM21: 1 | AN21: 18 | AO21: DIS | AP21: PROPPIO: Procesos organizacionales, programaticos y políticos para la promoción del desarrollo | AQ21: COL0062704 | AR21: R | AS21: http://scienti.colciencias.gov.co:8085/gruplac/jsp/visualiza/visualizagr.jsp?nro=00000000006477 | AT21: BB6:BB9 | AU21: =ROW() -> 21 | AV21: =MINA(IF(AQ21=$BA$4:$BA$401,$BD$4:$BD$401)) -> 6 | AW21: =MAXA(IF(AQ21=$BA$4:$BA$401,$BD$4:$BD$401)) -> 9 | AX21: DIS | BA21: COL0047762 | BB21: Desarrollo de modelos de ingeniería de tejido humano | BC21: =COUNTIF(BA$4:BA21,BA21) -> 1 | BD21: =ROW() -> 21 | BE21: 1
F22: 19 | H22: =CLEAN(TRIM(Cronograma!C26)) ->  | I22: =Cronograma!D26 -> 0 | J22: =Cronograma!E26 -> 0 | AA22: 5 | AB22: Programa | AC22: DER | AD22: Maestría en Derecho Procesal Penal | AE22: 47 | AK22: 8 | AL22: 19 | AM22: 1 | AN22: 19 | AO22: DIS | AP22: INCONDIS | AQ22: COL0127649 | AR22: NR | AS22: http://scienti.colciencias.gov.co:8085/gruplac/jsp/visualiza/visualizagr.jsp?nro=00000000012918 | AT22: BB25:BB25 | AU22: =ROW() -> 22 | AV22: =MINA(IF(AQ22=$BA$4:$BA$401,$BD$4:$BD$401)) -> 25 | AW22: =MAXA(IF(AQ22=$BA$4:$BA$401,$BD$4:$BD$401)) -> 25 | AX22: DIS | BA22: COL0047762 | BB22: Metabolismo oseo - bone metabolism | BC22: =COUNTIF(BA$4:BA22,BA22) -> 2 | BD22: =ROW() -> 22 | BE22: 1
F23: 20 | H23: =CLEAN(TRIM(Cronograma!C27)) ->  | I23: =Cronograma!D27 -> 0 | J23: =Cronograma!E27 -> 0 | AA23: 6 | AB23: Programa | AC23: DER | AD23: Maestría en Derecho Administrativo | AE23: 48 | AK23: 20 | AL23: 20 | AM23: 1 | AN23: 20 | AO23: DIS | AP23: "PYDES" Pedagogía y didáctica en la educación superior | AQ23: COL0018448 | AR23: A | AS23: http://scienti.colciencias.gov.co:8085/gruplac/jsp/visualiza/visualizagr.jsp?nro=00000000000929 | AT23: BB69:BB72 | AU23: =ROW() -> 23 | AV23: =MINA(IF(AQ23=$BA$4:$BA$401,$BD$4:$BD$401)) -> 69 | AW23: =MAXA(IF(AQ23=$BA$4:$BA$401,$BD$4:$BD$401)) -> 72 | AX23: DIS | BA23: COL0126015 | BB23: Inmunodermatologia | BC23: =COUNTIF(BA$4:BA23,BA23) -> 1 | BD23: =ROW() -> 23 | BE23: 1
F24: Col | G24: 1 | H24: =G24+1 -> 2 | I24: =H24+1 -> 3 | J24: 4 | K24: 5 | L24: 6 | M24: 7 | N24: 8 | O24: 9 | P24: 10 | Q24: 11 | R24: 12 | S24: 13 | T24: 14 | U24: 15 | V24: 16 | AA24: 7 | AB24: Programa | AC24: DER | AD24: Maestría en Instituciones Jurídicas de la Fuerza Pública | AE24: 49 | AK24: 22 | AL24: 21 | AM24: 1 | AN24: 21 | AO24: DIS | AP24: Medios, Mediaciones y Procesos en Educación a Distancia | AQ24: COL0067504 | AR24: C | AS24: http://scienti.colciencias.gov.co:8085/gruplac/jsp/visualiza/visualizagr.jsp?nro=00000000004308 | AT24: BB79:BB84 | AU24: =ROW() -> 24 | AV24: =MINA(IF(AQ24=$BA$4:$BA$401,$BD$4:$BD$401)) -> 79 | AW24: =MAXA(IF(AQ24=$BA$4:$BA$401,$BD$4:$BD$401)) -> 84 | AX24: DIS | BA24: COL0126015 | BB24: Psoriasis | BC24: =COUNTIF(BA$4:BA24,BA24) -> 2 | BD24: =ROW() -> 24 | BE24: 1
AA25: 8 | AB25: Programa | AC25: DER | AD25: Especialización en Derecho Administrativo | AE25: 50 | AK25: 39 | AL25: 22 | AM25: 1 | AN25: 22 | AO25: DIS | AP25: PIREO "Procesos de Integración, Regionalización y Estructuras Organizacionales" | AQ25: COL0066229 | AR25: C | AS25: http://scienti.colciencias.gov.co:8085/gruplac/jsp/visualiza/visualizagr.jsp?nro=00000000004242 | AT25: BB162:BB164 | AU25: =ROW() -> 25 | AV25: =MINA(IF(AQ25=$BA$4:$BA$401,$BD$4:$BD$401)) -> 162 | AW25: =MAXA(IF(AQ25=$BA$4:$BA$401,$BD$4:$BD$401)) -> 164 | AX25: DIS | BA25: COL0127649 | BB25: Línea en contabilidad integral | BC25: =COUNTIF(BA$4:BA25,BA25) -> 1 | BD25: =ROW() -> 25 | BE25: 1
AA26: 9 | AB26: Programa | AC26: DER | AD26: Especialización en Procedimiento Penal, Constitucional y Justicia Militar | AE26: 51 | AK26: 61 | AL26: 23 | AM26: 1 | AN26: 23 | AO26: DIS | AP26: Modelos de simulación ICDIST | AQ26: COL0069296 | AR26: C | AS26: http://scienti.colciencias.gov.co:8085/gruplac/jsp/visualiza/visualizagr.jsp?nro=00000000004423 | AT26: BB259:BB259 | AU26: =ROW() -> 26 | AV26: =MINA(IF(AQ26=$BA$4:$BA$401,$BD$4:$BD$401)) -> 259 | AW26: =MAXA(IF(AQ26=$BA$4:$BA$401,$BD$4:$BD$401)) -> 259 | AX26: DIS | BA26: COL0015722 | BB26: Bioética, biopolítica y biojurídica | BC26: =COUNTIF(BA$4:BA26,BA26) -> 1 | BD26: =ROW() -> 26 | BE26: 1
I27: Totales | K27: =SUM(K31:K52) -> 0 | Q27: =SUM(Q30:Q52) -> 0 | V27: =SUM(V30:V52) -> 0 | W27: =SUM(W30:W52) -> 0 | X27: =SUM(X30:X52) -> 0 | AA27: 10 | AB27: Programa | AC27: DER | AD27: Especialización en Derecho Sancionatorio | AE27: 52 | AK27: 67 | AL27: 24 | AM27: 1 | AN27: 24 | AO27: DIS | AP27: INAMPE | AQ27: COL0142331 | AR27: NR | AS27: http://scienti.colciencias.gov.co:8085/gruplac/jsp/visualiza/visualizagr.jsp?nro=00000000014438 | AT27: BB270:BB272 | AU27: =ROW() -> 27 | AV27: =MINA(IF(AQ27=$BA$4:$BA$401,$BD$4:$BD$401)) -> 270 | AW27: =MAXA(IF(AQ27=$BA$4:$BA$401,$BD$4:$BD$401)) -> 272 | AX27: DIS | BA27: COL0015722 | BB27: Liderazgo | BC27: =COUNTIF(BA$4:BA27,BA27) -> 2 | BD27: =ROW() -> 27 | BE27: 1
F28: Valores Presupuestales | AA28: 11 | AB28: Programa | AC28: DER | AD28: Especialización en Derechos Humanos y Sistemas de Protección | AE28: 53 | AK28: 13 | AL28: 25 | AM28: 1 | AN28: 25 | AO28: ECO | AP28: Grupo de Estudios en Ciencias Económicas - CIE | AQ28: COL0050294 | AR28: C | AS28: http://scienti.colciencias.gov.co:8085/gruplac/jsp/visualiza/visualizagr.jsp?nro=00000000003322 | AT28: BB43:BB45 | AU28: =ROW() -> 28 | AV28: =MINA(IF(AQ28=$BA$4:$BA$401,$BD$4:$BD$401)) -> 43 | AW28: =MAXA(IF(AQ28=$BA$4:$BA$401,$BD$4:$BD$401)) -> 45 | AX28: ECO | BA28: COL0005439 | BB28: Modelación numérica | BC28: =COUNTIF(BA$4:BA28,BA28) -> 1 | BD28: =ROW() -> 28 | BE28: 1
G29: Datos de Contrapartida | L29: Datos OPS | AA29: 12 | AB29: Programa | AC29: DIS | AD29: Administración de Empresas | AE29: 17 | AK29: 17 | AL29: 26 | AM29: 1 | AN29: 26 | AO29: ECO | AP29: Grupo de Estudios Macroeconómicos | AQ29: COL0027367 | AR29: C | AS29: http://scienti.colciencias.gov.co:8085/gruplac/jsp/visualiza/visualizagr.jsp?nro=00000000000855 | AT29: BB61:BB63 | AU29: =ROW() -> 29 | AV29: =MINA(IF(AQ29=$BA$4:$BA$401,$BD$4:$BD$401)) -> 61 | AW29: =MAXA(IF(AQ29=$BA$4:$BA$401,$BD$4:$BD$401)) -> 63 | AX29: ECO | BA29: COL0005439 | BB29: Ordenación del territorio | BC29: =COUNTIF(BA$4:BA29,BA29) -> 2 | BD29: =ROW() -> 29 | BE29: 1
F30: No | G30: Identidad | H30: =Presupuesto!E13 -> Tipo de Vinculo UMNG | I30: =Presupuesto!F13 -> Numero de meses | J30: =Presupuesto!G13 -> Número Horas / Semanal | K30: =Presupuesto!H13 -> Valor Final | L30: =Presupuesto!C29 -> Valor mensual | M30: =Presupuesto!D29 -> Factor Salarial | N30: =Presupuesto!E29 -> Tipo de vinculación | O30: mes | P30: Horas | Q30: =Presupuesto!H29 -> Valor total | R30: =Presupuesto!C50 -> Rubro / Destino | S30: =Presupuesto!D50 -> Año de Vigencia | T30: =Presupuesto!E50 -> Descripción | U30: =Presupuesto!F50 -> 0 | V30: =Presupuesto!G50 -> Finaciación Vicein $ | W30: =Presupuesto!H50 -> $ Contrapartida Facultad | X30: =Presupuesto!I50 -> Contrapartida Otros $ | AA30: 12 | AB30: Programa | AC30: DIS | AD30: Administración de seguridad y Salud Ocupacional | AE30: X | AK30: 40 | AL30: 27 | AM30: 1 | AN30: 27 | AO30: ECO | AP30: Grupo de estudios contemporáneos en contabilidad, gestión y organizaciones - GECCGO | AQ30: COL0028767 | AR30: B | AS30: http://scienti.colciencias.gov.co:8085/gruplac/jsp/visualiza/visualizagr.jsp?nro=00000000001069 | AT30: BB165:BB166 | AU30: =ROW() -> 30 | AV30: =MINA(IF(AQ30=$BA$4:$BA$401,$BD$4:$BD$401)) -> 165 | AW30: =MAXA(IF(AQ30=$BA$4:$BA$401,$BD$4:$BD$401)) -> 166 | AX30: ECO | BA30: COL0005439 | BB30: Pavimentos | BC30: =COUNTIF(BA$4:BA30,BA30) -> 3 | BD30: =ROW() -> 30 | BE30: 1
F31: =ROW()-30 -> 1 | G31: =Presupuesto!I14 -> 0 | H31: =Presupuesto!E14 -> Doc. Carrera TC | I31: =Presupuesto!F14 -> 24 | J31: =Presupuesto!G14 -> 0 | K31: =Presupuesto!H14 -> 0 | L31: =Presupuesto!C30 -> 0 | M31: =Presupuesto!D30 -> 0 | N31: =Presupuesto!E30 -> 0 | O31: =Presupuesto!F30 -> 10 | P31: =Presupuesto!G30 -> 0 | Q31: =Presupuesto!H30 -> 0 | R31: =Presupuesto!C51 -> Personal | S31: =Presupuesto!D51 -> 1 | T31: =Presupuesto!E51 -> Horas de descarga académica | U31: =Presupuesto!F51 -> 0 | V31: =Presupuesto!G51 -> 0 | W31: =Presupuesto!H51 -> 0 | X31: =Presupuesto!I51 -> 0 | AA31: 13 | AB31: Programa | AC31: DIS | AD31: Contaduría Pública | AE31: 18 | AK31: 64 | AL31: 28 | AM31: 1 | AN31: 28 | AO31: ECO | AP31: GECS (Grupo de Investigación en Contabilidad y Sociedad) | AQ31: COL0117722 | AR31: R | AS31: http://scienti.colciencias.gov.co:8085/gruplac/jsp/visualiza/visualizagr.jsp?nro=00000000011887 | AT31: BB264:BB265 | AU31: =ROW() -> 31 | AV31: =MINA(IF(AQ31=$BA$4:$BA$401,$BD$4:$BD$401)) -> 264 | AW31: =MAXA(IF(AQ31=$BA$4:$BA$401,$BD$4:$BD$401)) -> 265 | AX31: ECO | BA31: COL0005439 | BB31: Suelos | BC31: =COUNTIF(BA$4:BA31,BA31) -> 4 | BD31: =ROW() -> 31 | BE31: 1
F32: =ROW()-30 -> 2 | G32: =Presupuesto!I15 -> 0 | H32: =Presupuesto!E15 -> Estímulo a estudiante | I32: =Presupuesto!F15 -> 10 | J32: =Presupuesto!G15 -> 0 | K32: =Presupuesto!H15 -> 0 | L32: =Presupuesto!C31 -> 0 | M32: =Presupuesto!D31 -> 0 | N32: =Presupuesto!E31 -> 0 | O32: =Presupuesto!F31 -> 10 | P32: =Presupuesto!G31 -> 0 | Q32: =Presupuesto!H31 -> 0 | R32: =Presupuesto!C52 -> 0 | S32: =Presupuesto!D52 -> 1 | T32: =Presupuesto!E52 -> 0 | U32: =Presupuesto!F52 -> 0 | V32: =Presupuesto!G52 -> 0 | W32: =Presupuesto!H52 -> 0 | X32: =Presupuesto!I52 -> 0 | AA32: 14 | AB32: Programa | AC32: DIS | AD32: Ingeniería Civil | AE32: 19 | AK32: 21 | AL32: 29 | AM32: 1 | AN32: 29 | AO32: EES | AP32: Estudios Internacionales y Políticos | AQ32: COL0066768 | AR32: C | AS32: http://scienti.colciencias.gov.co:8085/gruplac/jsp/visualiza/visualizagr.jsp?nro=00000000004270 | AT32: BB73:BB78 | AU32: =ROW() -> 32 | AV32: =MINA(IF(AQ32=$BA$4:$BA$401,$BD$4:$BD$401)) -> 73 | AW32: =MAXA(IF(AQ32=$BA$4:$BA$401,$BD$4:$BD$401)) -> 78 | AX32: EES | BA32: COL0005439 | BB32: Transportes | BC32: =COUNTIF(BA$4:BA32,BA32) -> 5 | BD32: =ROW() -> 32 | BE32: 1
F33: 3 | G33: =Presupuesto!I16 -> 0 | H33: =Presupuesto!E16 -> 0 | I33: =Presupuesto!F16 -> 10 | J33: =Presupuesto!G16 -> 0 | K33: =Presupuesto!H16 -> 0 | L33: =Presupuesto!C32 -> 0 | M33: =Presupuesto!D32 -> 0 | N33: =Presupuesto!E32 -> 0 | O33: =Presupuesto!F32 -> 10 | P33: =Presupuesto!G32 -> 0 | Q33: =Presupuesto!H32 -> 0 | R33: =Presupuesto!C53 -> 0 | S33: =Presupuesto!D53 -> 1 | T33: =Presupuesto!E53 -> 0 | U33: =Presupuesto!F53 -> 0 | V33: =Presupuesto!G53 -> 0 | W33: =Presupuesto!H53 -> 0 | X33: =Presupuesto!I53 -> 0 | AA33: 15 | AB33: Programa | AC33: DIS | AD33: Ingeniería Industrial | AE33: 20 | AK33: 53 | AL33: 30 | AM33: 1 | AN33: 30 | AO33: EES | AP33: Sociedad, Estrategia y Seguridad | AQ33: COL0066669 | AR33: C | AS33: http://scienti.colciencias.gov.co:8085/gruplac/jsp/visualiza/visualizagr.jsp?nro=00000000004263 | AT33: BB221:BB224 | AU33: =ROW() -> 33 | AV33: =MINA(IF(AQ33=$BA$4:$BA$401,$BD$4:$BD$401)) -> 221 | AW33: =MAXA(IF(AQ33=$BA$4:$BA$401,$BD$4:$BD$401)) -> 224 | AX33: EES | BA33: COL0028918 | BB33: Constitución, derecho público y estado | BC33: =COUNTIF(BA$4:BA33,BA33) -> 1 | BD33: =ROW() -> 33 | BE33: 1
F34: 4 | G34: =Presupuesto!I17 -> 0 | H34: =Presupuesto!E17 -> 0 | I34: =Presupuesto!F17 -> 10 | J34: =Presupuesto!G17 -> 0 | K34: =Presupuesto!H17 -> 0 | L34: =Presupuesto!C33 -> 0 | M34: =Presupuesto!D33 -> 0 | N34: =Presupuesto!E33 -> 0 | O34: =Presupuesto!F33 -> 10 | P34: =Presupuesto!G33 -> 0 | Q34: =Presupuesto!H33 -> 0 | R34: =Presupuesto!C54 -> 0 | S34: =Presupuesto!D54 -> 1 | T34: =Presupuesto!E54 -> 0 | U34: =Presupuesto!F54 -> 0 | V34: =Presupuesto!G54 -> 0 | W34: =Presupuesto!H54 -> 0 | X34: =Presupuesto!I54 -> 0 | AA34: 16 | AB34: Programa | AC34: DIS | AD34: Ingeniería Informática | AE34: 21 | AK34: 9 | AL34: 31 | AM34: 1 | AN34: 31 | AO34: HUM | AP34: LIDERAZGO | AQ34: COL0015722 | AR34: A | AS34: http://scienti.colciencias.gov.co:8085/gruplac/jsp/visualiza/visualizagr.jsp?nro=00000000000744 | AT34: BB26:BB27 | AU34: =ROW() -> 34 | AV34: =MINA(IF(AQ34=$BA$4:$BA$401,$BD$4:$BD$401)) -> 26 | AW34: =MAXA(IF(AQ34=$BA$4:$BA$401,$BD$4:$BD$401)) -> 27 | AX34: HUM | BA34: COL0028918 | BB34: Derecho historia y filosofía | BC34: =COUNTIF(BA$4:BA34,BA34) -> 2 | BD34: =ROW() -> 34 | BE34: 1
F35: 5 | G35: =Presupuesto!I18 -> 0 | H35: =Presupuesto!E18 -> 0 | I35: =Presupuesto!F18 -> 10 | J35: =Presupuesto!G18 -> 0 | K35: =Presupuesto!H18 -> 0 | L35: =Presupuesto!C34 -> 0 | M35: =Presupuesto!D34 -> 0 | N35: =Presupuesto!E34 -> 0 | O35: =Presupuesto!F34 -> 10 | P35: =Presupuesto!G34 -> 0 | Q35: =Presupuesto!H34 -> 0 | R35: =Presupuesto!C55 -> 0 | S35: =Presupuesto!D55 -> 1 | T35: =Presupuesto!E55 -> 0 | U35: =Presupuesto!F55 -> 0 | V35: =Presupuesto!G55 -> 0 | W35: =Presupuesto!H55 -> 0 | X35: =Presupuesto!I55 -> 0 | AA35: 16 | AB35: Programa | AC35: DIS | AD35: Relaciones Internacionales y Estudios Políticos | AE35: X | AK35: 23 | AL35: 32 | AM35: 1 | AN35: 32 | AO35: HUM | AP35: HUMANITAS | AQ35: COL0101099 | AR35: B | AS35: http://scienti.colciencias.gov.co:8085/gruplac/jsp/visualiza/visualizagr.jsp?nro=00000000010165 | AT35: BB85:BB88 | AU35: =ROW() -> 35 | AV35: =MINA(IF(AQ35=$BA$4:$BA$401,$BD$4:$BD$401)) -> 85 | AW35: =MAXA(IF(AQ35=$BA$4:$BA$401,$BD$4:$BD$401)) -> 88 | AX35: HUM | BA35: COL0028918 | BB35: Derecho internacional, derechos humanos, derecho internacional humanitario | BC35: =COUNTIF(BA$4:BA35,BA35) -> 3 | BD35: =ROW() -> 35 | BE35: 1
F36: 6 | G36: =Presupuesto!I19 -> 0 | H36: =Presupuesto!E19 -> 0 | I36: =Presupuesto!F19 -> 0 | J36: =Presupuesto!G19 -> 0 | K36: =Presupuesto!H19 -> 0 | L36: =Presupuesto!C35 -> 0 | M36: =Presupuesto!D35 -> 0 | N36: =Presupuesto!E35 -> 0 | O36: =Presupuesto!F35 -> 10 | P36: =Presupuesto!G35 -> 0 | Q36: =Presupuesto!H35 -> 0 | R36: =Presupuesto!C56 -> 0 | S36: =Presupuesto!D56 -> 1 | T36: =Presupuesto!E56 -> 0 | U36: =Presupuesto!F56 -> 0 | V36: =Presupuesto!G56 -> 0 | W36: =Presupuesto!H56 -> 0 | X36: =Presupuesto!I56 -> 0 | AA36: 17 | AB36: Programa | AC36: DIS | AD36: Ingeniería Informática | AE36: X | AK36: 38 | AL36: 33 | AM36: =COUNTIF($AN$4:$AN$806,AL36) -> 1 | AN36: 33 | AO36: HUM | AP36: Cultura y Desarrollo Humano | AQ36: COL0002896 | AR36: R | AS36: http://scienti.colciencias.gov.co:8085/gruplac/jsp/visualiza/visualizagr.jsp?nro=00000000000740 | AT36: BB159:BB161 | AU36: =ROW() -> 36 | AV36: =MINA(IF(AQ36=$BA$4:$BA$401,$BD$4:$BD$401)) -> 159 | AW36: =MAXA(IF(AQ36=$BA$4:$BA$401,$BD$4:$BD$401)) -> 161 | AX36: HUM | BA36: COL0028918 | BB36: Derecho penal y justicia militar | BC36: =COUNTIF(BA$4:BA36,BA36) -> 4 | BD36: =ROW() -> 36 | BE36: 1
F37: 7 | G37: =Presupuesto!I20 -> 0 | H37: =Presupuesto!E20 -> 0 | I37: =Presupuesto!F20 -> 0 | J37: =Presupuesto!G20 -> 0 | K37: =Presupuesto!H20 -> 0 | L37: =Presupuesto!C36 -> 0 | M37: =Presupuesto!D36 -> 0 | N37: =Presupuesto!E36 -> 0 | O37: =Presupuesto!F36 -> 10 | P37: =Presupuesto!G36 -> 0 | Q37: =Presupuesto!H36 -> 0 | R37: =Presupuesto!C57 -> 0 | S37: =Presupuesto!D57 -> 1 | T37: =Presupuesto!E57 -> 0 | U37: =Presupuesto!F57 -> 0 | V37: =Presupuesto!G57 -> 0 | W37: =Presupuesto!H57 -> 0 | X37: =Presupuesto!I57 -> 0 | AA37: 17 | AB37: Programa | AC37: DIS | AD37: Especialización en Alta Gerencia | AE37: 54 | AK37: 50 | AL37: 34 | AM37: 1 | AN37: 34 | AO37: HUM | AP37: BioethicsGroup | AQ37: COL0031824 | AR37: A | AS37: http://scienti.colciencias.gov.co:8085/gruplac/jsp/visualiza/visualizagr.jsp?nro=00000000001353 | AT37: BB209:BB212 | AU37: =ROW() -> 37 | AV37: =MINA(IF(AQ37=$BA$4:$BA$401,$BD$4:$BD$401)) -> 209 | AW37: =MAXA(IF(AQ37=$BA$4:$BA$401,$BD$4:$BD$401)) -> 212 | AX37: HUM | BA37: COL0028918 | BB37: Derecho, educación y sociedad | BC37: =COUNTIF(BA$4:BA37,BA37) -> 5 | BD37: =ROW() -> 37 | BE37: 1
F38: 8 | G38: =Presupuesto!I21 -> 0 | H38: =Presupuesto!E21 -> 0 | I38: =Presupuesto!F21 -> 0 | J38: =Presupuesto!G21 -> 0 | K38: =Presupuesto!H21 -> 0 | L38: =Presupuesto!C37 -> 0 | M38: =Presupuesto!D37 -> 0 | N38: =Presupuesto!E37 -> 0 | O38: =Presupuesto!F37 -> 0 | P38: =Presupuesto!G37 -> 0 | Q38: =Presupuesto!H37 -> 0 | R38: =Presupuesto!C58 -> 0 | S38: =Presupuesto!D58 -> 1 | T38: =Presupuesto!E58 -> 0 | U38: =Presupuesto!F58 -> 0 | V38: =Presupuesto!G58 -> 0 | W38: =Presupuesto!H58 -> 0 | X38: =Presupuesto!I58 -> 0 | AA38: 18 | AB38: Programa | AC38: ECO | AD38: Administración de Empresas | AE38: X | AK38: 5 | AL38: 35 | AM38: 1 | AN38: 35 | AO38: ING | AP38: Grupo de Investigación en Multimedia -GIM- | AQ38: COL0044859 | AR38: C | AS38: http://scienti.colciencias.gov.co:8085/gruplac/jsp/visualiza/visualizagr.jsp?nro=00000000002706 | AT38: BB17:BB20 | AU38: =ROW() -> 38 | AV38: =MINA(IF(AQ38=$BA$4:$BA$401,$BD$4:$BD$401)) -> 17 | AW38: =MAXA(IF(AQ38=$BA$4:$BA$401,$BD$4:$BD$401)) -> 20 | AX38: ING | BA38: COL0039321 | BB38: Análisis de matrices | BC38: =COUNTIF(BA$4:BA38,BA38) -> 1 | BD38: =ROW() -> 38 | BE38: 1
F39: 9 | G39: =Presupuesto!I22 -> 0 | H39: =Presupuesto!E22 -> 0 | I39: =Presupuesto!F22 -> 0 | J39: =Presupuesto!G22 -> 0 | K39: =Presupuesto!H22 -> 0 | L39: =Presupuesto!C38 -> 0 | M39: =Presupuesto!D38 -> 0 | N39: =Presupuesto!E38 -> 0 | O39: =Presupuesto!F38 -> 0 | P39: =Presupuesto!G38 -> 0 | Q39: =Presupuesto!H38 -> 0 | R39: =Presupuesto!C59 -> 0 | S39: =Presupuesto!D59 -> 1 | T39: =Presupuesto!E59 -> 0 | U39: =Presupuesto!F59 -> 0 | V39: =Presupuesto!G59 -> 0 | W39: =Presupuesto!H59 -> 0 | X39: =Presupuesto!I59 -> 0 | AA39: 18 | AB39: Programa | AC39: ECO | AD39: Contaduría Pública | AE39: X | AK39: 10 | AL39: 36 | AM39: 1 | AN39: 36 | AO39: ING | AP39: GEOTECNIA | AQ39: COL0005439 | AR39: C | AS39: http://scienti.colciencias.gov.co:8085/gruplac/jsp/visualiza/visualizagr.jsp?nro=00000000000739 | AT39: BB28:BB32 | AU39: =ROW() -> 39 | AV39: =MINA(IF(AQ39=$BA$4:$BA$401,$BD$4:$BD$401)) -> 28 | AW39: =MAXA(IF(AQ39=$BA$4:$BA$401,$BD$4:$BD$401)) -> 32 | AX39: ING | BA39: COL0039321 | BB39: Filosofía de la ciencia: filosofía de la física | BC39: =COUNTIF(BA$4:BA39,BA39) -> 2 | BD39: =ROW() -> 39 | BE39: 1
F40: 10 | G40: =Presupuesto!I23 -> 0 | H40: =Presupuesto!E23 -> 0 | I40: =Presupuesto!F23 -> 0 | J40: =Presupuesto!G23 -> 0 | K40: =Presupuesto!H23 -> 0 | L40: =Presupuesto!C39 -> 0 | M40: =Presupuesto!D39 -> 0 | N40: =Presupuesto!E39 -> 0 | O40: =Presupuesto!F39 -> 0 | P40: =Presupuesto!G39 -> 0 | Q40: =Presupuesto!H39 -> 0 | R40: =Presupuesto!C60 -> 0 | S40: =Presupuesto!D60 -> 1 | T40: =Presupuesto!E60 -> 0 | U40: =Presupuesto!F60 -> 0 | V40: =Presupuesto!G60 -> 0 | W40: =Presupuesto!H60 -> 0 | X40: =Presupuesto!I60 -> 0 | AA40: 18 | AB40: Programa | AC40: ECO | AD40: Economía | AE40: X | AK40: 14 | AL40: 37 | AM40: 1 | AN40: 37 | AO40: ING | AP40: TIGUM: Grupo de Investigacion en Telemedicina Universidad Militar | AQ40: COL0052181 | AR40: C | AS40: http://scienti.colciencias.gov.co:8085/gruplac/jsp/visualiza/visualizagr.jsp?nro=00000000003508 | AT40: BB46:BB50 | AU40: =ROW() -> 40 | AV40: =MINA(IF(AQ40=$BA$4:$BA$401,$BD$4:$BD$401)) -> 46 | AW40: =MAXA(IF(AQ40=$BA$4:$BA$401,$BD$4:$BD$401)) -> 50 | AX40: ING | BA40: COL0039321 | BB40: Leyes de conservación hiperbólica | BC40: =COUNTIF(BA$4:BA40,BA40) -> 3 | BD40: =ROW() -> 40 | BE40: 1
F41: 11 | L41: =Presupuesto!C40 -> 0 | M41: =Presupuesto!D40 -> 0 | N41: =Presupuesto!E40 -> 0 | O41: =Presupuesto!F40 -> 0 | P41: =Presupuesto!G40 -> 0 | Q41: =Presupuesto!H40 -> 0 | R41: =Presupuesto!C61 -> 0 | S41: =Presupuesto!D61 -> 1 | T41: =Presupuesto!E61 -> 0 | U41: =Presupuesto!F61 -> 0 | V41: =Presupuesto!G61 -> 0 | W41: =Presupuesto!H61 -> 0 | X41: =Presupuesto!I61 -> 0 | AA41: 18 | AB41: Programa | AC41: ECO | AD41: Tecnología en Contabilidad y Tributaria | AE41: X | AK41: 16 | AL41: 38 | AM41: 1 | AN41: 38 | AO41: ING | AP41: VOLTA - GMCDP | AQ41: COL0065804 | AR41: A1 | AS41: http://scienti.colciencias.gov.co:8085/gruplac/jsp/visualiza/visualizagr.jsp?nro=00000000004193 | AT41: BB56:BB60 | AU41: =ROW() -> 41 | AV41: =MINA(IF(AQ41=$BA$4:$BA$401,$BD$4:$BD$401)) -> 56 | AW41: =MAXA(IF(AQ41=$BA$4:$BA$401,$BD$4:$BD$401)) -> 60 | AX41: ING | BA41: COL0039321 | BB41: Matemáticas aplicadas | BC41: =COUNTIF(BA$4:BA41,BA41) -> 4 | BD41: =ROW() -> 41 | BE41: 1
F42: 12 | L42: =Presupuesto!C41 -> 0 | M42: =Presupuesto!D41 -> 0 | N42: =Presupuesto!E41 -> 0 | O42: =Presupuesto!F41 -> 0 | P42: =Presupuesto!G41 -> 0 | Q42: =Presupuesto!H41 -> 0 | R42: =Presupuesto!C62 -> 0 | S42: =Presupuesto!D62 -> 1 | T42: =Presupuesto!E62 -> 0 | U42: =Presupuesto!F62 -> 0 | V42: =Presupuesto!G62 -> 0 | W42: =Presupuesto!H62 -> 0 | X42: =Presupuesto!I62 -> 0 | AA42: 18 | AB42: Programa | AC42: ECO | AD42: Maestría en Gestión de Organizaciones | AE42: 24 | AK42: 27 | AL42: 39 | AM42: 1 | AN42: 39 | AO42: ING | AP42: PRODUCCION, INNOVACION Y TECNOLOGIA | AQ42: COL0049999 | AR42: C | AS42: http://scienti.colciencias.gov.co:8085/gruplac/jsp/visualiza/visualizagr.jsp?nro=00000000003290 | AT42: BB112:BB117 | AU42: =ROW() -> 42 | AV42: =MINA(IF(AQ42=$BA$4:$BA$401,$BD$4:$BD$401)) -> 112 | AW42: =MAXA(IF(AQ42=$BA$4:$BA$401,$BD$4:$BD$401)) -> 117 | AX42: ING | BA42: COL0039321 | BB42: Solución numérica de ecuaciones diferenciales parciales | BC42: =COUNTIF(BA$4:BA42,BA42) -> 5 | BD42: =ROW() -> 42 | BE42: 1
F43: 13 | L43: =Presupuesto!C42 -> 0 | M43: =Presupuesto!D42 -> 0 | N43: =Presupuesto!E42 -> 0 | O43: =Presupuesto!F42 -> 0 | P43: =Presupuesto!G42 -> 0 | Q43: =Presupuesto!H42 -> 0 | R43: =Presupuesto!C63 -> 0 | S43: =Presupuesto!D63 -> 1 | T43: =Presupuesto!E63 -> 0 | U43: =Presupuesto!F63 -> 0 | V43: =Presupuesto!G63 -> 0 | W43: =Presupuesto!H63 -> 0 | X43: =Presupuesto!I63 -> 0 | AA43: 19 | AB43: Programa | AC43: ECO | AD43: Especialización en Alta Gerencia | AE43: 25 | AK43: 29 | AL43: 40 | AM43: 1 | AN43: 40 | AO43: ING | AP43: GIDAM | AQ43: COL0116636 | AR43: C | AS43: http://scienti.colciencias.gov.co:8085/gruplac/jsp/visualiza/visualizagr.jsp?nro=00000000011773 | AT43: BB121:BB124 | AU43: =ROW() -> 43 | AV43: =MINA(IF(AQ43=$BA$4:$BA$401,$BD$4:$BD$401)) -> 121 | AW43: =MAXA(IF(AQ43=$BA$4:$BA$401,$BD$4:$BD$401)) -> 124 | AX43: ING | BA43: COL0050294 | BB43: Economía de la defensa y del conflicto | BC43: =COUNTIF(BA$4:BA43,BA43) -> 1 | BD43: =ROW() -> 43 | BE43: 1
F44: 14 | L44: =Presupuesto!C43 -> 0 | M44: =Presupuesto!D43 -> 0 | N44: =Presupuesto!E43 -> 0 | O44: =Presupuesto!F43 -> 0 | P44: =Presupuesto!G43 -> 0 | Q44: =Presupuesto!H43 -> 0 | R44: =Presupuesto!C64 -> 0 | S44: =Presupuesto!D64 -> 1 | T44: =Presupuesto!E64 -> 0 | U44: =Presupuesto!F64 -> 0 | V44: =Presupuesto!G64 -> 0 | W44: =Presupuesto!H64 -> 0 | X44: =Presupuesto!I64 -> 0 | AA44: 20 | AB44: Programa | AC44: ECO | AD44: Especialización en Administración Aeronáutica y Aeroespacial | AE44: 26 | AK44: 31 | AL44: 41 | AM44: 1 | AN44: 41 | AO44: ING | AP44: DAVINCI | AQ44: COL0036025 | AR44: A | AS44: http://scienti.colciencias.gov.co:8085/gruplac/jsp/visualiza/visualizagr.jsp?nro=00000000001843 | AT44: BB130:BB133 | AU44: =ROW() -> 44 | AV44: =MINA(IF(AQ44=$BA$4:$BA$401,$BD$4:$BD$401)) -> 130 | AW44: =MAXA(IF(AQ44=$BA$4:$BA$401,$BD$4:$BD$401)) -> 133 | AX44: ING | BA44: COL0050294 | BB44: Gestión Ambiental | BC44: =COUNTIF(BA$4:BA44,BA44) -> 2 | BD44: =ROW() -> 44 | BE44: 1
F45: 15 | R45: =Presupuesto!C65 -> 0 | S45: =Presupuesto!D65 -> 1 | T45: =Presupuesto!E65 -> 0 | U45: =Presupuesto!F65 -> 0 | V45: =Presupuesto!G65 -> 0 | W45: =Presupuesto!H65 -> 0 | X45: =Presupuesto!I65 -> 0 | AA45: 21 | AB45: Programa | AC45: ECO | AD45: Especialización en Control Interno | AE45: 27 | AK45: 33 | AL45: 42 | AM45: 1 | AN45: 42 | AO45: ING | AP45: Estructuras y sísmica | AQ45: COL0016999 | AR45: C | AS45: http://scienti.colciencias.gov.co:8085/gruplac/jsp/visualiza/visualizagr.jsp?nro=00000000000737 | AT45: BB139:BB143 | AU45: =ROW() -> 45 | AV45: =MINA(IF(AQ45=$BA$4:$BA$401,$BD$4:$BD$401)) -> 139 | AW45: =MAXA(IF(AQ45=$BA$4:$BA$401,$BD$4:$BD$401)) -> 143 | AX45: ING | BA45: COL0050294 | BB45: Política Económica | BC45: =COUNTIF(BA$4:BA45,BA45) -> 3 | BD45: =ROW() -> 45 | BE45: 1
F46: 16 | R46: =Presupuesto!C66 -> 0 | S46: =Presupuesto!D66 -> 1 | T46: =Presupuesto!E66 -> 0 | U46: =Presupuesto!F66 -> 0 | V46: =Presupuesto!G66 -> 0 | W46: =Presupuesto!H66 -> 0 | X46: =Presupuesto!I66 -> 0 | AA46: 22 | AB46: Programa | AC46: ECO | AD46: Especialización en Gestión de Desarrollo Administrativo | AE46: 28 | AK46: 34 | AL46: 43 | AM46: 1 | AN46: 43 | AO46: ING | AP46: INGENIERÍA, GEOMÁTICA Y EDUCACIÓN (IGE) | AQ46: COL0047566 | AR46: C | AS46: http://scienti.colciencias.gov.co:8085/gruplac/jsp/visualiza/visualizagr.jsp?nro=00000000003044 | AT46: BB144:BB149 | AU46: =ROW() -> 46 | AV46: =MINA(IF(AQ46=$BA$4:$BA$401,$BD$4:$BD$401)) -> 144 | AW46: =MAXA(IF(AQ46=$BA$4:$BA$401,$BD$4:$BD$401)) -> 149 | AX46: ING | BA46: COL0052181 | BB46: Big Data Analytics | BC46: =COUNTIF(BA$4:BA46,BA46) -> 1 | BD46: =ROW() -> 46 | BE46: 1
F47: 17 | R47: =Presupuesto!C67 -> 0 | S47: =Presupuesto!D67 -> 1 | T47: =Presupuesto!E67 -> 0 | U47: =Presupuesto!F67 -> 0 | V47: =Presupuesto!G67 -> 0 | W47: =Presupuesto!H67 -> 0 | X47: =Presupuesto!I67 -> 0 | AA47: 23 | AB47: Programa | AC47: ECO | AD47: Especialización en Gerencia en Comercio Internacional | AE47: 29 | AK47: 37 | AL47: 44 | AM47: 1 | AN47: 44 | AO47: ING | AP47: ACCEDER | AQ47: COL0036749 | AR47: C | AS47: http://scienti.colciencias.gov.co:8085/gruplac/jsp/visualiza/visualizagr.jsp?nro=00000000012996 | AT47: BB157:BB158 | AU47: =ROW() -> 47 | AV47: =MINA(IF(AQ47=$BA$4:$BA$401,$BD$4:$BD$401)) -> 157 | AW47: =MAXA(IF(AQ47=$BA$4:$BA$401,$BD$4:$BD$401)) -> 158 | AX47: ING | BA47: COL0052181 | BB47: Gestión hospitalaria | BC47: =COUNTIF(BA$4:BA47,BA47) -> 2 | BD47: =ROW() -> 47 | BE47: 1
F48: 18 | R48: =Presupuesto!C68 -> 0 | S48: =Presupuesto!D68 -> 1 | T48: =Presupuesto!E68 -> 0 | U48: =Presupuesto!F68 -> 0 | V48: =Presupuesto!G68 -> 0 | W48: =Presupuesto!H68 -> 0 | X48: =Presupuesto!I68 -> 0 | AA48: 24 | AB48: Programa | AC48: ECO | AD48: Especialización en Finanzas y Administración Pública | AE48: 30 | AK48: 49 | AL48: 45 | AM48: 1 | AN48: 45 | AO48: ING | AP48: Tratamiento de agua | AQ48: COL0026486 | AR48: C | AS48: http://scienti.colciencias.gov.co:8085/gruplac/jsp/visualiza/visualizagr.jsp?nro=00000000000767 | AT48: BB206:BB208 | AU48: =ROW() -> 48 | AV48: =MINA(IF(AQ48=$BA$4:$BA$401,$BD$4:$BD$401)) -> 206 | AW48: =MAXA(IF(AQ48=$BA$4:$BA$401,$BD$4:$BD$401)) -> 208 | AX48: ING | BA48: COL0052181 | BB48: Procesamiento de seńales, datos, imagen y video | BC48: =COUNTIF(BA$4:BA48,BA48) -> 3 | BD48: =ROW() -> 48 | BE48: 1
F49: 19 | R49: =Presupuesto!C84 -> 0 | S49: =Presupuesto!D84 -> 1 | T49: =Presupuesto!E84 -> 0 | U49: =Presupuesto!F84 -> 0 | V49: =Presupuesto!G84 -> 0 | W49: =Presupuesto!H84 -> 0 | X49: =Presupuesto!I84 -> 0 | AA49: 25 | AB49: Programa | AC49: ECO | AD49: Especialización en Mercadeo de Servicios | AE49: 31 | AK49: 52 | AL49: 46 | AM49: 1 | AN49: 46 | AO49: ING | AP49: GISSIC: Grupo de Investigacion en Seguridad y Sistemas de Comunicaciones | AQ49: COL0052163 | AR49: A | AS49: http://scienti.colciencias.gov.co:8085/gruplac/jsp/visualiza/visualizagr.jsp?nro=00000000003506 | AT49: BB216:BB220 | AU49: =ROW() -> 49 | AV49: =MINA(IF(AQ49=$BA$4:$BA$401,$BD$4:$BD$401)) -> 216 | AW49: =MAXA(IF(AQ49=$BA$4:$BA$401,$BD$4:$BD$401)) -> 220 | AX49: ING | BA49: COL0052181 | BB49: Tele-cardiología y prevención | BC49: =COUNTIF(BA$4:BA49,BA49) -> 4 | BD49: =ROW() -> 49 | BE49: 1
F50: 20 | R50: =Presupuesto!C85 -> 0 | S50: =Presupuesto!D85 -> 1 | T50: =Presupuesto!E85 -> 0 | U50: =Presupuesto!F85 -> 0 | V50: =Presupuesto!G85 -> 0 | W50: =Presupuesto!H85 -> 0 | X50: =Presupuesto!I85 -> 0 | AA50: 26 | AB50: Programa | AC50: ECO | AD50: Especialización en Revisoría Fiscal y Auditoría Internacional | AE50: 32 | AK50: 54 | AL50: 47 | AM50: 1 | AN50: 47 | AO50: ING | AP50: GAV | AQ50: COL0068762 | AR50: A | AS50: http://scienti.colciencias.gov.co:8085/gruplac/jsp/visualiza/visualizagr.jsp?nro=00000000004391 | AT50: BB225:BB230 | AU50: =ROW() -> 50 | AV50: =MINA(IF(AQ50=$BA$4:$BA$401,$BD$4:$BD$401)) -> 225 | AW50: =MAXA(IF(AQ50=$BA$4:$BA$401,$BD$4:$BD$401)) -> 230 | AX50: ING | BA50: COL0052181 | BB50: Telemetría (IoT-Routing) | BC50: =COUNTIF(BA$4:BA50,BA50) -> 5 | BD50: =ROW() -> 50 | BE50: 1
F51: 21 | R51: =Presupuesto!C86 -> 0 | S51: =Presupuesto!D86 -> 0 | T51: =Presupuesto!E86 -> 0 | U51: =Presupuesto!F86 -> 0 | V51: =Presupuesto!G86 -> 0 | W51: =Presupuesto!H86 -> 0 | X51: =Presupuesto!I86 -> 0 | AA51: 27 | AB51: Programa | AC51: EES | AD51: Relaciones Internacionales y Estudios Políticos | AE51: 12 | AK51: 57 | AL51: 48 | AM51: 1 | AN51: 48 | AO51: ING | AP51: Energia alternativa, Centro Multidisciplinario de Investigación | AQ51: COL0117052 | AR51: C | AS51: http://scienti.colciencias.gov.co:8085/gruplac/jsp/visualiza/visualizagr.jsp?nro=00000000011817 | AT51: BB243:BB247 | AU51: =ROW() -> 51 | AV51: =MINA(IF(AQ51=$BA$4:$BA$401,$BD$4:$BD$401)) -> 243 | AW51: =MAXA(IF(AQ51=$BA$4:$BA$401,$BD$4:$BD$401)) -> 247 | AX51: ING | BA51: COL0107771 | BB51: Calidad de Vida de las enfermedades respiratorias en la nińez | BC51: =COUNTIF(BA$4:BA51,BA51) -> 1 | BD51: =ROW() -> 51 | BE51: 1
F52: 22 | AA52: 28 | AB52: Programa | AC52: EES | AD52: Administración de la Seguridad y Salud Ocupacional | AE52: 13 | AK52: 60 | AL52: 49 | AM52: 1 | AN52: 49 | AO52: ING | AP52: GI-iTEC - Grupo de Investigación e innovación Tecnológica en Electrónica y Comunicaciones | AQ52: COL0143731 | AR52: C | AS52: http://scienti.colciencias.gov.co:8085/gruplac/jsp/visualiza/visualizagr.jsp?nro=00000000014576 | AT52: BB256:BB258 | AU52: =ROW() -> 52 | AV52: =MINA(IF(AQ52=$BA$4:$BA$401,$BD$4:$BD$401)) -> 256 | AW52: =MAXA(IF(AQ52=$BA$4:$BA$401,$BD$4:$BD$401)) -> 258 | AX52: ING | BA52: COL0107771 | BB52: Enfermedad bronquial obstructiva recurrente en nińos (Asma, sibilancias inducidas por virus, sibilancias recurrentes, sibilancias persistentes de múltiples desencadenantes) | BC52: =COUNTIF(BA$4:BA52,BA52) -> 2 | BD52: =ROW() -> 52 | BE52: 1
AA53: 31 | AB53: Programa | AC53: EES | AD53: Maestría en Relaciones y Negocios Internacionales | AE53: 44 | AK53: 66 | AL53: 50 | AM53: 1 | AN53: 50 | AO53: ING | AP53: LA TRAMOYA | AQ53: COL0126777 | AR53: C | AS53: http://scienti.colciencias.gov.co:8085/gruplac/jsp/visualiza/visualizagr.jsp?nro=00000000012813 | AT53: BB266:BB269 | AU53: =ROW() -> 53 | AV53: =MINA(IF(AQ53=$BA$4:$BA$401,$BD$4:$BD$401)) -> 266 | AW53: =MAXA(IF(AQ53=$BA$4:$BA$401,$BD$4:$BD$401)) -> 269 | AX53: ING | BA53: COL0107771 | BB53: Enfermedad pulmonar obstructiva crónica del Recién Nacido | BC53: =COUNTIF(BA$4:BA53,BA53) -> 3 | BD53: =ROW() -> 53 | BE53: 1
M54: Recopilación deTextos | AA54: 32 | AB54: Programa | AC54: EES | AD54: Especialización en Administración de la Seguridad | AE54: 45 | AK54: 70 | AL54: 51 | AM54: 1 | AN54: 51 | AO54: ING | AP54: GREST | AQ54: COL0151789 | AR54: C | AS54: http://scienti.colciencias.gov.co:8085/gruplac/jsp/visualiza/visualizagr.jsp?nro=00000000015386 | AT54: BB282:BB288 | AU54: =ROW() -> 54 | AV54: =MINA(IF(AQ54=$BA$4:$BA$401,$BD$4:$BD$401)) -> 282 | AW54: =MAXA(IF(AQ54=$BA$4:$BA$401,$BD$4:$BD$401)) -> 288 | AX54: ING | BA54: COL0107771 | BB54: Enfermedades infecciosas de la infancia (Rinosinusitis, Croup, Bronquiolitis, Neumonía, Tuberculosis, Infección por VIH con afectación pulmonar) | BC54: =COUNTIF(BA$4:BA54,BA54) -> 4 | BD54: =ROW() -> 54 | BE54: 1
F55: No | G55: Impacto | H55: Categoria | I55: Plazo | L55: No | M55: No. Hoja | N55: Hoja | O55: Letra | P55: No | Q55: Texto | R55: Diferencia | AA55: 33 | AB55: Programa | AC55: EES | AD55: Especialización en Alta Gerencia de la Seguridad y Defensa | AE55: 46 | AK55: 1 | AL55: 52 | AM55: 1 | AN55: 52 | AO55: MED | AP55: CATCH | AQ55: COL0049659 | AR55: C | AS55: http://scienti.colciencias.gov.co:8085/gruplac/jsp/visualiza/visualizagr.jsp?nro=00000000003253 | AT55: BB4:BB5 | AU55: =ROW() -> 55 | AV55: =MINA(IF(AQ55=$BA$4:$BA$401,$BD$4:$BD$401)) -> 4 | AW55: =MAXA(IF(AQ55=$BA$4:$BA$401,$BD$4:$BD$401)) -> 5 | AX55: MED | BA55: COL0107771 | BB55: Fármaco economía de las enfermedades respiratorias en la infancia | BC55: =COUNTIF(BA$4:BA55,BA55) -> 5 | BD55: =ROW() -> 55 | BE55: 1
F56: =ROW()-55 -> 1 | G56: =CLEAN(TRIM(Impactos!C8)) -> Impacto principal | H56: =Impactos!F8 -> 0 | I56: =Impactos!G8 -> 0 | L56: =COUNTIF(N$56:N56,N56) -> 1 | M56: 3 | N56: =NbHoja(M56) -> Resumen | O56: C | P56: 1 | Q56: =CLEAN(TRIM(INDIRECT($N56&"!"&$O56&(P56+R56),1))) ->  | R56: 6 | AA56: 34 | AB56: Programa | AC56: HUM | AD56: Especialización en Docencia Universitaria | AE56: 55 | AK56: 6 | AL56: 53 | AM56: 1 | AN56: 53 | AO56: MED | AP56: BONE | AQ56: COL0047762 | AR56: C | AS56: http://scienti.colciencias.gov.co:8085/gruplac/jsp/visualiza/visualizagr.jsp?nro=00000000003064 | AT56: BB21:BB22 | AU56: =ROW() -> 56 | AV56: =MINA(IF(AQ56=$BA$4:$BA$401,$BD$4:$BD$401)) -> 21 | AW56: =MAXA(IF(AQ56=$BA$4:$BA$401,$BD$4:$BD$401)) -> 22 | AX56: MED | BA56: COL0065804 | BB56: Biomecánica | BC56: =COUNTIF(BA$4:BA56,BA56) -> 1 | BD56: =ROW() -> 56 | BE56: 1
F57: =ROW()-55 -> 2 | G57: =CLEAN(TRIM(Impactos!C9)) -> Alcance | H57: =Impactos!F9 -> 0 | I57: =Impactos!G9 -> 0 | L57: =COUNTIF(N$56:N57,N57) -> 2 | M57: 3 | N57: =NbHoja(M57) -> Resumen | O57: =O56 -> C | P57: =P56+1 -> 2 | Q57: =CLEAN(TRIM(INDIRECT($N57&"!"&$O57&(P57+R57),1))) ->  | R57: =R56 -> 6 | AA57: 34 | AB57: Programa | AC57: HUM | AD57: Maestría en Educación | AE57: 55 | AK57: 7 | AL57: 54 | AM57: 1 | AN57: 54 | AO57: MED | AP57: Grupo de Psoriasis e Inmunodermatologia | AQ57: COL0126015 | AR57: C | AS57: http://scienti.colciencias.gov.co:8085/gruplac/jsp/visualiza/visualizagr.jsp?nro=00000000012737 | AT57: BB23:BB24 | AU57: =ROW() -> 57 | AV57: =MINA(IF(AQ57=$BA$4:$BA$401,$BD$4:$BD$401)) -> 23 | AW57: =MAXA(IF(AQ57=$BA$4:$BA$401,$BD$4:$BD$401)) -> 24 | AX57: MED | BA57: COL0065804 | BB57: Desarrollos mecatrónicos | BC57: =COUNTIF(BA$4:BA57,BA57) -> 2 | BD57: =ROW() -> 57 | BE57: 1
F58: 3 | G58: =CLEAN(TRIM(Impactos!C10)) ->  | H58: =Impactos!F10 -> 0 | I58: =Impactos!G10 -> 0 | L58: =COUNTIF(N$56:N58,N58) -> 3 | M58: 3 | N58: Resumen | O58: =O57 -> C | P58: =P57+1 -> 3 | R58: =R57 -> 6 | AA58: 35 | AB58: Programa | AC58: HUM | AD58: Doctorado de Bioética | AE58: 55 | AK58: 15 | AL58: 55 | AM58: 1 | AN58: 55 | AO58: MED | AP58: Grupo para el estudio de enfermedades respiratorias en nińos. Respira | AQ58: COL0107771 | AR58: C | AS58: http://scienti.colciencias.gov.co:8085/gruplac/jsp/visualiza/visualizagr.jsp?nro=00000000010842 | AT58: BB51:BB55 | AU58: =ROW() -> 58 | AV58: =MINA(IF(AQ58=$BA$4:$BA$401,$BD$4:$BD$401)) -> 51 | AW58: =MAXA(IF(AQ58=$BA$4:$BA$401,$BD$4:$BD$401)) -> 55 | AX58: MED | BA58: COL0065804 | BB58: Energías Renovables | BC58: =COUNTIF(BA$4:BA58,BA58) -> 3 | BD58: =ROW() -> 58 | BE58: 1
F59: 4 | G59: =CLEAN(TRIM(Impactos!C11)) ->  | H59: =Impactos!F11 -> 0 | I59: =Impactos!G11 -> 0 | L59: =COUNTIF(N$56:N59,N59) -> 4 | M59: 3 | N59: Resumen | O59: C | P59: 4 | R59: 6 | AA59: 36 | AB59: Programa | AC59: ING | AD59: Ingeniería Ambiental | AE59: 4 | AK59: 19 | AL59: 56 | AM59: 1 | AN59: 56 | AO59: MED | AP59: Salud y Comportamiento | AQ59: COL0033239 | AR59: NR | AS59: http://scienti.colciencias.gov.co:8085/gruplac/jsp/visualiza/visualizagr.jsp?nro=00000000001536 | AT59: BB66:BB68 | AU59: =ROW() -> 59 | AV59: =MINA(IF(AQ59=$BA$4:$BA$401,$BD$4:$BD$401)) -> 66 | AW59: =MAXA(IF(AQ59=$BA$4:$BA$401,$BD$4:$BD$401)) -> 68 | AX59: MED | BA59: COL0065804 | BB59: Gerencia Proyectos Ingeniería | BC59: =COUNTIF(BA$4:BA59,BA59) -> 4 | BD59: =ROW() -> 59 | BE59: 1
F60: 5 | G60: =CLEAN(TRIM(Impactos!C12)) -> Nivel adaptación social del impacto del proyecto según los SRL (Societal Readiness Levels) | H60: =Impactos!F12 -> 0 | I60: =Impactos!G12 -> 0 | L60: =COUNTIF(N$56:N60,N60) -> 5 | M60: 3 | N60: Resumen | O60: C | P60: 5 | R60: 6 | AA60: 37 | AB60: Programa | AC60: ING | AD60: Ingeniería Biomédica | AE60: 5 | AK60: 24 | AL60: 57 | AM60: 1 | AN60: 57 | AO60: MED | AP60: GRUPO NEUROCIENCIAS HMC | AQ60: COL0138698 | AR60: B | AS60: http://scienti.colciencias.gov.co:8085/gruplac/jsp/visualiza/visualizagr.jsp?nro=00000000014072 | AT60: BB89:BB101 | AU60: =ROW() -> 60 | AV60: =MINA(IF(AQ60=$BA$4:$BA$401,$BD$4:$BD$401)) -> 89 | AW60: =MAXA(IF(AQ60=$BA$4:$BA$401,$BD$4:$BD$401)) -> 101 | AX60: MED | BA60: COL0065804 | BB60: Materiales y Procesos de Manufactura | BC60: =COUNTIF(BA$4:BA60,BA60) -> 5 | BD60: =ROW() -> 60 | BE60: 1
F61: 6 | G61: =CLEAN(TRIM(Impactos!C13)) -> Estado actual del SRL | H61: =Impactos!F13 -> 0 | I61: =Impactos!G13 -> 0 | L61: =COUNTIF(N$56:N61,N61) -> 6 | M61: 3 | N61: Resumen | O61: C | P61: 6 | R61: 6 | AA61: 38 | AB61: Programa | AC61: ING | AD61: Ingeniería Civil | AE61: 6 | AK61: 25 | AL61: 58 | AM61: 1 | AN61: 58 | AO61: MED | AP61: Grupo de Investigacion en Dermatologia HMC | AQ61: COL0116439 | AR61: C | AS61: http://scienti.colciencias.gov.co:8085/gruplac/jsp/visualiza/visualizagr.jsp?nro=00000000011753 | AT61: BB102:BB106 | AU61: =ROW() -> 61 | AV61: =MINA(IF(AQ61=$BA$4:$BA$401,$BD$4:$BD$401)) -> 102 | AW61: =MAXA(IF(AQ61=$BA$4:$BA$401,$BD$4:$BD$401)) -> 106 | AX61: MED | BA61: COL0027367 | BB61: Aprendizaje en Economía | BC61: =COUNTIF(BA$4:BA61,BA61) -> 1 | BD61: =ROW() -> 61 | BE61: 1
F62: 7 | G62: =CLEAN(TRIM(Impactos!C14)) -> SRL Comprometido al finalizar el proyecto | H62: =Impactos!F14 -> 0 | I62: =Impactos!G14 -> 0 | L62: =COUNTIF(N$56:N62,N62) -> 7 | M62: 3 | N62: Resumen | O62: C | P62: 7 | R62: 6 | AA62: 39 | AB62: Programa | AC62: ING | AD62: Ingeniería Industrial | AE62: 7 | AK62: 35 | AL62: 59 | AM62: 1 | AN62: 59 | AO62: MED | AP62: Células Stem Adultas | AQ62: COL0050982 | AR62: C | AS62: http://scienti.colciencias.gov.co:8085/gruplac/jsp/visualiza/visualizagr.jsp?nro=00000000005735 | AT62: BB150:BB153 | AU62: =ROW() -> 62 | AV62: =MINA(IF(AQ62=$BA$4:$BA$401,$BD$4:$BD$401)) -> 150 | AW62: =MAXA(IF(AQ62=$BA$4:$BA$401,$BD$4:$BD$401)) -> 153 | AX62: MED | BA62: COL0027367 | BB62: Demografía y Economía Laboral | BC62: =COUNTIF(BA$4:BA62,BA62) -> 2 | BD62: =ROW() -> 62 | BE62: 1
F63: 8 | G63: =CLEAN(TRIM(Impactos!C15)) ->  | H63: =Impactos!F15 -> 0 | I63: =Impactos!G15 -> 0 | L63: =COUNTIF(N$56:N63,N63) -> 8 | M63: 3 | N63: Resumen | O63: C | P63: 8 | R63: 6 | AA63: 40 | AB63: Programa | AC63: ING | AD63: Ingeniería en Mecatrónica | AE63: 8 | AK63: 36 | AL63: 60 | AM63: 1 | AN63: 60 | AO63: MED | AP63: Grupo de Salud Oral y Cirugia Maxilofacial | AQ63: COL0129689 | AR63: C | AS63: http://scienti.colciencias.gov.co:8085/gruplac/jsp/visualiza/visualizagr.jsp?nro=00000000013172 | AT63: BB154:BB156 | AU63: =ROW() -> 63 | AV63: =MINA(IF(AQ63=$BA$4:$BA$401,$BD$4:$BD$401)) -> 154 | AW63: =MAXA(IF(AQ63=$BA$4:$BA$401,$BD$4:$BD$401)) -> 156 | AX63: MED | BA63: COL0027367 | BB63: Polětica Monetaria y Desarrollo Financiero | BC63: =COUNTIF(BA$4:BA63,BA63) -> 3 | BD63: =ROW() -> 63 | BE63: 1
F64: 9 | G64: =CLEAN(TRIM(Impactos!C16)) -> Evolución del impacto alcanzado como resultado de proyectos anteriores | H64: =Impactos!F16 -> 0 | I64: =Impactos!G16 -> 0 | L64: =COUNTIF(N$56:N64,N64) -> 9 | M64: 3 | N64: Resumen | O64: C | P64: 9 | R64: 6 | AA64: 41 | AB64: Programa | AC64: ING | AD64: Ingeniería en Multimedia | AE64: 9 | AK64: 45 | AL64: 61 | AM64: 1 | AN64: 61 | AO64: MED | AP64: Kokhlias. | AQ64: COL0125134 | AR64: C | AS64: http://scienti.colciencias.gov.co:8085/gruplac/jsp/visualiza/visualizagr.jsp?nro=00000000012649 | AT64: BB186:BB192 | AU64: =ROW() -> 64 | AV64: =MINA(IF(AQ64=$BA$4:$BA$401,$BD$4:$BD$401)) -> 186 | AW64: =MAXA(IF(AQ64=$BA$4:$BA$401,$BD$4:$BD$401)) -> 192 | AX64: MED | BA64: COL0032278 | BB64: Biología y Ecología de plagas y enemigos naturales de cultivos de importancia económica | BC64: =COUNTIF(BA$4:BA64,BA64) -> 1 | BD64: =ROW() -> 64 | BE64: 1
F65: 10 | G65: =CLEAN(TRIM(Impactos!C17)) ->  | H65: =Impactos!F17 -> 0 | I65: =Impactos!G17 -> 0 | L65: =COUNTIF(N$56:N65,N65) -> 10 | M65: 3 | N65: Resumen | O65: =O64 -> C | P65: 10 | Q65: - | R65: =R64 -> 6 | AA65: 42 | AB65: Programa | AC65: ING | AD65: Ingenieria en Telecomunicaciones | AE65: 10 | AK65: 46 | AL65: 62 | AM65: 1 | AN65: 62 | AO65: MED | AP65: Grupo de Rehabilitacion HOMIC-UMNG | AQ65: COL0120281 | AR65: NR | AS65: http://scienti.colciencias.gov.co:8085/gruplac/jsp/visualiza/visualizagr.jsp?nro=00000000012152 | AT65: BB193:BB197 | AU65: =ROW() -> 65 | AV65: =MINA(IF(AQ65=$BA$4:$BA$401,$BD$4:$BD$401)) -> 193 | AW65: =MAXA(IF(AQ65=$BA$4:$BA$401,$BD$4:$BD$401)) -> 197 | AX65: MED | BA65: COL0032278 | BB65: Generación de recomendaciones para el manejo integrado de plagas, mediante el diseńo de modelos de simulación de agroecosistemas | BC65: =COUNTIF(BA$4:BA65,BA65) -> 2 | BD65: =ROW() -> 65 | BE65: 1
F66: 11 | G66: =CLEAN(TRIM(Impactos!C18)) -> Descripción de los Beneficiario(s) del impacto del proyecto | H66: =Impactos!F18 -> 0 | I66: =Impactos!G18 -> 0 | L66: =COUNTIF(N$56:N66,N66) -> 11 | M66: 3 | N66: Resumen | O66: C | P66: 11 | R66: 6 | AA66: 43 | AB66: Programa | AC66: ING | AD66: Tecnología en Electrónica y Comunicaciones | AE66: 11 | AK66: 48 | AL66: 63 | AM66: 1 | AN66: 63 | AO66: MED | AP66: Grupo de Investigacion en Urologia HMC | AQ66: COL0116538 | AR66: C | AS66: http://scienti.colciencias.gov.co:8085/gruplac/jsp/visualiza/visualizagr.jsp?nro=00000000011763 | AT66: BB200:BB205 | AU66: =ROW() -> 66 | AV66: =MINA(IF(AQ66=$BA$4:$BA$401,$BD$4:$BD$401)) -> 200 | AW66: =MAXA(IF(AQ66=$BA$4:$BA$401,$BD$4:$BD$401)) -> 205 | AX66: MED | BA66: COL0033239 | BB66: Prevención de la enfermedad y promoción de la salud | BC66: =COUNTIF(BA$4:BA66,BA66) -> 1 | BD66: =ROW() -> 66 | BE66: 1
F67: 12 | G67: =CLEAN(TRIM(Impactos!C19)) ->  | H67: =Impactos!F19 -> 0 | I67: =Impactos!G19 -> 0 | L67: =COUNTIF(N$56:N67,N67) -> 12 | M67: 3 | N67: Resumen | O67: C | P67: 12 | Q67: Planteamiento y justificación de la propuesta. | R67: 6 | AA67: 44 | AB67: Programa | AC67: ING | AD67: Maestría en Ingeniería Mecatrónica | AE67: 34 | AK67: 51 | AL67: 64 | AM67: 1 | AN67: 64 | AO67: MED | AP67: Epidemiología molecular de enfermedades endocrinas | AQ67: COL0045848 | AR67: NR | AS67: http://scienti.colciencias.gov.co:8085/gruplac/jsp/visualiza/visualizagr.jsp?nro=00000000002874 | AT67: BB213:BB215 | AU67: =ROW() -> 67 | AV67: =MINA(IF(AQ67=$BA$4:$BA$401,$BD$4:$BD$401)) -> 213 | AW67: =MAXA(IF(AQ67=$BA$4:$BA$401,$BD$4:$BD$401)) -> 215 | AX67: MED | BA67: COL0033239 | BB67: Salud Mental y Calidad de Vida | BC67: =COUNTIF(BA$4:BA67,BA67) -> 2 | BD67: =ROW() -> 67 | BE67: 1
F68: 13 | G68: =CLEAN(TRIM(Impactos!C20)) -> Descripción del impacto esperado. | H68: =Impactos!F20 -> 0 | I68: =Impactos!G20 -> 0 | L68: =COUNTIF(N$56:N68,N68) -> 13 | M68: 3 | N68: Resumen | O68: C | P68: 13 | R68: 6 | AA68: 45 | AB68: Programa | AC68: ING | AD68: Maestría en Ingeniería Civil | AE68: 35 | AK68: 59 | AL68: 66 | AM68: =COUNTIF($AN$4:$AN$806,AL68) -> 1 | AN68: 65 | AO68: MED | AP68: EDUMECIS | AQ68: COL0152463 | AR68: R | AS68: http://scienti.colciencias.gov.co:8085/gruplac/jsp/visualiza/visualizagr.jsp?nro=00000000015421 | AT68: =$AT$2&AV68&":"&$AT$2&AW68 -> BB253:BB255 | AU68: =ROW() -> 68 | AV68: =MINA(IF(AQ68=$BA$4:$BA$401,$BD$4:$BD$401)) -> 253 | AW68: =MAXA(IF(AQ68=$BA$4:$BA$401,$BD$4:$BD$401)) -> 255 | AX68: =AO68 -> MED | BA68: COL0033239 | BB68: Salud Sexual y Reproductiva | BC68: =COUNTIF(BA$4:BA68,BA68) -> 3 | BD68: =ROW() -> 68 | BE68: =COUNTIF($AQ$3:$AQ$80,BA68) -> 1
F69: 14 | G69: =CLEAN(TRIM(Impactos!C21)) ->  | H69: =Impactos!F21 -> 0 | I69: =Impactos!G21 -> 0 | L69: =COUNTIF(N$56:N69,N69) -> 14 | M69: 3 | N69: Resumen | O69: C | P69: 14 | R69: 6 | AA69: 46 | AB69: Programa | AC69: ING | AD69: Maestría en Logística Integral | AE69: 36 | AK69: 62 | AL69: 67 | AM69: 1 | AN69: 66 | AO69: MED | AP69: BioGenEtica & BioDerecho | AQ69: COL0096032 | AR69: C | AS69: http://scienti.colciencias.gov.co:8085/gruplac/jsp/visualiza/visualizagr.jsp?nro=00000000009651 | AT69: BB260:BB263 | AU69: =ROW() -> 69 | AV69: =MINA(IF(AQ69=$BA$4:$BA$401,$BD$4:$BD$401)) -> 260 | AW69: =MAXA(IF(AQ69=$BA$4:$BA$401,$BD$4:$BD$401)) -> 263 | AX69: MED | BA69: COL0018448 | BB69: Ambiente Virtuales de Aprendizaje | BC69: =COUNTIF(BA$4:BA69,BA69) -> 1 | BD69: =ROW() -> 69 | BE69: 1
F70: 15 | G70: =CLEAN(TRIM(Impactos!C22)) ->  | H70: =Impactos!F22 -> 0 | I70: =Impactos!G22 -> 0 | L70: =COUNTIF(N$56:N70,N70) -> 15 | M70: 3 | N70: Resumen | O70: C | P70: 15 | R70: 6 | AA70: 47 | AB70: Programa | AC70: ING | AD70: Maestría en Gerencia de Proyectos | AE70: 37 | AK70: 69 | AL70: 70 | AM70: 1 | AN70: =AN69+1 -> 67 | AO70: MED | AP70: GAFRED | AQ70: COL0149359 | AR70: R | AS70: http://scienti.colciencias.gov.co:8085/gruplac/jsp/visualiza/visualizagr.jsp?nro=00000000015141 | AT70: BB279:BB281 | AU70: =ROW() -> 70 | AV70: =MINA(IF(AQ70=$BA$4:$BA$401,$BD$4:$BD$401)) -> 279 | AW70: =MAXA(IF(AQ70=$BA$4:$BA$401,$BD$4:$BD$401)) -> 281 | AX70: MED | BA70: COL0018448 | BB70: Formación pedagógica para el posconflicto en Colombia | BC70: =COUNTIF(BA$4:BA70,BA70) -> 2 | BD70: =ROW() -> 70 | BE70: 1
F71: 16 | G71: =CLEAN(TRIM(Impactos!C23)) ->  | H71: =Impactos!F23 -> 0 | I71: =Impactos!G23 -> 0 | L71: =COUNTIF(N$56:N71,N71) -> 16 | M71: 3 | N71: Resumen | O71: C | P71: 16 | R71: 6 | AA71: 47 | AB71: Programa | AC71: ING | AD71: Maestría en Ingeniería Mecatrónica | AE71: x | AK71: 71 | AL71: 71 | AM71: 0 | AN71: 68 | AO71: MED | AP71: Grupo de inmunología Clínica Aplicada (GICA) | AQ71: COL0152472 | AR71: C | AS71: http://scienti.colciencias.gov.co:8085/gruplac/jsp/visualiza/visualizagr.jsp?nro=00000000015414 | AT71: BB289:BB290 | AU71: =ROW() -> 71 | AV71: =MINA(IF(AQ71=$BA$4:$BA$401,$BD$4:$BD$401)) -> 289 | AW71: =MAXA(IF(AQ71=$BA$4:$BA$401,$BD$4:$BD$401)) -> 290 | AX71: MED | BA71: COL0018448 | BB71: Formación pedagógica para el posconflicto en Colombia | BC71: =COUNTIF(BA$4:BA71,BA71) -> 3 | BD71: =ROW() -> 71 | BE71: 1
F72: 17 | G72: =CLEAN(TRIM(Impactos!C24)) ->  | H72: =Impactos!F24 -> 0 | I72: =Impactos!G24 -> 0 | L72: =COUNTIF(N$56:N72,N72) -> 17 | M72: 3 | N72: Resumen | O72: C | P72: 17 | R72: 6 | AA72: 48 | AB72: Programa | AC72: ING | AD72: Especialización en Geomática | AE72: 38 | AK72: 70 | AL72: 70 | AM72: 1 | AN72: 69 | AO72: MED | AP72: Epidemiología y Salud Colectiva | AQ72: COL0152319 | AR72: C | AS72: http://scienti.colciencias.gov.co:8085/gruplac/jsp/visualiza/visualizagr.jsp?nro=00000000015438 | AT72: =$AT$2&AV72&":"&$AT$2&AW72 -> BB291:BB295 | AU72: =ROW() -> 72 | AV72: =MINA(IF(AQ72=$BA$4:$BA$401,$BD$4:$BD$401)) -> 291 | AW72: =MAXA(IF(AQ72=$BA$4:$BA$401,$BD$4:$BD$401)) -> 295 | AX72: =AO72 -> MED | BA72: COL0018448 | BB72: Gestión del conocimiento y calidad de la educación superior | BC72: =COUNTIF(BA$4:BA72,BA72) -> 4 | BD72: =ROW() -> 72 | BE72: 1
F73: 18 | G73: =CLEAN(TRIM(Impactos!C25)) ->  | H73: =Impactos!F25 -> 0 | I73: =Impactos!G25 -> 0 | L73: =COUNTIF(N$56:N73,N73) -> 18 | M73: 3 | N73: Resumen | O73: C | P73: 18 | R73: 6 | AA73: 49 | AB73: Programa | AC73: ING | AD73: Especialización en Gerencia de la Calidad | AE73: 39 | AK73: 73 | AL73: 73 | AM73: 0 | AN73: 70 | AO73: MED | AP73: Grupo de investigaciones sobre agentes radiológicos, biológicos y químicos | AQ73: COL0191078 | AR73: NR | AS73: http://scienti.colciencias.gov.co:8085/gruplac/jsp/visualiza/visualizagr.jsp?nro=00000000019309 | AT73: BB306:BB308 | AU73: =ROW() -> 73 | AV73: =MINA(IF(AQ73=$BA$4:$BA$401,$BD$4:$BD$401)) -> 306 | AW73: =MAXA(IF(AQ73=$BA$4:$BA$401,$BD$4:$BD$401)) -> 308 | AX73: MED | BA73: COL0066768 | BB73: Derecho de las relaciones internacionales | BC73: =COUNTIF(BA$4:BA73,BA73) -> 1 | BD73: =ROW() -> 73 | BE73: 1
F74: 19 | G74: =CLEAN(TRIM(Impactos!C26)) ->  | H74: =Impactos!F26 -> 0 | I74: =Impactos!G26 -> 0 | L74: =COUNTIF(N$56:N74,N74) -> 19 | M74: 3 | N74: Resumen | O74: C | P74: 19 | R74: 6 | AA74: 50 | AB74: Programa | AC74: ING | AD74: Especialización en Gerencia en Logística Integral | AE74: 40 | BA74: COL0066768 | BB74: Economía y negocios internacionales | BC74: =COUNTIF(BA$4:BA74,BA74) -> 2 | BD74: =ROW() -> 74 | BE74: 1
F75: 20 | G75: =CLEAN(TRIM(Impactos!C27)) ->  | H75: =Impactos!F27 -> 0 | I75: =Impactos!G27 -> 0 | L75: =COUNTIF(N$56:N75,N75) -> 20 | M75: 3 | N75: Resumen | O75: C | P75: 20 | R75: 6 | AA75: 51 | AB75: Programa | AC75: ING | AD75: Especialización en Gerencia Integral de Proyectos | AE75: 41 | BA75: COL0066768 | BB75: Estudios políticos | BC75: =COUNTIF(BA$4:BA75,BA75) -> 3 | BD75: =ROW() -> 75 | BE75: 1
L76: =COUNTIF(N$56:N76,N76) -> 21 | M76: 3 | N76: Resumen | O76: C | P76: 21 | R76: 6 | AA76: 52 | AB76: Programa | AC76: ING | AD76: Especialización en Ingeniería de Pavimentos | AE76: 42 | BA76: COL0066768 | BB76: Estudios regionales | BC76: =COUNTIF(BA$4:BA76,BA76) -> 4 | BD76: =ROW() -> 76 | BE76: 1
L77: =COUNTIF(N$56:N77,N77) -> 22 | M77: 3 | N77: Resumen | O77: C | P77: 22 | R77: 6 | AA77: 53 | AB77: Programa | AC77: ING | AD77: Especialización en Planeación Ambiental y Manejo Integral de los Recursos Naturales | AE77: 43 | BA77: COL0066768 | BB77: Historia internacional | BC77: =COUNTIF(BA$4:BA77,BA77) -> 5 | BD77: =ROW() -> 77 | BE77: 1
C78: No | D78: Nombre Inst | E78: Grupo | F78: Clasif | G78: Investig | H78: Presupuesto | I78: Alcance | J78: Link | L78: =COUNTIF(N$56:N78,N78) -> 23 | M78: 3 | N78: Resumen | O78: C | P78: 23 | R78: 6 | AA78: 53 | AB78: Programa | AC78: ING | AD78: Doctorado en Ciencias Aplicadas | AE78: 43 | BA78: COL0066768 | BB78: Relaciones internacionales | BC78: =COUNTIF(BA$4:BA78,BA78) -> 6 | BD78: =ROW() -> 78 | BE78: 1
C79: 1 | D79: =General!C31 -> 0 | E79: =General!C32 -> 0 | F79: =General!I32 -> 0 | G79: =General!C33 -> 0 | H79: =General!I33 -> 0 | I79: =General!G34 -> 0 | J79: =General!C35 -> 0 | L79: =COUNTIF(N$56:N79,N79) -> 24 | M79: 3 | N79: Resumen | O79: =O78 -> C | P79: =P78+1 -> 24 | R79: =R78 -> 6 | AA79: 54 | AB79: Programa | AC79: MED | AD79: Medicina | AE79: 14 | BA79: COL0067504 | BB79: Gestión Tecnológica | BC79: =COUNTIF(BA$4:BA79,BA79) -> 1 | BD79: =ROW() -> 79 | BE79: 1
C80: 2 | D80: =General!C37 -> 0 | E80: =General!C38 -> 0 | F80: =General!I38 -> 0 | G80: =General!C39 -> 0 | H80: =General!I39 -> 0 | I80: =General!G40 -> 0 | J80: =General!C41 -> 0 | L80: =COUNTIF(N$56:N80,N80) -> 25 | M80: 3 | N80: Resumen | O80: C | P80: 25 | R80: 6 | AA80: 55 | AB80: Programa | AC80: MED | AD80: Tecnología en Atención Prehospitalaria | AE80: 15 | BA80: COL0067504 | BB80: Gestión del conocimiento | BC80: =COUNTIF(BA$4:BA80,BA80) -> 2 | BD80: =ROW() -> 80 | BE80: 1
C81: 3 | D81: =General!C43 -> 0 | E81: =General!C44 -> 0 | F81: =General!I44 -> 0 | G81: =General!C45 -> 0 | H81: =General!I45 -> 0 | I81: =General!G46 -> 0 | J81: =General!C47 -> 0 | L81: =COUNTIF(N$56:N81,N81) -> 26 | M81: 3 | N81: Resumen | O81: C | P81: 26 | R81: 6 | AA81: 1 | AB81: Tipo Proyecto | AC81: POS | AD81: Fortalecimiento Posgrados | AE81: POS | BA81: COL0067504 | BB81: Los Estilos de enseńanza y Aprendizaje | BC81: =COUNTIF(BA$4:BA81,BA81) -> 3 | BD81: =ROW() -> 81 | BE81: 1
L82: =COUNTIF(N$56:N82,N82) -> 27 | M82: 3 | N82: Resumen | O82: C | P82: 27 | R82: 6 | AA82: 2 | AB82: Tipo Proyecto | BA82: COL0067504 | BB82: Mercadeo Cuántico | BC82: =COUNTIF(BA$4:BA82,BA82) -> 4 | BD82: =ROW() -> 82 | BE82: 1
L83: =COUNTIF(N$56:N83,N83) -> 28 | M83: 3 | N83: Resumen | O83: C | P83: 28 | R83: 6 | AA83: 1 | AB83: Función | AC83: Investigador Principal | AD83: Investigador Principal o lider del proyecto | AE83: IP | BA83: COL0067504 | BB83: Mineria Web | BC83: =COUNTIF(BA$4:BA83,BA83) -> 5 | BD83: =ROW() -> 83 | BE83: 1
L84: =COUNTIF(N$56:N84,N84) -> 29 | M84: 3 | N84: Resumen | O84: C | P84: 29 | R84: 6 | AA84: 2 | AB84: Función | AC84: Co_Tutores | AD84: Investigador que apoya la dirección de grado | AE84: CO | BA84: COL0067504 | BB84: Salud Pública, Bioética e Ingeniería | BC84: =COUNTIF(BA$4:BA84,BA84) -> 6 | BD84: =ROW() -> 84 | BE84: 1
L85: =COUNTIF(N$56:N85,N85) -> 1 | M85: 4 | N85: Estado_del_arte | O85: =O84 -> C | P85: =P84+1 -> 30 | R85: -23 | AA85: 3 | AB85: Función | AC85: Auxiliar de Investigación. | AD85: Asistente Graduado para proyectos de alto impacto | AE85: AG | BA85: COL0101099 | BB85: Educación y Sociedad | BC85: =COUNTIF(BA$4:BA85,BA85) -> 1 | BD85: =ROW() -> 85 | BE85: 1
L86: =COUNTIF(N$56:N86,N86) -> 2 | M86: 4 | N86: Estado_del_arte | O86: =O85 -> C | P86: =P85+1 -> 31 | R86: -23 | W86: Asistente OPS | X86: Asistente de Investigacion contratado OPS | Y86: OPS | AA86: 4 | AB86: Función | BA86: COL0101099 | BB86: Filosofía política y responsabilidad social | BC86: =COUNTIF(BA$4:BA86,BA86) -> 2 | BD86: =ROW() -> 86 | BE86: 1
L87: =COUNTIF(N$56:N87,N87) -> 3 | M87: 4 | N87: Estado_del_arte | O87: C | P87: 32 | R87: -23 | W87: Joven Investigador | X87: Joven investigador UMNG o Colciencias | Y87: JV | AA87: 5 | AB87: Función | BA87: COL0101099 | BB87: Humanidades, cultura y universidad | BC87: =COUNTIF(BA$4:BA87,BA87) -> 3 | BD87: =ROW() -> 87 | BE87: 1
L88: =COUNTIF(N$56:N88,N88) -> 4 | M88: 4 | N88: Estado_del_arte | O88: C | P88: 33 | R88: -23 | W88: Auxiliar de Investigación. | X88: Estudiante apoya el proyecto | Y88: EST | AA88: 6 | AB88: Función | BA88: COL0101099 | BB88: Liderazgo y gestión en educación. | BC88: =COUNTIF(BA$4:BA88,BA88) -> 4 | BD88: =ROW() -> 88 | BE88: 1
L89: =COUNTIF(N$56:N89,N89) -> 5 | M89: 4 | N89: Estado_del_arte | O89: C | P89: 34 | R89: -23 | W89: Asesor | X89: Asesor externo no vinculado a ninguna entidad | Y89: AR | AA89: 7 | AB89: Función | BA89: COL0138698 | BB89: Bioetica | BC89: =COUNTIF(BA$4:BA89,BA89) -> 1 | BD89: =ROW() -> 89 | BE89: 1
L90: =COUNTIF(N$56:N90,N90) -> 6 | M90: 4 | N90: Estado_del_arte | O90: C | P90: 35 | R90: -23 | AA90: 1 | AB90: Vinculo | AC90: Doc. Carrera TC | AD90: Docente de Carrera Tiempo Completo | AE90: DTC | BA90: COL0138698 | BB90: Cerebrovascular | BC90: =COUNTIF(BA$4:BA90,BA90) -> 2 | BD90: =ROW() -> 90 | BE90: 1
L91: =COUNTIF(N$56:N91,N91) -> 7 | M91: 4 | N91: Estado_del_arte | O91: C | P91: 36 | R91: -23 | AA91: 2 | AB91: Vinculo | AC91: Doc. Carrera MT | AD91: Docente de Carrera Medio Tiempo | AE91: DMT | BA91: COL0138698 | BB91: Demencias | BC91: =COUNTIF(BA$4:BA91,BA91) -> 3 | BD91: =ROW() -> 91 | BE91: 1
L92: =COUNTIF(N$56:N92,N92) -> 8 | M92: 4 | N92: Estado_del_arte | O92: C | P92: 37 | R92: -23 | AA92: 3 | AB92: Vinculo | AC92: Doc. Ocasional | AD92: Docente de Ocasional | AE92: OCA | BA92: COL0138698 | BB92: Distonias | BC92: =COUNTIF(BA$4:BA92,BA92) -> 4 | BD92: =ROW() -> 92 | BE92: 1
L93: =COUNTIF(N$56:N93,N93) -> 9 | M93: 4 | N93: Estado_del_arte | O93: C | P93: 38 | R93: -23 | AA93: 4 | AB93: Vinculo | AC93: OPS - Prestación Servicios | AD93: Asistente de Investigacion contratado OPS | AE93: OPS | BA93: COL0138698 | BB93: Enfermedades huerfanas | BC93: =COUNTIF(BA$4:BA93,BA93) -> 5 | BD93: =ROW() -> 93 | BE93: 1
L94: =COUNTIF(N$56:N94,N94) -> 10 | M94: 4 | N94: Estado_del_arte | O94: =O93 -> C | P94: =P93+1 -> 39 | R94: -23 | AA94: 5 | AB94: Vinculo | AC94: Estudiante | AD94: Estudiante activo de pregrado o postgrado | AE94: EST | AP94: Grupos que perdieron el aval | BA94: COL0138698 | BB94: Epilepsia | BC94: =COUNTIF(BA$4:BA94,BA94) -> 6 | BD94: =ROW() -> 94 | BE94: 1
L95: =COUNTIF(N$56:N95,N95) -> 11 | M95: 4 | N95: Estado_del_arte | O95: C | P95: 40 | R95: -23 | AA95: 6 | AB95: Vinculo | AC95: Externo a la UMNG | AD95: Docentes Investigadores externos sin vinculo lavoral al U. | AE95: EXT | BA95: COL0138698 | BB95: Esclerosis múltiple | BC95: =COUNTIF(BA$4:BA95,BA95) -> 7 | BD95: =ROW() -> 95 | BE95: 1
L96: =COUNTIF(N$56:N96,N96) -> 12 | M96: 4 | N96: Estado_del_arte | O96: C | P96: 41 | R96: -23 | AA96: 1 | AB96: NBC | AC96: 11 | AD96: Programas y certificaciones básicas | AE96: 11 | BA96: COL0138698 | BB96: Movimientos anormales | BC96: =COUNTIF(BA$4:BA96,BA96) -> 8 | BD96: =ROW() -> 96 | BE96: 1
L97: =COUNTIF(N$56:N97,N97) -> 13 | M97: 4 | N97: Estado_del_arte | O97: C | P97: 42 | R97: -23 | AA97: 2 | AB97: NBC | AC97: 21 | AD97: Alfabetización y aritmética elemental | AE97: 21 | BA97: COL0138698 | BB97: Parálisis cerebral | BC97: =COUNTIF(BA$4:BA97,BA97) -> 9 | BD97: =ROW() -> 97 | BE97: 1
L98: =COUNTIF(N$56:N98,N98) -> 14 | M98: 4 | N98: Estado_del_arte | O98: C | P98: 43 | R98: -23 | AA98: 3 | AB98: NBC | AC98: 31 | AD98: Competencias personales y desarrollo | AE98: 31 | AK98: 55 | AL98: 65 | AM98: =COUNTIF($AN$4:$AN$806,AL98) -> 2 | AN98: 65 | AO98: MED | AP98: Insight | AQ98: COL0067371 | AR98: C | AS98: http://scienti.colciencias.gov.co:8085/gruplac/jsp/visualiza/visualizagr.jsp?nro=00000000006698 | AT98: =$AT$2&AV98&":"&$AT$2&AW98 -> BB231:BB239 | AU98: =ROW() -> 98 | AV98: =MINA(IF(AQ98=$BA$4:$BA$401,$BD$4:$BD$401)) -> 231 | AW98: =MAXA(IF(AQ98=$BA$4:$BA$401,$BD$4:$BD$401)) -> 239 | AX98: =AO98 -> MED | BA98: COL0138698 | BB98: Retardo mental | BC98: =COUNTIF(BA$4:BA98,BA98) -> 10 | BD98: =ROW() -> 98 | BE98: 1
L99: =COUNTIF(N$56:N99,N99) -> 15 | M99: 4 | N99: Estado_del_arte | O99: C | P99: 44 | R99: -23 | AA99: 4 | AB99: NBC | AC99: 111 | AD99: Ciencias de la educación | AE99: 111 | AK99: 30 | AL99: 7 | AM99: =COUNTIF($AN$4:$AN$806,AL99) -> 2 | AN99: 7 | AO99: CIAS | AP99: Estadística, Control y Optimización | AQ99: COL0136423 | AR99: B | AS99: http://scienti.colciencias.gov.co:8085/gruplac/jsp/visualiza/visualizagr.jsp?nro=00000000013845 | AT99: =$AT$2&AV99&":"&$AT$2&AW99 -> BB125:BB129 | AU99: =ROW() -> 99 | AV99: =MINA(IF(AQ99=$BA$4:$BA$401,$BD$4:$BD$401)) -> 125 | AW99: =MAXA(IF(AQ99=$BA$4:$BA$401,$BD$4:$BD$401)) -> 129 | AX99: =AO99 -> CIAS | BA99: COL0138698 | BB99: Salud mental | BC99: =COUNTIF(BA$4:BA99,BA99) -> 11 | BD99: =ROW() -> 99 | BE99: 1
L100: =COUNTIF(N$56:N100,N100) -> 16 | M100: 4 | N100: Estado_del_arte | O100: C | P100: 45 | R100: -23 | AA100: 5 | AB100: NBC | AC100: 112 | AD100: Formación para docentes de educación pre-primaría | AE100: 112 | AK100: 26 | AL100: 5 | AM100: =COUNTIF($AN$4:$AN$806,AL100) -> 2 | AN100: 5 | AO100: CIAS | AP100: Grupo de Micología y Fitopatologia | AQ100: COL0013719 | AR100: A1 | AS100: http://scienti.colciencias.gov.co:8085/gruplac/jsp/visualiza/visualizagr.jsp?nro=00000000001127 | AT100: =$AT$2&AV100&":"&$AT$2&AW100 -> BB107:BB111 | AU100: =ROW() -> 100 | AV100: =MINA(IF(AQ100=$BA$4:$BA$401,$BD$4:$BD$401)) -> 107 | AW100: =MAXA(IF(AQ100=$BA$4:$BA$401,$BD$4:$BD$401)) -> 111 | AX100: =AO100 -> CIAS | BA100: COL0138698 | BB100: Sueño | BC100: =COUNTIF(BA$4:BA100,BA100) -> 12 | BD100: =ROW() -> 100 | BE100: 1
L101: =COUNTIF(N$56:N101,N101) -> 17 | M101: 4 | N101: Estado_del_arte | O101: C | P101: 46 | R101: -23 | AA101: 6 | AB101: NBC | AC101: 113 | AD101: Formación para docentes sin asignatura de especialización | AE101: 113 | AK101: 63 | AL101: 68 | AM101: =COUNTIF($AN$4:$AN$73,AL101) -> 1 | AN101: 63n | AO101: MED | AP101: Grupo de Investigación en Farmacología, Toxicología y Terapéutica-UMNG | AQ101: COL0114201 | AR101: NA | AS101: http://scienti.colciencias.gov.co:8085/gruplac/jsp/visualiza/visualizagr.jsp?nro=00000000011524 | AT101: =$AT$2&AV101&":"&$AT$2&AW101 -> BB0:BB0 | AU101: =ROW() -> 101 | AV101: =MINA(IF(AQ101=$BA$4:$BA$401,$BD$4:$BD$401)) -> 0 | AW101: =MAXA(IF(AQ101=$BA$4:$BA$401,$BD$4:$BD$401)) -> 0 | AX101: MED | BA101: COL0138698 | BB101: Trastornos del neurodesarrollo | BC101: =COUNTIF(BA$4:BA101,BA101) -> 13 | BD101: =ROW() -> 101 | BE101: 1
L102: =COUNTIF(N$56:N102,N102) -> 18 | M102: 4 | N102: Estado_del_arte | O102: C | P102: 47 | R102: -23 | AA102: 7 | AB102: NBC | AC102: 114 | AD102: Formación para docentes con asignatura de especialización | AE102: 114 | AK102: 65 | AL102: 69 | AM102: =COUNTIF($AN$4:$AN$73,AL102) -> 1 | AN102: 65n | AO102: MED | AP102: MEDICINA REGENERATIVA HMC UMNG | AQ102: COL0125107 | AR102: NA | AS102: http://scienti.colciencias.gov.co:8085/gruplac/jsp/visualiza/visualizagr.jsp?nro=00000000012646 | AT102: =$AT$2&AV102&":"&$AT$2&AW102 -> BB0:BB0 | AU102: =ROW() -> 102 | AV102: =MINA(IF(AQ102=$BA$4:$BA$401,$BD$4:$BD$401)) -> 0 | AW102: =MAXA(IF(AQ102=$BA$4:$BA$401,$BD$4:$BD$401)) -> 0 | AX102: MED | BA102: COL0116439 | BB102: Cirugía Dermatologica | BC102: =COUNTIF(BA$4:BA102,BA102) -> 1 | BD102: =ROW() -> 102 | BE102: 1
L103: =COUNTIF(N$56:N103,N103) -> 19 | M103: 4 | N103: Estado_del_arte | O103: C | P103: 48 | R103: -23 | AA103: 8 | AB103: NBC | AC103: 211 | AD103: Técnicas audiovisuales y producción para medios de comunicación | AE103: 211 | BA103: COL0116439 | BB103: Dermatologia Pediatrica | BC103: =COUNTIF(BA$4:BA103,BA103) -> 2 | BD103: =ROW() -> 103 | BE103: 1
L104: =COUNTIF(N$56:N104,N104) -> 20 | M104: 4 | N104: Estado_del_arte | O104: C | P104: 49 | R104: -23 | AA104: 9 | AB104: NBC | AC104: 212 | AD104: Diseño industrial, de modas e interiores | AE104: 212 | BA104: COL0116439 | BB104: Fotobiologia y Fototerapia | BC104: =COUNTIF(BA$4:BA104,BA104) -> 3 | BD104: =ROW() -> 104 | BE104: 1
L105: =COUNTIF(N$56:N105,N105) -> 21 | M105: 4 | N105: Estado_del_arte | O105: C | P105: 50 | R105: -23 | AA105: 10 | AB105: NBC | AC105: 213 | AD105: Bellas artes | AE105: 213 | BA105: COL0116439 | BB105: Leishmaniasis | BC105: =COUNTIF(BA$4:BA105,BA105) -> 4 | BD105: =ROW() -> 105 | BE105: 1
L106: =COUNTIF(N$56:N106,N106) -> 22 | M106: 4 | N106: Estado_del_arte | O106: C | P106: 51 | R106: -23 | AA106: 11 | AB106: NBC | AC106: 214 | AD106: Artesanías | AE106: 214 | BA106: COL0116439 | BB106: Psoriasis | BC106: =COUNTIF(BA$4:BA106,BA106) -> 5 | BD106: =ROW() -> 106 | BE106: 1
L107: =COUNTIF(N$56:N107,N107) -> 23 | M107: 4 | N107: Estado_del_arte | O107: C | P107: 52 | R107: -23 | AA107: 12 | AB107: NBC | AC107: 215 | AD107: Música y artes escénicas | AE107: 215 | BA107: COL0013719 | BB107: Biología y Epidemiología de hongos patógenos humanos. | BC107: =COUNTIF(BA$4:BA107,BA107) -> 1 | BD107: =ROW() -> 107 | BE107: 0
L108: =COUNTIF(N$56:N108,N108) -> 24 | M108: 4 | N108: Estado_del_arte | O108: C | P108: 53 | R108: -23 | AA108: 13 | AB108: NBC | AC108: 221 | AD108: Religión y Teología | AE108: 221 | BA108: COL0013719 | BB108: Diversidad, Ecología y Bioprospección | BC108: =COUNTIF(BA$4:BA108,BA108) -> 2 | BD108: =ROW() -> 108 | BE108: 0
L109: =COUNTIF(N$56:N109,N109) -> 25 | M109: 4 | N109: Estado_del_arte | O109: C | P109: 54 | R109: -23 | AA109: 14 | AB109: NBC | AC109: 222 | AD109: Historia y arqueología | AE109: 222 | BA109: COL0013719 | BB109: Fitopatología | BC109: =COUNTIF(BA$4:BA109,BA109) -> 3 | BD109: =ROW() -> 109 | BE109: 0
L110: =COUNTIF(N$56:N110,N110) -> 26 | M110: 4 | N110: Estado_del_arte | O110: C | P110: 55 | R110: -23 | AA110: 15 | AB110: NBC | AC110: 223 | AD110: Filosofía y ética | AE110: 223 | BA110: COL0013719 | BB110: Genómica y bioinformática | BC110: =COUNTIF(BA$4:BA110,BA110) -> 4 | BD110: =ROW() -> 110 | BE110: 0
L111: =COUNTIF(N$56:N111,N111) -> 27 | M111: 4 | N111: Estado_del_arte | O111: C | P111: 56 | R111: -23 | AA111: 16 | AB111: NBC | AC111: 231 | AD111: Adquisición del lenguaje | AE111: 231 | BA111: COL0013719 | BB111: Susceptibilidad a Antifungícos | BC111: =COUNTIF(BA$4:BA111,BA111) -> 5 | BD111: =ROW() -> 111 | BE111: 0
L112: =COUNTIF(N$56:N112,N112) -> 28 | M112: 4 | N112: Estado_del_arte | O112: C | P112: 57 | R112: -23 | AA112: 17 | AB112: NBC | AC112: 232 | AD112: Literatura y lingüística | AE112: 232 | BA112: COL0049999 | BB112: Calidad y Gestión en la Educación | BC112: =COUNTIF(BA$4:BA112,BA112) -> 1 | BD112: =ROW() -> 112 | BE112: 1
L113: =COUNTIF(N$56:N113,N113) -> 29 | M113: 4 | N113: Estado_del_arte | O113: C | P113: 58 | R113: -23 | AA113: 18 | AB113: NBC | AC113: 311 | AD113: Economía | AE113: 311 | BA113: COL0049999 | BB113: Gestión y Proyectos | BC113: =COUNTIF(BA$4:BA113,BA113) -> 2 | BD113: =ROW() -> 113 | BE113: 1
L114: =COUNTIF(N$56:N114,N114) -> 30 | M114: 4 | N114: Estado_del_arte | O114: C | P114: 59 | R114: -23 | AA114: 19 | AB114: NBC | AC114: 312 | AD114: Ciencias políticas y educación cívica | AE114: 312 | BA114: COL0049999 | BB114: Innovación | BC114: =COUNTIF(BA$4:BA114,BA114) -> 3 | BD114: =ROW() -> 114 | BE114: 1
L115: =COUNTIF(N$56:N115,N115) -> 31 | M115: 4 | N115: Estado_del_arte | O115: C | P115: 60 | R115: -23 | AA115: 20 | AB115: NBC | AC115: 313 | AD115: Psicología | AE115: 313 | BA115: COL0049999 | BB115: Productividad | BC115: =COUNTIF(BA$4:BA115,BA115) -> 4 | BD115: =ROW() -> 115 | BE115: 1
L116: =COUNTIF(N$56:N116,N116) -> 32 | M116: 4 | N116: Estado_del_arte | O116: C | P116: 61 | R116: -23 | AA116: 21 | AB116: NBC | AC116: 314 | AD116: Sociología y estudios culturales | AE116: 314 | BA116: COL0049999 | BB116: Sostenibilidad y Medio Ambiente | BC116: =COUNTIF(BA$4:BA116,BA116) -> 5 | BD116: =ROW() -> 116 | BE116: 1
L117: =COUNTIF(N$56:N117,N117) -> 1 | M117: 6 | N117: Etica | O117: =O116 -> C | P117: =P116+1 -> 62 | Q117: Proyecto de investigación en CTeI que involucra seres humanos | R117: -55 | AA117: 22 | AB117: NBC | AC117: 321 | AD117: Periodismo y reportajes | AE117: 321 | BA117: COL0049999 | BB117: Tecnología | BC117: =COUNTIF(BA$4:BA117,BA117) -> 6 | BD117: =ROW() -> 117 | BE117: 1
L118: =COUNTIF(N$56:N118,N118) -> 2 | M118: 6 | N118: Etica | O118: =O117 -> C | P118: =P117+1 -> 63 | Q118: ¿utiliza información exclusiva o reservada por parte de terceros y prevé su forma de acceso? | R118: -55 | AA118: 23 | AB118: NBC | AC118: 322 | AD118: Bibliotecología, información y archivología | AE118: 322 | BA118: COL0086179 | BB118: Búsqueda de marcadores genéticos y estudio de genes ligados a la resistencia a Fusarium en clavel. | BC118: =COUNTIF(BA$4:BA118,BA118) -> 1 | BD118: =ROW() -> 118 | BE118: 1
L119: =COUNTIF(N$56:N119,N119) -> 3 | M119: 6 | N119: Etica | O119: C | P119: 64 | Q119: Detalles: | R119: -55 | AA119: 24 | AB119: NBC | AC119: 411 | AD119: Contabilidad e impuestos | AE119: 411 | BA119: COL0086179 | BB119: Estudio de la biología del mildeo velloso de la Rosa comercial. | BC119: =COUNTIF(BA$4:BA119,BA119) -> 2 | BD119: =ROW() -> 119 | BE119: 1
L120: =COUNTIF(N$56:N120,N120) -> 4 | M120: 6 | N120: Etica | O120: C | P120: 65 | Q120: ¿utiliza información exclusiva o reservada por parte de terceros y prevé su forma de acceso? | R120: -55 | AA120: 25 | AB120: NBC | AC120: 412 | AD120: Gestión financiera, administración bancaria y seguros | AE120: 412 | BA120: COL0086179 | BB120: Producción de nuevas variedades de clavel resistentes a parasitos vasculares. | BC120: =COUNTIF(BA$4:BA120,BA120) -> 3 | BD120: =ROW() -> 120 | BE120: 1
L121: =COUNTIF(N$56:N121,N121) -> 5 | M121: 6 | N121: =NbHoja(M121) -> Etica | O121: C | P121: 66 | Q121: =CLEAN(TRIM(INDIRECT($N121&"!"&$O121&(P121+R121),1))) -> Detalles: | R121: -55 | AA121: 26 | AB121: NBC | AC121: 413 | AD121: Gestión y administración | AE121: 413 | BA121: COL0116636 | BB121: Desarrollo de software y hardware embebido | BC121: =COUNTIF(BA$4:BA121,BA121) -> 1 | BD121: =ROW() -> 121 | BE121: 1
L122: =COUNTIF(N$56:N122,N122) -> 6 | M122: 6 | N122: Etica | O122: C | P122: 67 | Q122: ¿Utiliza datos personales? | R122: -55 | AA122: 27 | AB122: NBC | AC122: 414 | AD122: Mercadotecnia y publicidad | AE122: 414 | BA122: COL0116636 | BB122: Procesamiento digital de seńales e imágenes | BC122: =COUNTIF(BA$4:BA122,BA122) -> 2 | BD122: =ROW() -> 122 | BE122: 1
L123: =COUNTIF(N$56:N123,N123) -> 7 | M123: 6 | N123: Etica | O123: C | P123: 68 | Q123: Detalles: | R123: -55 | AA123: 28 | AB123: NBC | AC123: 415 | AD123: Secretariado y trabajo de oficina | AE123: 415 | BA123: COL0116636 | BB123: Producción sostenible | BC123: =COUNTIF(BA$4:BA123,BA123) -> 3 | BD123: =ROW() -> 123 | BE123: 1
L124: =COUNTIF(N$56:N124,N124) -> 8 | M124: 6 | N124: Etica | O124: C | P124: 69 | Q124: ¿utiliza información confidencial? | R124: -55 | AA124: 29 | AB124: NBC | AC124: 416 | AD124: Ventas al por mayor y al por menor | AE124: 416 | BA124: COL0116636 | BB124: Robótica | BC124: =COUNTIF(BA$4:BA124,BA124) -> 4 | BD124: =ROW() -> 124 | BE124: 1
L125: =COUNTIF(N$56:N125,N125) -> 9 | M125: 6 | N125: Etica | O125: C | P125: 70 | Q125: Detalles: | R125: -55 | AA125: 30 | AB125: NBC | AC125: 417 | AD125: Competencias laborales | AE125: 417 | BA125: COL0136423 | BB125: Control óptimo estocástico | BC125: =COUNTIF(BA$4:BA125,BA125) -> 1 | BD125: =ROW() -> 125 | BE125: 0
L126: =COUNTIF(N$56:N126,N126) -> 10 | M126: 6 | N126: Etica | O126: C | P126: 71 | Q126: ¿Requiere Consentimiento informado? | R126: -55 | AA126: 31 | AB126: NBC | AC126: 421 | AD126: Derecho | AE126: 421 | BA126: COL0136423 | BB126: Estadística Multivariada paramétrica y no paramétrica. | BC126: =COUNTIF(BA$4:BA126,BA126) -> 2 | BD126: =ROW() -> 126 | BE126: 0
L127: =COUNTIF(N$56:N127,N127) -> 11 | M127: 6 | N127: Etica | O127: C | P127: 72 | Q127: Detalles: | R127: -55 | AA127: 32 | AB127: NBC | AC127: 511 | AD127: Biología | AE127: 511 | BA127: COL0136423 | BB127: Métodos estadísticos basados en grafos | BC127: =COUNTIF(BA$4:BA127,BA127) -> 3 | BD127: =ROW() -> 127 | BE127: 0
L128: =COUNTIF(N$56:N128,N128) -> 12 | M128: 6 | N128: Etica | O128: =O127 -> C | P128: =P127+1 -> 73 | Q128: ¿indica un modelo de recopilación y conservación de información? | R128: -55 | AA128: 33 | AB128: NBC | AC128: 512 | AD128: Bioquímica | AE128: 512 | BA128: COL0136423 | BB128: Optimizacion Semidefinida | BC128: =COUNTIF(BA$4:BA128,BA128) -> 4 | BD128: =ROW() -> 128 | BE128: 0
L129: =COUNTIF(N$56:N129,N129) -> 13 | M129: 6 | N129: Etica | O129: C | P129: 74 | Q129: Detalles: | R129: -55 | AA129: 34 | AB129: NBC | AC129: 521 | AD129: Ciencias del medio ambiente | AE129: 521 | BA129: COL0136423 | BB129: Optimización Numérica. Máquinas de Vectores de Soportes. | BC129: =COUNTIF(BA$4:BA129,BA129) -> 5 | BD129: =ROW() -> 129 | BE129: 0
L130: =COUNTIF(N$56:N130,N130) -> 14 | M130: 6 | N130: Etica | O130: C | P130: 75 | Q130: ¿Es una investigación con comunidades vulnerables (indígenas, afrodescendientes, menores o personal subordinado, entre otros)? | R130: -55 | AA130: 35 | AB130: NBC | AC130: 522 | AD130: Medio ambiente natural y vida silvestre | AE130: 522 | BA130: COL0036025 | BB130: Biomecatronica | BC130: =COUNTIF(BA$4:BA130,BA130) -> 1 | BD130: =ROW() -> 130 | BE130: 1
L131: =COUNTIF(N$56:N131,N131) -> 15 | M131: 6 | N131: Etica | O131: C | P131: 76 | Q131: Detalles: | R131: -55 | AA131: 36 | AB131: NBC | AC131: 531 | AD131: Química | AE131: 531 | BA131: COL0036025 | BB131: Optimización y Control de sistemas dinámicos | BC131: =COUNTIF(BA$4:BA131,BA131) -> 2 | BD131: =ROW() -> 131 | BE131: 1
L132: =COUNTIF(N$56:N132,N132) -> 16 | M132: 6 | N132: Etica | O132: C | P132: 77 | Q132: ¿Se evidencia conocimiento previo sobre aspectos políticos, económicos sociales y culturales de las comunidades indígenas? | R132: -55 | AA132: 37 | AB132: NBC | AC132: 532 | AD132: Ciencias de la tierra | AE132: 532 | BA132: COL0036025 | BB132: Robótica híbrida | BC132: =COUNTIF(BA$4:BA132,BA132) -> 3 | BD132: =ROW() -> 132 | BE132: =COUNTIF($AQ$3:$AQ$80,BA132) -> 1
L133: =COUNTIF(N$56:N133,N133) -> 17 | M133: 6 | N133: Etica | O133: C | P133: 78 | Q133: Detalles: | R133: -55 | AA133: 38 | AB133: NBC | AC133: 533 | AD133: Física | AE133: 533 | BA133: COL0036025 | BB133: Simulacion y Realidad Virtual | BC133: =COUNTIF(BA$4:BA133,BA133) -> 4 | BD133: =ROW() -> 133 | BE133: 1
L134: =COUNTIF(N$56:N134,N134) -> 18 | M134: 6 | N134: Etica | O134: C | P134: 79 | Q134: ¿Realiza intervención a través cuestionarios, medicamentos, rutinas, modificación de actividades o estilo de vida? | R134: -55 | AA134: 39 | AB134: NBC | AC134: 541 | AD134: Matemáticas | AE134: 541 | BA134: COL0038084 | BB134: Acuaponía, recirculación e hidroponí | BC134: =COUNTIF(BA$4:BA134,BA134) -> 1 | BD134: =ROW() -> 134 | BE134: 1
L135: =COUNTIF(N$56:N135,N135) -> 19 | M135: 6 | N135: Etica | O135: C | P135: 80 | Q135: Detalles: | R135: -55 | AA135: 40 | AB135: NBC | AC135: 542 | AD135: Estadística | AE135: 542 | BA135: COL0038084 | BB135: Biología evolutiva de animales | BC135: =COUNTIF(BA$4:BA135,BA135) -> 2 | BD135: =ROW() -> 135 | BE135: 1
L136: =COUNTIF(N$56:N136,N136) -> 20 | M136: 6 | N136: Etica | O136: C | P136: 81 | Q136: ¿incluye modelos de consentimiento informado, uso de datos personales u otro? | R136: -55 | AA136: 41 | AB136: NBC | AC136: 611 | AD136: Uso de computadores | AE136: 611 | BA136: COL0038084 | BB136: Ecotoxicología | BC136: =COUNTIF(BA$4:BA136,BA136) -> 3 | BD136: =ROW() -> 136 | BE136: 1
L137: =COUNTIF(N$56:N137,N137) -> 21 | M137: 6 | N137: Etica | O137: C | P137: 82 | Q137: Detalles: | R137: -55 | AA137: 42 | AB137: NBC | AC137: 612 | AD137: Diseño y administración de redes y bases de datos | AE137: 612 | BA137: COL0038084 | BB137: Energías alternas y recursos ambientales | BC137: =COUNTIF(BA$4:BA137,BA137) -> 4 | BD137: =ROW() -> 137 | BE137: 1
L138: =COUNTIF(N$56:N138,N138) -> 22 | M138: 6 | N138: Etica | O138: C | P138: 83 | Q138: Proyecto de investigación en CTeI involucra animales | R138: -55 | AA138: 43 | AB138: NBC | AC138: 613 | AD138: Desarrollo y análisis de software y aplicaciones | AE138: 613 | BA138: COL0038084 | BB138: modelamiento de especies bajo escenario de calentamiento global | BC138: =COUNTIF(BA$4:BA138,BA138) -> 5 | BD138: =ROW() -> 138 | BE138: 1
L139: =COUNTIF(N$56:N139,N139) -> 23 | M139: 6 | N139: Etica | O139: C | P139: 84 | Q139: ¿Incluye un protocolo de investigación en animales? | R139: -55 | AA139: 44 | AB139: NBC | AC139: 711 | AD139: Ingeniería y procesos químicos | AE139: 711 | BA139: COL0016999 | BB139: Elementos de concreto y de mampostería | BC139: =COUNTIF(BA$4:BA139,BA139) -> 1 | BD139: =ROW() -> 139 | BE139: 1
L140: =COUNTIF(N$56:N140,N140) -> 24 | M140: 6 | N140: Etica | O140: C | P140: 85 | Q140: Detalles: | R140: -55 | AA140: 45 | AB140: NBC | AC140: 712 | AD140: Tecnología de protección del medio ambiente | AE140: 712 | BA140: COL0016999 | BB140: Instrumentación estructural y sensórica | BC140: =COUNTIF(BA$4:BA140,BA140) -> 2 | BD140: =ROW() -> 140 | BE140: 1
L141: =COUNTIF(N$56:N141,N141) -> 25 | M141: 6 | N141: Etica | O141: C | P141: 86 | Q141: ¿Incluye un protocolo de manipulación de recursos biológicos? | R141: -55 | AA141: 46 | AB141: NBC | AC141: 713 | AD141: Electricidad y energía | AE141: 713 | BA141: COL0016999 | BB141: Materiales alternativos para construcción | BC141: =COUNTIF(BA$4:BA141,BA141) -> 3 | BD141: =ROW() -> 141 | BE141: 1
L142: =COUNTIF(N$56:N142,N142) -> 26 | M142: 6 | N142: Etica | O142: C | P142: 87 | Q142: Detalles: | R142: -55 | AA142: 47 | AB142: NBC | AC142: 714 | AD142: Electrónica y automatización | AE142: 714 | BA142: COL0016999 | BB142: Modelación Matemática | BC142: =COUNTIF(BA$4:BA142,BA142) -> 4 | BD142: =ROW() -> 142 | BE142: 1
L143: =COUNTIF(N$56:N143,N143) -> 27 | M143: 6 | N143: Etica | O143: C | P143: 88 | Q143: ¿Incluye un protocolo de manejo y disposición de sustancias peligrosas, agentes infecciosos y desechos? | R143: -55 | AA143: 48 | AB143: NBC | AC143: 715 | AD143: Mecánica y profesiones afines a la metalistería | AE143: 715 | BA143: COL0016999 | BB143: Vulnerabilidad Sísmica | BC143: =COUNTIF(BA$4:BA143,BA143) -> 5 | BD143: =ROW() -> 143 | BE143: 1
L144: =COUNTIF(N$56:N144,N144) -> 28 | M144: 6 | N144: Etica | O144: C | P144: 89 | Q144: Detalles: | R144: -55 | AA144: 49 | AB144: NBC | AC144: 716 | AD144: Vehículos, barcos y aeronaves motorizadas | AE144: 716 | BA144: COL0047566 | BB144: Educación en ingeniería | BC144: =COUNTIF(BA$4:BA144,BA144) -> 1 | BD144: =ROW() -> 144 | BE144: 1
L145: =COUNTIF(N$56:N145,N145) -> 29 | M145: 6 | N145: Etica | O145: C | P145: 90 | Q145: ¿hay caracterización de los animales de experimentación criterios de selección de la especie? | R145: -55 | AA145: 50 | AB145: NBC | AC145: 721 | AD145: Procesamiento de alimentos | AE145: 721 | BA145: COL0047566 | BB145: Evaluación económica y administrativa en ingeniería | BC145: =COUNTIF(BA$4:BA145,BA145) -> 2 | BD145: =ROW() -> 145 | BE145: 1
L146: =COUNTIF(N$56:N146,N146) -> 30 | M146: 6 | N146: Etica | O146: C | P146: 91 | Q146: Detalles: | R146: -55 | AA146: 51 | AB146: NBC | AC146: 722 | AD146: Materiales (vidrio, papel, plástico y madera) | AE146: 722 | BA146: COL0047566 | BB146: Geomatica | BC146: =COUNTIF(BA$4:BA146,BA146) -> 3 | BD146: =ROW() -> 146 | BE146: 1
L147: =COUNTIF(N$56:N147,N147) -> 31 | M147: 6 | N147: Etica | O147: C | P147: 92 | Q147: ¿se prevé formación previa al equipo de laboratorio por parte del investigador sobre el cuidado permanente del animal y experimentación? | R147: -55 | AA147: 52 | AB147: NBC | AC147: 723 | AD147: Producción textiles (ropa, calzado y artículos de cuero) | AE147: 723 | BA147: COL0047566 | BB147: Gerencia de proyectos | BC147: =COUNTIF(BA$4:BA147,BA147) -> 4 | BD147: =ROW() -> 147 | BE147: 1
L148: =COUNTIF(N$56:N148,N148) -> 32 | M148: 6 | N148: Etica | O148: C | P148: 93 | Q148: Detalles: | R148: -55 | AA148: 53 | AB148: NBC | AC148: 724 | AD148: Minería y extracción | AE148: 724 | BA148: COL0047566 | BB148: Procesos estocásticos | BC148: =COUNTIF(BA$4:BA148,BA148) -> 5 | BD148: =ROW() -> 148 | BE148: 1
L149: =COUNTIF(N$56:N149,N149) -> 33 | M149: 6 | N149: Etica | O149: C | P149: 94 | Q149: ¿se prevé declaración previa del origen y estado de los animales para experimentación? | R149: -55 | AA149: 54 | AB149: NBC | AC149: 731 | AD149: Arquitectura y urbanismo | AE149: 731 | BA149: COL0047566 | BB149: Productividad e impacto ambiental en proyectos de ingeniería civil (construcción sostenible) | BC149: =COUNTIF(BA$4:BA149,BA149) -> 6 | BD149: =ROW() -> 149 | BE149: 1
L150: =COUNTIF(N$56:N150,N150) -> 34 | M150: 6 | N150: Etica | O150: C | P150: 95 | Q150: Detalles: | R150: -55 | AA150: 55 | AB150: NBC | AC150: 732 | AD150: Construcción e ingeniería civil | AE150: 732 | BA150: COL0050982 | BB150: Expansión de Células Stem | BC150: =COUNTIF(BA$4:BA150,BA150) -> 1 | BD150: =ROW() -> 150 | BE150: 1
L151: =COUNTIF(N$56:N151,N151) -> 1 | M151: 12 | N151: Impactos | O151: =O150 -> C | P151: =P150+1 -> 96 | Q151: Describa en detalle el impacto a desarrollar en el proyecto | R151: -89 | AA151: 56 | AB151: NBC | AC151: 811 | AD151: Producción agrícola y ganadera | AE151: 811 | BA151: COL0050982 | BB151: Inmunoregulación | BC151: =COUNTIF(BA$4:BA151,BA151) -> 2 | BD151: =ROW() -> 151 | BE151: 1
L152: =COUNTIF(N$56:N152,N152) -> 2 | M152: 12 | N152: Impactos | O152: =O151 -> C | P152: =P151+1 -> 97 | Q152: Impacto principal | R152: -89 | AA152: 57 | AB152: NBC | AC152: 812 | AD152: Horticultura | AE152: 812 | BA152: COL0050982 | BB152: Investigación en Cáncer | BC152: =COUNTIF(BA$4:BA152,BA152) -> 3 | BD152: =ROW() -> 152 | BE152: 1
L153: =COUNTIF(N$56:N153,N153) -> 3 | M153: 12 | N153: Impactos | O153: C | P153: 98 | Q153: Alcance | R153: -89 | AA153: 58 | AB153: NBC | AC153: 821 | AD153: Silvicultura | AE153: 821 | BA153: COL0050982 | BB153: Mesénquima | BC153: =COUNTIF(BA$4:BA153,BA153) -> 4 | BD153: =ROW() -> 153 | BE153: 1
L154: =COUNTIF(N$56:N154,N154) -> 4 | M154: 12 | N154: Impactos | O154: C | P154: 99 | R154: -89 | AA154: 59 | AB154: NBC | AC154: 831 | AD154: Pesca | AE154: 831 | BA154: COL0129689 | BB154: Cirugía Ortognática y Distracción Osteogénica | BC154: =COUNTIF(BA$4:BA154,BA154) -> 1 | BD154: =ROW() -> 154 | BE154: 1
L155: =COUNTIF(N$56:N155,N155) -> 5 | M155: 12 | N155: Impactos | O155: C | P155: 100 | R155: -89 | AA155: 60 | AB155: NBC | AC155: 841 | AD155: Veterinaria | AE155: 841 | BA155: COL0129689 | BB155: Implantología y Cirugía Reconstructiva | BC155: =COUNTIF(BA$4:BA155,BA155) -> 2 | BD155: =ROW() -> 155 | BE155: 1
L156: =COUNTIF(N$56:N156,N156) -> 6 | M156: 12 | N156: Impactos | O156: C | P156: 101 | Q156: Nivel adaptación social del impacto del proyecto según los SRL (Societal Readiness Levels) | R156: -89 | AA156: 61 | AB156: NBC | AC156: 911 | AD156: Odontología | AE156: 911 | BA156: COL0129689 | BB156: Infecciones, Patología y Cirugía Dentoalveolar | BC156: =COUNTIF(BA$4:BA156,BA156) -> 3 | BD156: =ROW() -> 156 | BE156: 1
L157: =COUNTIF(N$56:N157,N157) -> 7 | M157: 12 | N157: Impactos | O157: C | P157: 102 | Q157: Estado actual del SRL | R157: -89 | AA157: 62 | AB157: NBC | AC157: 912 | AD157: Medicina | AE157: 912 | BA157: COL0036749 | BB157: Accesibilidad | BC157: =COUNTIF(BA$4:BA157,BA157) -> 1 | BD157: =ROW() -> 157 | BE157: 1
L158: =COUNTIF(N$56:N158,N158) -> 8 | M158: 12 | N158: Impactos | O158: C | P158: 103 | Q158: SRL Comprometido al finalizar el proyecto | R158: -89 | AA158: 63 | AB158: NBC | AC158: 913 | AD158: Enfermería y partería | AE158: 913 | BA158: COL0036749 | BB158: Multimedia Analítica | BC158: =COUNTIF(BA$4:BA158,BA158) -> 2 | BD158: =ROW() -> 158 | BE158: 1
L159: =COUNTIF(N$56:N159,N159) -> 9 | M159: 12 | N159: Impactos | O159: C | P159: 104 | R159: -89 | AA159: 64 | AB159: NBC | AC159: 914 | AD159: Tecnología de diagnóstico y tratamiento médico | AE159: 914 | BA159: COL0002896 | BB159: Bioética Educación y Cultura | BC159: =COUNTIF(BA$4:BA159,BA159) -> 1 | BD159: =ROW() -> 159 | BE159: 1
L160: =COUNTIF(N$56:N160,N160) -> 10 | M160: 12 | N160: Impactos | O160: C | P160: 105 | Q160: Evolución del impacto alcanzado como resultado de proyectos anteriores | R160: -89 | AA160: 65 | AB160: NBC | AC160: 915 | AD160: Terapia y rehabilitación | AE160: 915 | BA160: COL0002896 | BB160: Educación y Sociedad | BC160: =COUNTIF(BA$4:BA160,BA160) -> 2 | BD160: =ROW() -> 160 | BE160: 1
L161: =COUNTIF(N$56:N161,N161) -> 11 | M161: 12 | N161: Impactos | O161: C | P161: 106 | R161: -89 | AA161: 66 | AB161: NBC | AC161: 916 | AD161: Farmacia | AE161: 916 | BA161: COL0002896 | BB161: Educación y cultura | BC161: =COUNTIF(BA$4:BA161,BA161) -> 3 | BD161: =ROW() -> 161 | BE161: 1
L162: =COUNTIF(N$56:N162,N162) -> 12 | M162: 12 | N162: Impactos | O162: C | P162: 107 | Q162: Descripción de los Beneficiario(s) del impacto del proyecto | R162: -89 | AA162: 67 | AB162: NBC | AC162: 917 | AD162: Medicina y terapia tradicional y complementaria | AE162: 917 | BA162: COL0066229 | BB162: (EO) Estructuras Organizacionales | BC162: =COUNTIF(BA$4:BA162,BA162) -> 1 | BD162: =ROW() -> 162 | BE162: 1
L163: =COUNTIF(N$56:N163,N163) -> 13 | M163: 12 | N163: Impactos | O163: C | P163: 108 | R163: -89 | AA163: 68 | AB163: NBC | AC163: 921 | AD163: Asistencia a adultos mayores y discapacitados | AE163: 921 | BA163: COL0066229 | BB163: (PI) Procesos de Integración | BC163: =COUNTIF(BA$4:BA163,BA163) -> 2 | BD163: =ROW() -> 163 | BE163: 1
L164: =COUNTIF(N$56:N164,N164) -> 14 | M164: 12 | N164: Impactos | O164: C | P164: 109 | Q164: Descripción del impacto esperado. | R164: -89 | AA164: 69 | AB164: NBC | AC164: 922 | AD164: Asistencia a la infancia y servicios para jóvenes | AE164: 922 | BA164: COL0066229 | BB164: (R) Regionalización | BC164: =COUNTIF(BA$4:BA164,BA164) -> 3 | BD164: =ROW() -> 164 | BE164: 1
L165: =COUNTIF(N$56:N165,N165) -> 15 | M165: 12 | N165: Impactos | O165: C | P165: 110 | R165: -89 | AA165: 70 | AB165: NBC | AC165: 923 | AD165: Trabajo social y orientación | AE165: 923 | BA165: COL0028767 | BB165: Estudios Contemporáneos en Contabilidad y Finanzas | BC165: =COUNTIF(BA$4:BA165,BA165) -> 1 | BD165: =ROW() -> 165 | BE165: 1
L166: =COUNTIF(N$56:N166,N166) -> 16 | M166: 12 | N166: Impactos | O166: C | P166: 111 | R166: -89 | AA166: 71 | AB166: NBC | AC166: 1011 | AD166: Servicios domésticos | AE166: 1011 | BA166: COL0028767 | BB166: Estudios Contemporáneos en Gestión y Organizaciones | BC166: =COUNTIF(BA$4:BA166,BA166) -> 2 | BD166: =ROW() -> 166 | BE166: 1
L167: =COUNTIF(N$56:N167,N167) -> 17 | M167: 12 | N167: Impactos | O167: C | P167: 112 | R167: -89 | AA167: 72 | AB167: NBC | AC167: 1012 | AD167: Peluquería y tratamientos de belleza | AE167: 1012 | BA167: COL0048492 | BB167: Biología Molecular de organismos acuáticos, con énfasis en especies de interés comercial y amenazadas. | BC167: =COUNTIF(BA$4:BA167,BA167) -> 1 | BD167: =ROW() -> 167 | BE167: 1
L168: =COUNTIF(N$56:N168,N168) -> 18 | M168: 12 | N168: Impactos | O168: C | P168: 113 | R168: -89 | AA168: 73 | AB168: NBC | AC168: 1013 | AD168: Hotelería, restaurantes y servicios de banquetes | AE168: 1013 | BA168: COL0048492 | BB168: Dinámica ecológica del zooplancton en el océano pacífico colombiano. Cruceros 2007-2010 de la serie ERFEN (Estudio Regional del Fenómeno el Niño) | BC168: =COUNTIF(BA$4:BA168,BA168) -> 2 | BD168: =ROW() -> 168 | BE168: 1
L169: =COUNTIF(N$56:N169,N169) -> 19 | M169: 12 | N169: Impactos | O169: C | P169: 114 | R169: -89 | AA169: 74 | AB169: NBC | AC169: 1014 | AD169: Deportes | AE169: 1014 | BA169: COL0048492 | BB169: Estudios Morfológicos, Tróficos, Ecológicos, Bióticos y Abióticos de Humedales Colombianos, con énfasis en la Sabana de Bogotá. | BC169: =COUNTIF(BA$4:BA169,BA169) -> 3 | BD169: =ROW() -> 169 | BE169: 1
L170: =COUNTIF(N$56:N170,N170) -> 20 | M170: 12 | N170: Impactos | O170: C | P170: 115 | R170: -89 | AA170: 75 | AB170: NBC | AC170: 1015 | AD170: Viajes, turismo y actividades recreativas | AE170: 1015 | BA170: COL0048492 | BB170: Estudios morfológicos, nutricionales, ontogénicos y de cultivo de organismos acuáticos de interés comercial. | BC170: =COUNTIF(BA$4:BA170,BA170) -> 4 | BD170: =ROW() -> 170 | BE170: 1
L171: =COUNTIF(N$56:N171,N171) -> 21 | M171: 12 | N171: Impactos | O171: C | P171: 116 | R171: -89 | AA171: 76 | AB171: NBC | AC171: 1021 | AD171: Saneamiento de la comunidad | AE171: 1021 | BA171: COL0077814 | BB171: Producción Hortícola Limpia | BC171: =COUNTIF(BA$4:BA171,BA171) -> 1 | BD171: =ROW() -> 171 | BE171: 1
L172: =COUNTIF(N$56:N172,N172) -> 22 | M172: 12 | N172: Impactos | O172: C | P172: 117 | Q172: *Pueden Ocultar las Filas que no se utilicen ( Favor no eliminar filas). | R172: -89 | AA172: 77 | AB172: NBC | AC172: 1022 | AD172: Salud y protección laboral | AE172: 1022 | BA172: COL0077707 | BB172: Biodiversidad y Conservación | BC172: =COUNTIF(BA$4:BA172,BA172) -> 1 | BD172: =ROW() -> 172 | BE172: 1
L173: =COUNTIF(N$56:N173,N173) -> 23 | M173: 12 | N173: Impactos | O173: C | P173: 118 | R173: -89 | AA173: 78 | AB173: NBC | AC173: 1031 | AD173: Educación militar y de defensa | AE173: 1031 | BA173: COL0077707 | BB173: Bioprospección de Comunidades Vegetales | BC173: =COUNTIF(BA$4:BA173,BA173) -> 2 | BD173: =ROW() -> 173 | BE173: 1
L174: =COUNTIF(N$56:N174,N174) -> 24 | M174: 12 | N174: Impactos | O174: C | P174: 119 | R174: -89 | AA174: 79 | AB174: NBC | AC174: 1032 | AD174: Protección de las personas y de la propiedad | AE174: 1032 | BA174: COL0077707 | BB174: Búsqueda Biodirigida y Síntesis de Sustancias Bioactivas | BC174: =COUNTIF(BA$4:BA174,BA174) -> 3 | BD174: =ROW() -> 174 | BE174: 1
L175: =COUNTIF(N$56:N175,N175) -> 25 | M175: 12 | N175: Impactos | O175: C | P175: 120 | R175: -89 | AA175: 80 | AB175: NBC | AC175: 1041 | AD175: Servicios de transporte | AE175: 1041 | BA175: COL0077707 | BB175: Fitopatología y ecofisiología vegetal | BC175: =COUNTIF(BA$4:BA175,BA175) -> 4 | BD175: =ROW() -> 175 | BE175: 1
AA176: 1 | AB176: Nivel | AC176: 1 | AD176: Postdoctorado | AE176: =AC176 -> 1 | BA176: COL0077707 | BB176: Metabolómica | BC176: =COUNTIF(BA$4:BA176,BA176) -> 5 | BD176: =ROW() -> 176 | BE176: 1
AA177: 2 | AB177: Nivel | AC177: 2 | AD177: Doctorado | AE177: =AC177 -> 2 | BA177: COL0077707 | BB177: Modelado Molecular y Quimioinformática | BC177: =COUNTIF(BA$4:BA177,BA177) -> 6 | BD177: =ROW() -> 177 | BE177: 1
AA178: 3 | AB178: Nivel | AC178: 3 | AD178: Maestría | AE178: 3 | BA178: COL0077707 | BB178: Química Ambiental | BC178: =COUNTIF(BA$4:BA178,BA178) -> 7 | BD178: =ROW() -> 178 | BE178: 1
AA179: 4 | AB179: Nivel | AC179: 4 | AD179: Esp. universitaria | AE179: 4 | BA179: COL0077707 | BB179: Química Bioorgánica | BC179: =COUNTIF(BA$4:BA179,BA179) -> 8 | BD179: =ROW() -> 179 | BE179: 1
AA180: 5 | AB180: Nivel | AC180: 5 | AD180: Esp. Técnica Profesional | AE180: 5 | BA180: COL0077707 | BB180: Redes Tróficas y Agroecología | BC180: =COUNTIF(BA$4:BA180,BA180) -> 9 | BD180: =ROW() -> 180 | BE180: 1
AA181: 6 | AB181: Nivel | AC181: 6 | AD181: Esp. Tecnológica | AE181: 6 | BA181: COL0110436 | BB181: Bioquímica | BC181: =COUNTIF(BA$4:BA181,BA181) -> 1 | BD181: =ROW() -> 181 | BE181: 1
AA182: 7 | AB182: Nivel | AC182: 7 | AD182: Universitario | AE182: 7 | BA182: COL0110436 | BB182: Química Ambiental y Forense | BC182: =COUNTIF(BA$4:BA182,BA182) -> 2 | BD182: =ROW() -> 182 | BE182: 1
AA183: 8 | AB183: Nivel | AC183: 8 | AD183: Tecnológico | AE183: 8 | BA183: COL0110436 | BB183: Química Inorgánica | BC183: =COUNTIF(BA$4:BA183,BA183) -> 3 | BD183: =ROW() -> 183 | BE183: 1
AA184: 9 | AB184: Nivel | AC184: 9 | AD184: Técnico profesional | AE184: 9 | BA184: COL0110436 | BB184: Química Verde | BC184: =COUNTIF(BA$4:BA184,BA184) -> 4 | BD184: =ROW() -> 184 | BE184: 1
AA185: 10 | AB185: Nivel | AC185: 10 | AD185: Estudiante pregrado | AE185: 10 | BA185: COL0110436 | BB185: Química de coordinación y catálisis ambiental | BC185: =COUNTIF(BA$4:BA185,BA185) -> 5 | BD185: =ROW() -> 185 | BE185: 1
AA186: 1 | AB186: A | AC186: 100 | AD186: Puede aplicar al maximo de presupuesto dependiendo los puntos comprometidos | BA186: COL0125134 | BB186: Ayudas Auditivas Implantables | BC186: =COUNTIF(BA$4:BA186,BA186) -> 1 | BD186: =ROW() -> 186 | BE186: 1
AA187: 8 | AB187: A1 | AC187: 100 | AD187: Puede aplicar al maximo de presupuesto dependiendo los puntos comprometidos | BA187: COL0125134 | BB187: Base de cráneo | BC187: =COUNTIF(BA$4:BA187,BA187) -> 2 | BD187: =ROW() -> 187 | BE187: 1
AA188: 9 | AB188: B | AC188: 100 | AD188: Puede aplicar al maximo de presupuesto dependiendo los puntos comprometidos | BA188: COL0125134 | BB188: Cáncer Laríngeo | BC188: =COUNTIF(BA$4:BA188,BA188) -> 3 | BD188: =ROW() -> 188 | BE188: 1
AA189: 10 | AB189: C | AC189: 100 | AD189: Puede aplicar al maximo de presupuesto dependiendo los puntos comprometidos | BA189: COL0125134 | BB189: Enfermedad de Meniere | BC189: =COUNTIF(BA$4:BA189,BA189) -> 4 | BD189: =ROW() -> 189 | BE189: 1
AA190: 11 | AB190: D | AC190: 50 | AD190: Puede aplicar hasta 50 millones de presupuesto dependiendo los puntos comprometidos | BA190: COL0125134 | BB190: Oído Crónico | BC190: =COUNTIF(BA$4:BA190,BA190) -> 5 | BD190: =ROW() -> 190 | BE190: 1
AA191: 2 | AB191: R | AC191: 25 | AD191: Puede aplicar hasta 25 millones de presupuesto dependiendo los puntos comprometidos | BA191: COL0125134 | BB191: Rinosinusitis Crónica | BC191: =COUNTIF(BA$4:BA191,BA191) -> 6 | BD191: =ROW() -> 191 | BE191: 1
AA192: 2 | AB192: NR | AC192: 25 | AD192: Puede aplicar hasta 25 millones de presupuesto dependiendo los puntos comprometidos | BA192: COL0125134 | BB192: Trauma de guerra en Otorrinolaringología | BC192: =COUNTIF(BA$4:BA192,BA192) -> 7 | BD192: =ROW() -> 192 | BE192: 1
AA193: 1 | AB193: Nivel_Inst | AC193: 1 | AD193: Distrital | BA193: COL0120281 | BB193: Medicina Electrodiagnostica | BC193: =COUNTIF(BA$4:BA193,BA193) -> 1 | BD193: =ROW() -> 193 | BE193: 1
AA194: 2 | AB194: Nivel_Inst | AC194: 2 | AD194: Nacional | BA194: COL0120281 | BB194: Rehabilitacion Neurologica | BC194: =COUNTIF(BA$4:BA194,BA194) -> 2 | BD194: =ROW() -> 194 | BE194: 1
AA195: 3 | AB195: Nivel_Inst | AC195: 3 | AD195: Internacional | BA195: COL0120281 | BB195: Rehabilitacion cardio-pulmonar | BC195: =COUNTIF(BA$4:BA195,BA195) -> 3 | BD195: =ROW() -> 195 | BE195: 1
BA196: COL0120281 | BB196: Rehabilitacion musculo esqueletica | BC196: =COUNTIF(BA$4:BA196,BA196) -> 4 | BD196: =ROW() -> 196 | BE196: =COUNTIF($AQ$3:$AQ$80,BA196) -> 1
BA197: COL0120281 | BB197: Rehabilitación Infantil | BC197: =COUNTIF(BA$4:BA197,BA197) -> 5 | BD197: =ROW() -> 197 | BE197: 1
BA198: COL0128047 | BB198: Derecho de la responsabilidad y de seguros | BC198: =COUNTIF(BA$4:BA198,BA198) -> 1 | BD198: =ROW() -> 198 | BE198: 1
BA199: COL0128047 | BB199: Derecho económico y de los negocios. | BC199: =COUNTIF(BA$4:BA199,BA199) -> 2 | BD199: =ROW() -> 199 | BE199: 1
BA200: COL0116538 | BB200: Andrologia y Salud sexual | BC200: =COUNTIF(BA$4:BA200,BA200) -> 1 | BD200: =ROW() -> 200 | BE200: 1
... 110 more rows

Sheet General
A1: 1 | H1: =IFERROR(VLOOKUP($C$7,Dt!AD81:AE82,2,0),"POS") -> POS | I1: =IFERROR(VLOOKUP($C$13,Dt!$AC$6:$AD$13,2,0),"NT") -> NT | X1: Número de Paginas del documento final , se puede ajustar.
B2: PRESENTACIÓN DE PROYECTOS EN INVESTIGACIÓN DE POSGRADOS | H2: Fecha de Emisión: 2018/03/07 | I2: IN-IV-F-14 | S2: =S3 -> . | X2: 11
H3: Revision N°: 3 | I3: ="Página "&A1&" de "&Dt_TPG -> Página 1 de 11 | S3: .
A5: 1.- | B5: Información general del proyecto. | I5: ="Vrs.- "&TEXT(DAY($U$5),"00")&"."&(TEXT(MONTH($U$5),"00"))&U7 -> Vrs.- 24.10 | S5: Fecha Actualización | U5: =I60 -> 2019-10-24 | X5: Hoy es
B7: Convocatoria: | C7: Fortalecimiento Posgrados | G7: Código o Radicado | X7: =NOW() -> 2019-11-07T14:56:36.160
S8: Documento de Prueba 12 Agosto 2019
B9: Formato: actualizado a 06 Nov 2019 | S9: =Cel_Fac -> NT
B10: Líder: | G10: Teléfonos : | X10: 2017-03-02
B11: Correo: | G11: Sede:
B12: Este proyecto es continuación de un proyecto anterior | F12: No | G12: El proyecto tiene o ha tenido financición | I12: No
B13: Facultad | G13: Programa | L13: Clasificación Grupo Máximo
A15: 2.- | B15: Información de Grupos de Investigación UMNG asociados al proyecto
B17: Grupo Principal | L17: =IFERROR(VLOOKUP($C17,Dt!$AP$3:$AQ$73,2,0),0) -> 0
B18: Link Colciencias: | C18: =IFERROR(VLOOKUP(L17,Dt!$AQ$3:$AS$73,3,0),"") ->  | I18: =IFERROR(VLOOKUP(L17,Dt!$AQ$3:$AS$73,2,0),"") ->  | L18: =COUNTIF($O$7:$O$9,I18) -> 3
B19: Lineas | L19: =IFERROR("DT!"&VLOOKUP($C17,Dt!$AP$3:$AT$73,5,0),0) -> 0
A21: =IFERROR(VLOOKUP(D21,Dt!$AP$3:$AU$73,5,0),"") ->  | B21: Grupo Aliado 1 | L21: =IFERROR(VLOOKUP($C21,Dt!$AP$3:$AQ$73,2,0),0) -> 0
B22: Link Colciencias: | C22: =IFERROR(VLOOKUP(L21,Dt!$AQ$3:$AS$73,3,0),"") ->  | I22: =IFERROR(VLOOKUP(L21,Dt!$AQ$3:$AS$73,2,0),"") -> 
A23: =IFERROR(VLOOKUP($C23,Dt!$BB$3:$BD$293,3,0),"") ->  | B23: Lineas | L23: =IFERROR("DT!"&VLOOKUP($C21,Dt!$AP$3:$AT$73,5,0),0) -> 0
B25: Grupo Aliado 2 | L25: =IFERROR(VLOOKUP($C25,Dt!$AP$3:$AQ$73,2,0),0) -> 0
B26: Link Colciencias: | C26: =IFERROR(VLOOKUP(L25,Dt!$AQ$3:$AS$73,3,0),"") ->  | I26: =IFERROR(VLOOKUP(L25,Dt!$AQ$3:$AS$73,2,0),"") -> 
B27: Lineas | L27: =IFERROR("DT!"&VLOOKUP($C25,Dt!$AP$3:$AT$73,5,0),0) -> 0
A29: 3.- | B29: Instituciones Externas participantes. | H29: No. de Instituciones: --> | I29: 0 | L29: =LEN(L17&L21&L25) -> 3
C30: s
B31: Nombre 1
B32: Grupo 1 | H32: Clasificación
B33: Investigadores | H33: Presupuesto en plan de compras:
B34: Nivel o alcance institucional de la entidad externa es : | H34: =$M$54 -> .
B35: Link Colciencias: | L35: =IFERROR(SEARCH(M35,C35,1),0) -> 0 | M35: http://scienti.colciencias.gov.co:8085
B37: Nombre 2
B38: Grupo 2 | H38: Clasificación
B39: Investigadores | H39: Presupuesto en plan de compras:
B40: Nivel o alcance institucional de la entidad externa es : | H40: =IF(I39>0,$M$54,".") -> .
B41: Link Colciencias: | L41: =IFERROR(SEARCH(M41,C41,1),0) -> 0 | M41: http://scienti.colciencias.gov.co:8085
B43: Nombre3
B44: Grupo 3 | H44: Clasificación
B45: Investigadores | H45: Presupuesto en plan de compras:
B46: Nivel o alcance institucional de la entidad externa es : | H46: =IF(I45>0,$M$54,".") -> .
B47: Link Colciencias: | L47: =IFERROR(SEARCH(M47,C47,1),0) -> 0 | M47: http://scienti.colciencias.gov.co:8085
B49: Datos comprometidos.
B51: Productividad comprometida | D51: =IF(K51>0,"Error revice productos ",V_Max) -> 0 | F51: $ Vicein: | G51: =IF(D51>0,Presupuesto!F141,0) -> 0 | I51: ="Limite en millones "&Integrantes!T4 -> Limite en millones 50 | K51: =IF(Productos!P56>0,1,0) -> 0
B52: * Las areas sombreadas de color azul no son editables | L52: =SUM(I33,I39,I45) -> 0 | M52: <-- Sumatoria Presupuesto de entidades externas en Pg General
L53: =Presupuesto!I141 -> 0 | M53: <-- Sumatoria Presupuesto de entidades externas en Pg Presupuesto
B54: Observaciones o recomendaciones (no valida para calificación de Propuesta): | L54: =L52-L53 -> 0 | M54: =IF(L54=0,"."," Pendiente validar dif. $"&TEXT(L54,"###.###.###")) -> .
B58: Calificación del formato
B60: Observaciones : Ajustes y actualizaciones realizadas al formato. | I60: =MAX(I62:I201) -> 2019-10-24 | L60: Pts. Pruba | M60: 10
B62: No | C62: Actualización, ajustes y cambios. | I62: Fecha
B63: =ROW()-62 -> 1 | C63: Actualización del formato con parametros 2019 para vigencia 2020 | I63: 2019-10-20
B64: =ROW()-62 -> 2 | C64: Ajuste de condiciones para la convocatoria | I64: 2019-10-24
B65: 3 | C65: Ajuste hoja de presupuesto con los rubros pendientes de incluir | O65: Listado de Grupos de investigacion UMNG 2019
B66: 4 | C66: 0 | N66: No | O66: Grupo
B67: 5 | C67: 0 | N67: 44 | O67: =VLOOKUP($N67,Dt!$AN$3:$AR$73,3,0) -> ACCEDER
B68: 6 | C68: 0 | N68: 8 | O68: =VLOOKUP($N68,Dt!$AN$3:$AR$73,3,0) -> Agrobiología de especies vegetales promisorias de clima frío
B69: 7 | C69: 0 | N69: 34 | O69: =VLOOKUP($N69,Dt!$AN$3:$AR$73,3,0) -> BioethicsGroup
B70: 8 | C70: 0 | N70: 66 | O70: =VLOOKUP($N70,Dt!$AN$3:$AR$73,3,0) -> BioGenEtica & BioDerecho
B71: 9 | C71: 0 | N71: 53 | O71: =VLOOKUP($N71,Dt!$AN$3:$AR$73,3,0) -> BONE
B72: 10 | C72: 0 | N72: 52 | O72: =VLOOKUP($N72,Dt!$AN$3:$AR$73,3,0) -> CATCH
B73: 11 | C73: 0 | N73: 59 | O73: =VLOOKUP($N73,Dt!$AN$3:$AR$73,3,0) -> Células Stem Adultas
B74: 12 | C74: 0 | N74: 33 | O74: =VLOOKUP($N74,Dt!$AN$3:$AR$73,3,0) -> Cultura y Desarrollo Humano
B75: 13 | C75: 0 | N75: 41 | O75: =VLOOKUP($N75,Dt!$AN$3:$AR$73,3,0) -> DAVINCI
B76: 14 | C76: 0 | N76: 4 | O76: =VLOOKUP($N76,Dt!$AN$3:$AR$73,3,0) -> Desarrollo e integración de estrategias alternativas para la protección de cultivos de importancia económica, con énfasis en control biológico.
B77: 15 | C77: 0 | N77: 13 | O77: =VLOOKUP($N77,Dt!$AN$3:$AR$73,3,0) -> DIVERSITAS
B78: 16 | C78: 0 | N78: 11 | O78: =VLOOKUP($N78,Dt!$AN$3:$AR$73,3,0) -> ECMU (Evaluacion en Competencias y Matemáticas Universitarias)
B79: 17 | C79: 0 | N79: 65 | O79: =VLOOKUP($N79,Dt!$AN$3:$AR$73,3,0) -> EDUMECIS
B80: 18 | C80: 0 | N80: 48 | O80: =VLOOKUP($N80,Dt!$AN$3:$AR$73,3,0) -> Energia alternativa, Centro Multidisciplinario de Investigación
B81: 19 | C81: 0 | N81: 64 | O81: =VLOOKUP($N81,Dt!$AN$3:$AR$73,3,0) -> Epidemiología molecular de enfermedades endocrinas
B82: 20 | C82: 0 | N82: 69 | O82: =VLOOKUP($N82,Dt!$AN$3:$AR$73,3,0) -> Epidemiología y Salud Colectiva
B83: 21 | C83: 0 | N83: 42 | O83: =VLOOKUP($N83,Dt!$AN$3:$AR$73,3,0) -> Estructuras y sísmica
N84: 29 | O84: =VLOOKUP($N84,Dt!$AN$3:$AR$73,3,0) -> Estudios Internacionales y Políticos
N85: 5 | O85: =VLOOKUP($N85,Dt!$AN$3:$AR$73,3,0) -> Fitopatologia molecular
N86: 1 | O86: =VLOOKUP($N86,Dt!$AN$3:$AR$73,3,0) -> Fitoplasmas y Virus
N87: 67 | O87: =VLOOKUP($N87,Dt!$AN$3:$AR$73,3,0) -> GAFRED
N88: 47 | O88: =VLOOKUP($N88,Dt!$AN$3:$AR$73,3,0) -> GAV
N89: 28 | O89: =VLOOKUP($N89,Dt!$AN$3:$AR$73,3,0) -> GECS (Grupo de Investigación en Contabilidad y Sociedad)
N90: 36 | O90: =VLOOKUP($N90,Dt!$AN$3:$AR$73,3,0) -> GEOTECNIA
N91: 40 | O91: =VLOOKUP($N91,Dt!$AN$3:$AR$73,3,0) -> GIDAM
N92: 49 | O92: =VLOOKUP($N92,Dt!$AN$3:$AR$73,3,0) -> GI-iTEC - Grupo de Investigación e innovación Tecnológica en Electrónica y Comunicaciones
N93: 46 | O93: =VLOOKUP($N93,Dt!$AN$3:$AR$73,3,0) -> GISSIC: Grupo de Investigacion en Seguridad y Sistemas de Comunicaciones
N94: 51 | O94: =VLOOKUP($N94,Dt!$AN$3:$AR$73,3,0) -> GREST
N95: 16 | O95: =VLOOKUP($N95,Dt!$AN$3:$AR$73,3,0) -> Grupo de Derecho Privado
N96: 15 | O96: =VLOOKUP($N96,Dt!$AN$3:$AR$73,3,0) -> Grupo de derecho público
N97: 12 | O97: =VLOOKUP($N97,Dt!$AN$3:$AR$73,3,0) -> Grupo de Docencia e Investigación en Física
N98: 6 | O98: =VLOOKUP($N98,Dt!$AN$3:$AR$73,3,0) -> Grupo de Ecotoxicología, Evolución, Medio ambiente y conservación (E = mc2)
N99: 27 | O99: =VLOOKUP($N99,Dt!$AN$3:$AR$73,3,0) -> Grupo de estudios contemporáneos en contabilidad, gestión y organizaciones - GECCGO
N100: 25 | O100: =VLOOKUP($N100,Dt!$AN$3:$AR$73,3,0) -> Grupo de Estudios en Ciencias Económicas - CIE
N101: 26 | O101: =VLOOKUP($N101,Dt!$AN$3:$AR$73,3,0) -> Grupo de Estudios Macroeconómicos
N102: 68 | O102: =VLOOKUP($N102,Dt!$AN$3:$AR$73,3,0) -> Grupo de inmunología Clínica Aplicada (GICA)
N103: 2 | O103: =VLOOKUP($N103,Dt!$AN$3:$AR$73,3,0) -> Grupo de investigación en Biodiversidad y ecología de abejas silvestres
N104: 58 | O104: =VLOOKUP($N104,Dt!$AN$3:$AR$73,3,0) -> Grupo de Investigacion en Dermatologia HMC
N105: 7 | O105: =VLOOKUP($N105,Dt!$AN$3:$AR$73,3,0) -> Grupo de Investigación en Hidrobiología Aplicada (HIDROBIA)
N106: 35 | O106: =VLOOKUP($N106,Dt!$AN$3:$AR$73,3,0) -> Grupo de Investigación en Multimedia -GIM-
N107: 10 | O107: =VLOOKUP($N107,Dt!$AN$3:$AR$73,3,0) -> Grupo de investigación en química ambiental y tecnologías limpias - QUATELI
N108: 63 | O108: =VLOOKUP($N108,Dt!$AN$3:$AR$73,3,0) -> Grupo de Investigacion en Urologia HMC
N109: 70 | O109: =VLOOKUP($N109,Dt!$AN$3:$AR$73,3,0) -> Grupo de investigaciones sobre agentes radiológicos, biológicos y químicos
N110: 54 | O110: =VLOOKUP($N110,Dt!$AN$3:$AR$73,3,0) -> Grupo de Psoriasis e Inmunodermatologia
N111: 62 | O111: =VLOOKUP($N111,Dt!$AN$3:$AR$73,3,0) -> Grupo de Rehabilitacion HOMIC-UMNG
N112: 60 | O112: =VLOOKUP($N112,Dt!$AN$3:$AR$73,3,0) -> Grupo de Salud Oral y Cirugia Maxilofacial
N113: 9 | O113: =VLOOKUP($N113,Dt!$AN$3:$AR$73,3,0) -> Grupo Integrado de Investigaciones en Química y Biología (InQuiBio)
N114: 57 | O114: =VLOOKUP($N114,Dt!$AN$3:$AR$73,3,0) -> GRUPO NEUROCIENCIAS HMC
N115: 55 | O115: =VLOOKUP($N115,Dt!$AN$3:$AR$73,3,0) -> Grupo para el estudio de enfermedades respiratorias en nińos. Respira
N116: 32 | O116: =VLOOKUP($N116,Dt!$AN$3:$AR$73,3,0) -> HUMANITAS
N117: 24 | O117: =VLOOKUP($N117,Dt!$AN$3:$AR$73,3,0) -> INAMPE
N118: 19 | O118: =VLOOKUP($N118,Dt!$AN$3:$AR$73,3,0) -> INCONDIS
N119: 43 | O119: =VLOOKUP($N119,Dt!$AN$3:$AR$73,3,0) -> INGENIERÍA, GEOMÁTICA Y EDUCACIÓN (IGE)
N120: 61 | O120: =VLOOKUP($N120,Dt!$AN$3:$AR$73,3,0) -> Kokhlias.
N121: 50 | O121: =VLOOKUP($N121,Dt!$AN$3:$AR$73,3,0) -> LA TRAMOYA
N122: 31 | O122: =VLOOKUP($N122,Dt!$AN$3:$AR$73,3,0) -> LIDERAZGO
N123: 3 | O123: =VLOOKUP($N123,Dt!$AN$3:$AR$73,3,0) -> MATRIX
N124: 21 | O124: =VLOOKUP($N124,Dt!$AN$3:$AR$73,3,0) -> Medios, Mediaciones y Procesos en Educación a Distancia
N125: 23 | O125: =VLOOKUP($N125,Dt!$AN$3:$AR$73,3,0) -> Modelos de simulación ICDIST
N126: 14 | O126: =VLOOKUP($N126,Dt!$AN$3:$AR$73,3,0) -> Nanofab
N127: 20 | O127: =VLOOKUP($N127,Dt!$AN$3:$AR$73,3,0) -> "PYDES" Pedagogía y didáctica en la educación superior
N128: 22 | O128: =VLOOKUP($N128,Dt!$AN$3:$AR$73,3,0) -> PIREO "Procesos de Integración, Regionalización y Estructuras Organizacionales"
N129: 39 | O129: =VLOOKUP($N129,Dt!$AN$3:$AR$73,3,0) -> PRODUCCION, INNOVACION Y TECNOLOGIA
N130: 18 | O130: =VLOOKUP($N130,Dt!$AN$3:$AR$73,3,0) -> PROPPIO: Procesos organizacionales, programaticos y políticos para la promoción del desarrollo
N131: 17 | O131: =VLOOKUP($N131,Dt!$AN$3:$AR$73,3,0) -> Red de estudios sociojurídicos comparados y políticas públicas
N132: 56 | O132: =VLOOKUP($N132,Dt!$AN$3:$AR$73,3,0) -> Salud y Comportamiento
N133: 30 | O133: =VLOOKUP($N133,Dt!$AN$3:$AR$73,3,0) -> Sociedad, Estrategia y Seguridad
N134: 37 | O134: =VLOOKUP($N134,Dt!$AN$3:$AR$73,3,0) -> TIGUM: Grupo de Investigacion en Telemedicina Universidad Militar
N135: 45 | O135: =VLOOKUP($N135,Dt!$AN$3:$AR$73,3,0) -> Tratamiento de agua
N136: 38 | O136: =VLOOKUP($N136,Dt!$AN$3:$AR$73,3,0) -> VOLTA - GMCDP

Sheet Resumen
A1: 2 | G1: *Pueden Ocultar las Filas que no se utilicen.
C2: =General!B2 -> PRESENTACIÓN DE PROYECTOS EN INVESTIGACIÓN DE POSGRADOS | D2: =General!$H$2 -> Fecha de Emisión: 2018/03/07 | E2: =General!$I$2 -> IN-IV-F-14 | G2: =SUM(G7:G14) -> 0 | H2: <=== N° palabras en total
D3: =General!$H$3 -> Revision N°: 3 | E3: ="Página "&A1&" de "&Dt_TPG -> Página 2 de 11 | G3: Palabras | H3: Largo L
A5: 4.- | B5: # | C5: Resumen de la propuesta . | G5: =SUM(G6:G15) -> 0 | H5: =SUM(H6:H15) -> 0
B7: =ROW()-6 -> 1 | G7: =IF(C7="",0,LEN(TRIM(C7))-LEN(SUBSTITUTE(TRIM(C7)," ",""))+1) -> 0 | H7: =LEN(C7) -> 0
B8: =ROW()-6 -> 2 | G8: =IF(C8="",0,LEN(TRIM(C8))-LEN(SUBSTITUTE(TRIM(C8)," ",""))+1) -> 0 | H8: =LEN(C8) -> 0
B9: 3 | G9: =IF(C9="",0,LEN(TRIM(C9))-LEN(SUBSTITUTE(TRIM(C9)," ",""))+1) -> 0 | H9: 0
B10: 4 | G10: 0 | H10: 0
B11: 5 | G11: 0 | H11: 0
B12: 6 | G12: 0 | H12: 0
B13: 7 | G13: 0 | H13: 0
B14: 8 | G14: 0 | H14: 0
C16: =IF(G2>250,I16, "-") -> -
A18: 5.- | B18: # | C18: Planteamiento y justificación de la propuesta. | G18: =SUM(G19:G302) -> 44 | H18: <=== Palabras en total
G19: =IF(C19="",0,LEN(TRIM(C19))-LEN(SUBSTITUTE(TRIM(C19)," ",""))+1) -> 0
B20: =ROW()-19 -> 1 | G20: 0
B21: =ROW()-19 -> 2 | G21: 0
B22: 3 | G22: 0
B23: 4 | G23: 0
B24: 5 | G24: 0
B25: 6 | G25: 0
B26: 7 | G26: 0
B27: 8 | G27: 0
B28: 9 | G28: 0
B29: 10 | G29: 0
G30: 0
G31: 0
G36: =IF(C36="",0,LEN(TRIM(C36))-LEN(SUBSTITUTE(TRIM(C36)," ",""))+1) -> 0 | K36: Si hay duas en riesgos (Ir al documento)
A37: 5.b- | B37: # | C37: Tipos y probabilidad de ocurrencia de riesgos. | G37: =SUM(G38:G317) -> 22 | H37: <=== Palabras en total | K37: http://www.umng.edu.co/gestion-de-riesgos-institucional
G38: =IF(C38="",0,LEN(TRIM(C38))-LEN(SUBSTITUTE(TRIM(C38)," ",""))+1) -> 0
C39: Identificación general del riesgo . Max 100 palabras | G39: =IF(C41="",0,LEN(TRIM(C41))-LEN(SUBSTITUTE(TRIM(C41)," ",""))+1) -> 0 | K39: Identificacion | L39: Impacto | M39: Probabilidad
G40: =IF(C42="",0,LEN(TRIM(C42))-LEN(SUBSTITUTE(TRIM(C42)," ",""))+1) -> 1 | J40: 1 | L40: Catastrofico | M40: Casi seguro
G41: 1 | J41: 2 | L41: Mayor | M41: Probable
C42: Probabilidad | D42: Probable | G42: 7 | J42: 3 | L42: Moderado | M42: Posible
C43: Impacto | D43: Insignificante | G43: 0 | J43: 4 | L43: Menor | M43: Improbable
C44: Acciones de control, detección, mitigación o corrección. | G44: 0 | J44: 5 | L44: Insignificante | M44: Rara vez
G45: 0 | J45: 6
G46: 0 | J46: 7
G47: 0 | J47: 8
G48: 0
G49: 0
G50: 0
G51: 0
G52: =IF(C52="",0,LEN(TRIM(C52))-LEN(SUBSTITUTE(TRIM(C52)," ",""))+1) -> 0
G53: =IF(C53="",0,LEN(TRIM(C53))-LEN(SUBSTITUTE(TRIM(C53)," ",""))+1) -> 0
G54: =IF(C54="",0,LEN(TRIM(C54))-LEN(SUBSTITUTE(TRIM(C54)," ",""))+1) -> 0
C55: *Pueden Ocultar las Filas que no se utilicen ( Favor no eliminar filas). | G55: =IF(C55="",0,LEN(TRIM(C55))-LEN(SUBSTITUTE(TRIM(C55)," ",""))+1) -> 13

Sheet Estado_del_arte
A1: 3 | G1: *Pueden Ocultar las Filas que no se utilicen.
C2: =General!B2 -> PRESENTACIÓN DE PROYECTOS EN INVESTIGACIÓN DE POSGRADOS | D2: =General!$H$2 -> Fecha de Emisión: 2018/03/07 | E2: =General!$I$2 -> IN-IV-F-14
D3: =General!$H$3 -> Revision N°: 3 | E3: ="Página "&A1&" de "&Dt_TPG -> Página 3 de 11 | G3: =SUM(G7:G3500) -> 0 | H3: <== Total de palabras
A5: 6.- | B5: # | C5: Estado del arte de la propuesta o antecedesntes. | G5: Largo
B7: =ROW()-6 -> 1 | G7: =IF(C7="",0,LEN(TRIM(C7))-LEN(SUBSTITUTE(TRIM(C7)," ",""))+1) -> 0
B8: =ROW()-6 -> 2 | G8: =IF(C8="",0,LEN(TRIM(C8))-LEN(SUBSTITUTE(TRIM(C8)," ",""))+1) -> 0
B9: 3 | G9: 0
B10: 4 | G10: 0
B11: 5 | G11: 0
B12: 6 | G12: 0
B13: 7 | G13: 0
B14: 8 | G14: 0
B15: 9 | G15: 0
B16: 10 | G16: 0
B17: 11 | G17: 0
B18: 12 | G18: 0
B19: 13 | G19: 0
B20: 14 | G20: 0
B21: 15 | G21: 0
B22: 16 | G22: 0
B23: 17 | G23: 0
B24: 18 | G24: 0
B25: 19 | G25: 0
B26: 20 | G26: 0
B27: 21 | G27: 0
B28: 22 | G28: 0
B29: 23 | G29: 0
B30: 24 | G30: 0
B31: 25 | G31: 0
B32: 26 | G32: 0
B33: 27 | G33: 0
B34: 28 | G34: 0
B35: 29 | G35: 0
B36: 30 | G36: 0
B40: *Pueden Ocultar las Filas que no se utilicen ( Favor no eliminar filas).

Sheet Objetivos
A1: 4
B2: =General!B2 -> PRESENTACIÓN DE PROYECTOS EN INVESTIGACIÓN DE POSGRADOS | D2: =General!$H$2 -> Fecha de Emisión: 2018/03/07 | E2: =General!$I$2 -> IN-IV-F-14
D3: =General!$H$3 -> Revision N°: 3 | E3: ="Página "&A1&" de "&Dt_TPG -> Página 4 de 11 | G3: =SUM(G7:G3500) -> 0 | H3: <== Total de palabras
A5: 7.- | B5: Objetivos de la propuesta. | G5: Largo
B7: *El especio del Item (0) Cero es para definir el objetivo general los demás corresponden a objetivos especificos
B8: =ROW()-8 -> 0 | G8: =IF(C8="",0,LEN(TRIM(C8))-LEN(SUBSTITUTE(TRIM(C8)," ",""))+1) -> 0
B9: =ROW()-8 -> 1 | G9: 0
B10: 2 | G10: 0
B11: 3 | G11: 0
B12: 4 | G12: 0
B13: 5 | G13: 0
B14: 6 | G14: 0
B15: 7 | G15: 0
B16: 8 | G16: 0
B17: 9 | G17: 0
B18: 10 | G18: 0
B19: 11 | G19: 0
B20: 12 | G20: 0
B21: 13 | G21: 0
B22: 14 | G22: 0
B23: 15 | G23: 0
B31: *Pueden Ocultar las Filas que no se utilicen ( Favor no eliminar filas).

Sheet Etica
A1: 5 | G1: *Pueden Ocultar las Filas que no se utilicen.
C2: =General!B2 -> PRESENTACIÓN DE PROYECTOS EN INVESTIGACIÓN DE POSGRADOS | D2: =General!$H$2 -> Fecha de Emisión: 2018/03/07 | E2: =General!$I$2 -> IN-IV-F-14 | J2: Detalles:
D3: =General!$H$3 -> Revision N°: 3 | E3: ="Página "&A1&" de "&Dt_TPG -> Página 5 de 11 | G3: =SUM(G5:G3524) -> 445 | H3: <== Total de palabras
C5: =$Q$13 -> .
A6: 8b.- | B6: 0 | C6: Consideraciones e implicaciones éticas de la investigación, bioética e integridad científica | E6: ( Si / No ) | G6: Palabras | M6: Validaciones
B7: 1 | C7: Proyecto de investigación en CTeI que involucra seres humanos | E7: No | G7: =IF(C7="",0,LEN(TRIM(C7))-LEN(SUBSTITUTE(TRIM(C7)," ",""))+1) -> 9 | H7: =I7-J7 -> 0 | I7: =IF(OR(E7="No",E7=0),0,1) -> 0 | J7: =MAX(I8:I23) -> 0 | L7: 1 | M7: =VLOOKUP($L7,$B$6:$J$68,7,0) -> 0 | N7: CTeI que involucra seres humanos | P7: =LEN(N7) -> 33 | Q7: =IF(M7=0,"",N7&"; ") -> 
B8: 1.1 | C8: ¿utiliza información exclusiva o reservada por parte de terceros y prevé su forma de acceso? | E8: No | G8: =IF(C8="",0,LEN(TRIM(C8))-LEN(SUBSTITUTE(TRIM(C8)," ",""))+1) -> 15 | I8: =IF(OR(E8="No",E8=0),0,1) -> 0 | L8: 2 | M8: 0 | N8: CTeI involucra animales | P8: 23
C9: =$J$2 -> Detalles: | G9: 1 | I9: =IF(OR(E9="No",E9=0),0,1) -> 0 | L9: 3 | M9: 0 | N9: CTeI involucra fuentes documentales | P9: 35
B10: 1.2 | C10: ¿utiliza información exclusiva o reservada por parte de terceros y prevé su forma de acceso? | E10: No | G10: 15 | I10: 0 | L10: 4 | M10: 0 | N10: CTeI involucra el ambiente | P10: 26
C11: =$J$2 -> Detalles: | G11: 1 | I11: 0 | L11: 5 | M11: 0 | N11: Aspectos de Integridad científica | P11: 33
B12: 1.3 | C12: ¿Utiliza datos personales? | E12: No | G12: 3 | I12: 0 | L12: 6 | M12: 0 | N12: otras razones que ameritan la revisión | P12: 39
C13: =$J$2 -> Detalles: | G13: 1 | I13: 0 | M13: =LEN(N13) -> 0 | N13: =Q7&Q8&Q9&Q10&Q11&Q12 ->  | Q13: =IF(M13>0,"Error, revisar el ítem: "&N13,".") -> .
B14: 1.4 | C14: ¿utiliza información confidencial? | E14: No | G14: 3 | I14: 0
C15: =$J$2 -> Detalles: | G15: 1 | I15: 0
B16: 1.5 | C16: ¿Requiere Consentimiento informado? | E16: No | G16: 3 | I16: 0
C17: =$J$2 -> Detalles: | G17: 1 | I17: 0
B18: 1.6 | C18: ¿indica un modelo de recopilación y conservación de información? | E18: No | G18: 9 | I18: 0
C19: =$J$2 -> Detalles: | G19: 1 | I19: 0
B20: 1.7 | C20: ¿Es una investigación con comunidades vulnerables (indígenas, afrodescendientes, menores o personal subordinado, entre otros)? | E20: No | G20: 14 | I20: 0
C21: =$J$2 -> Detalles: | G21: 1 | I21: 0
B22: 1.8 | C22: ¿Se evidencia conocimiento previo sobre aspectos políticos, económicos sociales y culturales de las comunidades indígenas? | E22: No | G22: 15 | I22: 0
C23: =$J$2 -> Detalles: | G23: 1 | I23: 0
B24: 1.9 | C24: ¿Realiza intervención a través cuestionarios, medicamentos, rutinas, modificación de actividades o estilo de vida? | G24: 14 | I24: 0
C25: =$J$2 -> Detalles: | G25: 1 | I25: 0
B26: 1.10 | C26: ¿incluye modelos de consentimiento informado, uso de datos personales u otro? | E26: No | G26: 11 | I26: 0
C27: =$J$2 -> Detalles: | G27: 1 | I27: 0
B28: 2 | C28: Proyecto de investigación en CTeI involucra animales | E28: No | G28: 7 | H28: =I28-J28 -> 0 | I28: 0 | J28: =MAX(I29:I40) -> 0
B29: 2.1 | C29: ¿Incluye un protocolo de investigación en animales? | E29: No | G29: 7 | I29: 0
C30: =$J$2 -> Detalles: | G30: 1 | I30: 0
B31: 2.2 | C31: ¿Incluye un protocolo de manipulación de recursos biológicos? | E31: No | G31: 8 | I31: 0
C32: =$J$2 -> Detalles: | G32: 1 | I32: 0
B33: 2.3 | C33: ¿Incluye un protocolo de manejo y disposición de sustancias peligrosas, agentes infecciosos y desechos? | E33: No | G33: 14 | I33: 0
C34: =$J$2 -> Detalles: | G34: 1 | I34: 0
B35: 2.4 | C35: ¿hay caracterización de los animales de experimentación criterios de selección de la especie? | E35: No | G35: 13 | I35: 0
C36: =$J$2 -> Detalles: | G36: 1 | I36: 0
B37: 2.5 | C37: ¿se prevé formación previa al equipo de laboratorio por parte del investigador sobre el cuidado permanente del animal y experimentación? | E37: No | G37: 20 | I37: 0
C38: =$J$2 -> Detalles: | G38: 1 | I38: 0
B39: 2.6 | C39: ¿se prevé declaración previa del origen y estado de los animales para experimentación? | E39: No | G39: 13 | I39: 0
C40: =$J$2 -> Detalles: | G40: 1 | I40: 0
B41: 3 | C41: El proyecto de investigación en CTeI involucra fuentes documentales | E41: No | G41: 9 | H41: =I41-J41 -> 0 | I41: 0 | J41: =MAX(I42:I47) -> 0
B42: 3.1 | C42: ¿hace referencia a la anonimización de datos? | E42: No | G42: 7 | I42: 0
C43: =$J$2 -> Detalles: | G43: 1 | I43: 0
B44: 3.2 | C44: ¿prevé conservación de datos de consulta? | E44: No | G44: 6 | I44: 0
C45: =$J$2 -> Detalles: | G45: 1 | I45: 0
B46: 3.3 | C46: ¿se identifica objetivamente que las bases de consulta de acceso abierto pueden ser calificadas de tal manera? | E46: No | G46: 17 | I46: 0
C47: =$J$2 -> Detalles: | G47: 1 | I47: 0
B48: 4 | C48: Proyecto de investigación en CTeI involucra el ambiente | E48: No | G48: 8 | H48: =I48-J48 -> 0 | I48: 0 | J48: =MAX(I49:I52) -> 0
B49: 4.1 | C49: ¿requiere permisos o licencias ambientales como recolección de especímenes, colecciones biológicas, manipulación o movilización de recursos bilógicas? | E49: No | G49: 17 | I49: 0
C50: =$J$2 -> Detalles: | G50: 1 | I50: 0
B51: 4.2 | C51: ¿requiere uso de recursos genéticos? | E51: No | G51: 5 | I51: 0
C52: =$J$2 -> Detalles: | G52: 1 | I52: 0
B53: 5 | C53: Aspectos de Integridad científica | E53: No | G53: 4 | H53: =I53-J53 -> 0 | I53: 0 | J53: =MAX(I54:I64) -> 0
B54: 5.1 | C54: ¿Podría darse un conflicto de interés no declarado entre quienes participan en el proyecto y/o las instituciones coejecutoras y/o las instancias de aprobación y seguimiento? | E54: No | G54: 25 | I54: 0
C55: =$J$2 -> Detalles: | G55: 1 | I55: 0
B56: 5.2 | C56: ¿Hay indicios de que se han fabricado o plagiado datos en la investigación? | E56: No | G56: 13 | I56: 0
C57: =$J$2 -> Detalles: | G57: 1 | I57: 0
B58: 5.3 | C58: ¿se presume que se incluye personal vinculado al proyecto que objetivamente podría no aportar técnica ni intelectualmente al proyecto? | E58: No | G58: 19 | I58: 0
C59: =$J$2 -> Detalles: | G59: 1 | I59: 0
B60: 5.4 | C60: ¿se estima que los recursos y tiempos de dedicación solicitados exceden lo necesario para financiación del proyecto o se prevé que los productos son escasos ante las capacidades y alcance de la propuesta? | E60: No | G60: 33 | I60: 0
C61: =$J$2 -> Detalles: | G61: 1 | I61: 0
B62: 5.5 | C62: ¿Podría darse un conflicto de interés no declarado entre quienes participan en el proyecto y/o las instituciones coejecutoras y/o las instancias de aprobación y seguimiento? | E62: No | G62: 25 | I62: 0
C63: =$J$2 -> Detalles: | G63: 1 | I63: 0
E64: No | G64: 0 | I64: 0
B65: 6 | C65: Existen otras razones que ameritan la revisión por parte del comité de ética de la investigación (indique cuales). | E65: No | G65: 18 | H65: =I65-J65 -> 0 | I65: 0 | J65: =MAX(I66:I68) -> 0
B66: 6.1 | C66: =$J$2 -> Detalles: | G66: 1 | I66: 0
C67: especificaciones de ética de la investigación, bioética e integridad científica que deban ser ampliadas en detalle (indique cuales). | E67: No | G67: 18 | I67: 0
B68: 6.1 | C68: =$J$2 -> Detalles: | G68: =IF(C68="",0,LEN(TRIM(C68))-LEN(SUBSTITUTE(TRIM(C68)," ",""))+1) -> 1 | I68: 0
I69: 0
G70: =IF(C70="",0,LEN(TRIM(C70))-LEN(SUBSTITUTE(TRIM(C70)," ",""))+1) -> 0 | I70: 0
G71: =IF(C71="",0,LEN(TRIM(C71))-LEN(SUBSTITUTE(TRIM(C71)," ",""))+1) -> 0

Sheet Metodología
A1: 5 | G1: *Pueden Ocultar las Filas que no se utilicen.
C2: =General!B2 -> PRESENTACIÓN DE PROYECTOS EN INVESTIGACIÓN DE POSGRADOS | D2: =General!$H$2 -> Fecha de Emisión: 2018/03/07 | E2: =General!$I$2 -> IN-IV-F-14
D3: =General!$H$3 -> Revision N°: 3 | E3: ="Página "&A1&" de "&Dt_TPG -> Página 5 de 11 | G3: =SUM(G7:G3504) -> 0 | H3: <== Total de palabras
A5: 8.- | B5: # | C5: Metodología de la propuesta. | G5: Largo
B7: =ROW()-6 -> 1 | G7: =IF(C7="",0,LEN(TRIM(C7))-LEN(SUBSTITUTE(TRIM(C7)," ",""))+1) -> 0
B8: =ROW()-6 -> 2 | G8: =IF(C8="",0,LEN(TRIM(C8))-LEN(SUBSTITUTE(TRIM(C8)," ",""))+1) -> 0
B9: 3 | G9: 0
B10: 4 | G10: 0
B11: 5 | G11: 0
B12: 6 | G12: 0
B13: 7 | G13: 0
B14: 8 | G14: 0
B15: 9 | G15: 0
B16: 10 | G16: 0
B17: 11 | G17: 0
B18: 12 | G18: 0
B19: 13 | G19: 0
B20: 14 | G20: 0
B21: 15 | G21: 0
B22: 16 | G22: 0
B23: 17 | G23: 0
B24: 18 | G24: 0
B25: 19 | G25: 0
B26: 20 | G26: 0
B27: 21 | G27: 0
B28: 22 | G28: 0
B29: 23 | G29: 0
B30: 24 | G30: 0
B31: 25 | G31: 0
A33: 8b.- | B33: 0 | C33: Consideraciones e implicaciones éticas de la investigación | G33: Largo
B34: =B33+1 -> 1 | G34: =IF(C34="",0,LEN(TRIM(C34))-LEN(SUBSTITUTE(TRIM(C34)," ",""))+1) -> 0
B35: =B34+1 -> 2 | G35: =IF(C35="",0,LEN(TRIM(C35))-LEN(SUBSTITUTE(TRIM(C35)," ",""))+1) -> 0
B36: =B35+1 -> 3 | G36: =IF(C36="",0,LEN(TRIM(C36))-LEN(SUBSTITUTE(TRIM(C36)," ",""))+1) -> 0
B37: =B36+1 -> 4 | G37: =IF(C37="",0,LEN(TRIM(C37))-LEN(SUBSTITUTE(TRIM(C37)," ",""))+1) -> 0
B38: =B37+1 -> 5 | G38: =IF(C38="",0,LEN(TRIM(C38))-LEN(SUBSTITUTE(TRIM(C38)," ",""))+1) -> 0
B44: *Pueden Ocultar las Filas que no se utilicen. No eliminar filas.

Sheet Cronograma
A1: 6 | I1: *Pueden Ocultar las Filas que no se utilicen. | L1: =("* Actualmente tiene "&G7&" meses de ejecución no superar los "& G5&" meses.") -> * Actualmente tiene 0 meses de ejecución no superar los 24 meses.
B2: =General!B2 -> PRESENTACIÓN DE PROYECTOS EN INVESTIGACIÓN DE POSGRADOS | D2: =General!$H$2 -> Fecha de Emisión: 2018/03/07 | E2: =General!$I$2 -> IN-IV-F-14
D3: =General!$H$3 -> Revision N°: 3 | E3: ="Página "&A1&" de "&Dt_TPG -> Página 6 de 11
A5: 9.- | B5: Cronograma de actividades a desarrollar | E5: =Integrantes!J6 -> 24 | G5: =E5 -> 24 | H5: Meses Maximo | I5: Palabras
B7: No | C7: Descripción básica de la actividad | D7: Mes de Inicio | E7: Duración en mes | G7: =MAX(G8:G27) -> 0 | H7: Meses de ejecición actuales | I7: =SUM(I8:I27) -> 0 | J7: <== Total de palabras
B8: =ROW()-7 -> 1 | E8: 0 | G8: =SUM(D8:E8) -> 0 | I8: =IF(C8="",0,LEN(TRIM(C8))-LEN(SUBSTITUTE(TRIM(C8)," ",""))+1) -> 0
B9: =ROW()-7 -> 2 | G9: =SUM(D9:E9) -> 0 | I9: =IF(C9="",0,LEN(TRIM(C9))-LEN(SUBSTITUTE(TRIM(C9)," ",""))+1) -> 0
B10: 3 | G10: 0 | I10: 0
B11: 4 | G11: 0 | I11: 0
B12: 5 | G12: 0 | I12: 0
B13: 6 | G13: 0 | I13: 0
B14: 7 | G14: 0 | I14: 0
B15: 8 | G15: 0 | I15: 0
B16: 9 | G16: 0 | I16: 0
B17: 10 | G17: 0 | I17: 0
B18: 11 | G18: 0 | I18: 0
B19: 12 | G19: 0 | I19: 0
B20: 13 | G20: 0 | I20: 0
B21: 14 | G21: 0 | I21: 0
B22: 15 | G22: 0 | I22: 0
B23: 16 | G23: 0 | I23: 0
B24: 17 | G24: 0 | I24: 0
B25: 18 | G25: 0 | I25: 0
B26: 19 | G26: 0 | I26: 0
B27: 20 | G27: 0 | I27: 0
C29: =IF(G7>G5,L1,".") -> .
B33: *Pueden Ocultar las Filas que no se utilicen. No eliminen filas

Sheet Productos
A1: 7
B2: =Cronograma!B2 -> PRESENTACIÓN DE PROYECTOS EN INVESTIGACIÓN DE POSGRADOS | G2: =General!$H$2 -> Fecha de Emisión: 2018/03/07 | H2: =General!$I$2 -> IN-IV-F-14
G3: =General!$H$3 -> Revision N°: 3 | H3: ="Página "&A1&" de "&Dt_TPG -> Página 7 de 11 | K3: N | L3: Abreviatura | M3: IdClase | N3: POS | O3: IMP | P3: Clase | Q3: Tipo de Productos | R3: Indicadores | S3: o | T3: Ok
G4: =IF(H5="POS",3,0) -> 3 | K4: 101 | L4: 101- Artículo en Cuartil 1 (Q1) del SJR (Scopus) o del JCR (Web of Science) | M4: GNC | N4: 60 | P4: Productos de Generación de Nuevo Conocimiento (GNC) | R4: Copia del sometimiento y copia del artículo enviado a la revista | T4: =SUMIF($J$7:$J$28,$K4,$F$7:$F$28) -> 0
A5: 10.- | B5: Productividad comprometida | F5: Tipo de proyecto: | H5: =General!$H$1 -> POS | K5: 102 | L5: 102- Artículo en Cuartil 2 (Q2) del SJR (Scopus) o del JCR (Web of Science) WoS | M5: GNC | N5: 50 | P5: Productos de Generación de Nuevo Conocimiento (GNC) | R5: Copia del sometimiento y copia del artículo enviado a la revista | T5: =SUMIF($J$7:$J$28,$K5,$F$7:$F$28) -> 0
C6: Selección de topes comprometidos | K6: 103 | L6: 103- Artículo en Cuartil 3 (Q3) del SJR (Scopus) o del JCR (Web of Science) y/o Homologada B Colciencias | M6: GNC | N6: 40 | P6: Productos de Generación de Nuevo Conocimiento (GNC) | R6: Copia del sometimiento y copia del artículo enviado a la revista | T6: 0
B7: N° | C7: Resultado/Producto esperado | D7: Descripción o detalles del producto esperado | E7: Indicador | F7: Cantidad | G7: Total de puntos | H7: Benefi-ciario | K7: 104 | L7: 104- Artículo en Cuartil 4 (Q4) del SJR (Scopus) o del JCR (Web of Science) y/o Homologada C Colciencias | M7: GNC | N7: 30 | P7: Productos de Generación de Nuevo Conocimiento (GNC) | R7: Copia del sometimiento y copia del artículo enviado a la revista | T7: 0
B8: =ROW()-7 -> 1 | E8: =IFERROR(VLOOKUP($C8,$L$3:$T$54,7,0)," ") ->  | F8: 1 | G8: =IFERROR(F8*VLOOKUP($C8,$L$3:$T$54,G$4,0)," ") ->  | J8: =IFERROR(ABS(LEFT(C8,3)),0) -> 0 | K8: 105 | L8: 105- Revista colombiana indexada en Publindex en A1 (Sí no está en SJR o JCR) | M8: GNC | N8: 0 | P8: Productos de Generación de Nuevo Conocimiento (GNC) | R8: Copia del sometimiento y copia del artículo enviado a la revista | T8: 0
B9: =ROW()-7 -> 2 | F9: 1 | J9: =IFERROR(ABS(LEFT(C9,3)),0) -> 0 | K9: 106 | L9: 106- Revista colombiana indexada en publindex en A2 (sino está en SJR o JCR) | M9: GNC | N9: 0 | P9: Productos de Generación de Nuevo Conocimiento (GNC) | R9: Copia del sometimiento y copia del artículo enviado a la revista | T9: 0
B10: 3 | F10: 1 | J10: 0 | K10: 107 | L10: 107- Revista colombiana indexada en publindex en B (sino está en SJR o JCR) | M10: GNC | N10: 0 | P10: Productos de Generación de Nuevo Conocimiento (GNC) | R10: Copia del sometimiento y copia del artículo enviado a la revista | T10: 0
B11: 4 | F11: 1 | J11: 0 | K11: 108 | L11: 108- Revista colombiana indexada en publindex en C (sino está en SJR o JCR) | M11: GNC | N11: 0 | P11: Productos de Generación de Nuevo Conocimiento (GNC) | R11: Copia del sometimiento y copia del artículo enviado a la revista | T11: 0
B12: 5 | F12: 1 | J12: 0 | K12: 109 | L12: 109- Libro de investigación en colección indexada en Scopus o indexado en el Book Citation Index BCI (WoS) | M12: GNC | N12: 60 | P12: Productos de Generación de Nuevo Conocimiento (GNC) | R12: Copia del sometimiento ante editorial Neogranadina o editorial externa y copia del libro enviado a la editorial | T12: 0
B13: 6 | F13: 1 | J13: 0 | K13: 110 | L13: 110- Libro de investigación publicado por la Editorial Neogranadina o que cumple con los parámetros de Colciencias para que sea reconocido como producto de Generación de Nuevo Conocimiento | M13: GNC | N13: 40 | P13: Productos de Generación de Nuevo Conocimiento (GNC) | R13: Copia del sometimiento ante editorial Neogranadina o editorial externa y copia del libro enviado a la editorial | T13: 0
B14: 7 | F14: 1 | J14: 0 | K14: 111 | L14: 111- Capítulo incluido en libro dentro de una colección indexada en Scopus o libro indexado en el Book Citation Index (WoS) | M14: GNC | N14: 40 | P14: Productos de Generación de Nuevo Conocimiento (GNC) | R14: Copia del sometimiento ante editorial Neogranadina o editorial externa (copia del proyecto editorial de libro en el que se incluiría el capítulo y del aval de la Editorial sobre ese proyecto) y copia del capítulo de libro enviado a la editorial | T14: 0
B15: 8 | F15: 1 | J15: 0 | K15: 112 | L15: 112- Capítulo en libro de la Editorial Neogranadina o en libro que cumple con los parámetros de Colciencias para que sea reconocido como producto de Generación de Nuevo Conocimiento | M15: GNC | N15: 30 | P15: Productos de Generación de Nuevo Conocimiento (GNC) | R15: Copia del sometimiento ante editorial Neogranadina o editorial externa (copia del proyecto editorial de libro en el que se incluiría el capítulo y del aval de la Editorial sobre ese proyecto) y copia del capítulo de libro enviado a la editorial | T15: 0
B16: 9 | F16: 1 | J16: 0 | K16: 113 | L16: 113- Publicación en gaceta de variedades vegetales protegidas o equivalente con estado de admisión | M16: GNC | N16: 40 | P16: Productos de Generación de Nuevo Conocimiento (GNC) | R16: Solicitud de Certificado de obtentor de variedad vegetal expedido por el Instituto Colombiano Agropecuario (ICA) o solicitud de inscripción en el registro nacional de cultivadores | T16: 0 | Z16: Publicación en la gaceta del ICA, Constancia expedida por el ICA que indique en qué etapa del proceso se encuentra la solicitud.
B17: 10 | F17: 1 | J17: 0 | K17: 114 | L17: 114- Nota Científica Impresa o electrónica sometida en revista indexada del SJR (Scopus) o del JCR (Web of Science) que cumpla con los parámetros de Colciencias para que sea reconocido como producto de Generación de Nuevo Conocimiento | M17: GNC | N17: 30 | P17: Productos de Generación de Nuevo Conocimiento (GNC) | R17: Copia del sometimiento y copia de la nota científica enviada a la revista | T17: 0
B18: 11 | F18: 1 | J18: 0 | K18: 201 | L18: 201- Software aprobado para registro ante la DNDA, de acuerdo con procedimientos establecidos por la UMNG. | M18: DTI | N18: 20 | P18: Productos resultado de actividades de desarrollo tecnológico e innovación (DTI) | R18: Programas, archivos ejecutables, manual técnico y de ususario, solicitud de registro ante la DNDA. | T18: 0
B19: 12 | F19: 1 | J19: 0 | K19: 202 | L19: 202- Esquema de trazado de circuito integrado registrado ante la SIC a través de acto administrativo que resuelva la concesión favorable. | M19: DTI | N19: 10 | P19: Productos resultado de actividades de desarrollo tecnológico e innovación (DTI) | R19: Solicitud de registro ante la SIC | T19: 0
B20: 13 | F20: 1 | J20: 0 | K20: 203 | L20: 203- Regulaciones, normas, reglamentos o legislaciones implementadas internacionalmente, acorde con parámetros de Colciencias | M20: DTI | N20: 20 | P20: Productos resultado de actividades de desarrollo tecnológico e innovación (DTI) | R20: Copia de la norma, reglamento o legislación y certificado de la Entidad que emitió la reglamentación o normatividad | T20: 0
B21: 14 | F21: 1 | J21: 0 | K21: 204 | L21: 204- Regulaciones, normas, reglamentos o legislaciones implementadas nacionalmente (no institucional), acorde con parámetros de Colciencias | M21: DTI | N21: 10 | P21: Productos resultado de actividades de desarrollo tecnológico e innovación (DTI) | R21: Copia de la norma, reglamento o legislación y certificado de la Entidad que emitió la reglamentación o normatividad | T21: 0
B22: 15 | F22: 1 | K22: 205 | L22: 205- Prototipo en estado de desarrollo TRL4 | M22: DTI | N22: 15 | P22: Productos resultado de actividades de desarrollo tecnológico e innovación (DTI) | R22: Fotos, video del prototipo en funcionamiento, manual técnico y manual de usuario (Prototipo, proceso, producto con resultados investigación en TRL 4) | T22: 0
B23: 16 | F23: 1 | K23: 301 | L23: 301- Ponencia en evento Internacional de acuerdo a los requisitos de la resolución de movilidad vigente. | M23: SAC | N23: 10 | P23: Producción resultado de actividades de apropiación social del conocimiento (ASC) | R23: Copia del trabajo presentado en el evento y memorias del evento con ISSN o ISBN y/o certificado de ponente | T23: 0
B24: 17 | F24: 1 | K24: 302 | L24: 302- Ponencia en evento nacional de acuerdo a los requisitos de la resolución de movilidad vigente. | M24: SAC | N24: 5 | P24: Producción resultado de actividades de apropiación social del conocimiento (ASC) | R24: Copia del trabajo presentado en el evento y memorias del evento con ISSN o ISBN y/o certificado de ponente | T24: 0
B25: 18 | F25: 1 | K25: 303 | L25: 303- Participación ciudadana en CTeI acorde con parámetros del modelo de medición de grupos de investigación- Colciencias | M25: SAC | N25: 10 | P25: Producción resultado de actividades de apropiación social del conocimiento (ASC) | R25: Constancia de la participación o aval de la comunidad para su inclusión en el proyecto de CTeI o espacios de encuentro | T25: 0
B26: 19 | F26: 1 | K26: 304 | L26: 304- Conjunto de información molecular que haya sido publicado en revista científica especializada y en una base de datos o repositorio de acceso público acorde con los parámetros del modelo de medición de grupos de investigación - Colciencias | M26: SAC | N26: 10 | P26: Producción resultado de actividades de apropiación social del conocimiento (ASC) | R26: Certificación de la nueva secuencia genética y base de datos científica (nombre y url)) | T26: 0
B27: 20 | F27: 1 | K27: 401 | L27: 401- Dirección o codirección de Tesis de estudiantes en programas de Doctorado de la UMNG, con temáticas asociadas a la línea de investigación a la que pertenece el proyecto | M27: FRH | N27: 30 | P27: Formación de Recurso Humano (FRH) | R27: Acta del comité de de investigacion donde se designa al director o Certificado de la unidad Academica y anteproyecto de tesis doctoral | T27: 0
K28: 402 | L28: 402- Dirección o codirección de trabajos de grado de estudiantes en programas de Maestría de la UMNG, con temáticas asociadas a línea de investigación a la que pertenece el proyecto | M28: FRH | N28: 15 | P28: Formación de Recurso Humano (FRH) | R28: Acta del comité de de investigacion donde se designa al director o Certificado de la unidad Academica y anteproyecto de tesis de grado | T28: 0
B29: T | C29: ="En el caso de aprobacion se liquidara el proyecto con "&V_Max&" Pts." -> En el caso de aprobacion se liquidara el proyecto con 0 Pts. | F29: =SUM(F7:F27) -> 20 | G29: =INT(SUM(G7:G27)) -> 0 | K29: 403 | L29: 403- Vinculación por mínimo ocho meses de un Joven investigador según los criterios de la Resolución institucional que actualiza la reglamentación sobre vinculación de personal a los proyectos de investigación financiados o cofinanciados por la UMNG en los programas de CTeI o la que se encuentre vigente para el momento de la ejecución del proyecto | M29: FRH | N29: 10 | P29: Formación de Recurso Humano (FRH) | R29: Contrato OPS | T29: 0
B30: =IF(V_Max>H40,Q56,"") ->  | K30: 404 | L30: 404- Dirección o codirección de Trabajo de estudiantes en programas de pregrado de la UMNG, con temáticas asociadas a línea de investigación a la que pertenece el proyecto. | M30: FRH | N30: 5 | P30: Formación de Recurso Humano (FRH) | R30: Copia del acta sustentación del proyecto de grado | T30: 0
K31: 405 | L31: 405- Tutoría de un proyecto de iniciación científica de estudiantes de la UMNG, con temáticas asociadas a línea de investigación a la que pertenece el proyecto. | M31: FRH | N31: 5 | P31: Formación de Recurso Humano (FRH) | R31: Informe final y acta del Comité de investigaciones con el aval del cierre del PIC | T31: 0
B32: N | C32: Sigla | D32: Clase | G32: Mínimo | H32: No | K32: 501 | L32: 501- Nueva propuesta conducente al ingreso de recursos externos en efectivo a la UMNG, superiores a la contrapartida en especie comprometida por la UMNG. Debe estar sometida a alguna convocatoria externa arbitrada por pares y acompañarse de carta de aval de la UMNG, previa realización del procedimiento de calidad o normatividad vigente para proyectos externos. | M32: GI | N32: 10 | P32: Gestión de la Investigación (GI) | R32: Carta de aval de institucional y registro de sometimiento a la convocatoria externa o a la entidad financiadora o coordinadora de la convocatoria | T32: 0
B33: 1 | C33: GNC | D33: Productos de Generación de Nuevo Conocimiento (GNC) | G33: 1 | H33: =SUMIF($M$4:$M$54,$C33,$T$4:$T$54) -> 0 | K33: 502 | L33: 502- Nueva propuesta conducente a ingreso a la UMNG de recursos externos en efectivo, superiores a la contrapartida en especie comprometida por la UMNG por un valor mayor o igual a 200 SMMLV. Debe estar sometido a alguna convocatoria externa | M33: GI | N33: 30 | P33: Gestión de la Investigación (GI) | R33: Carta de aval de institucional y registro de sometimiento a la convocatoria externa o a la entidad financiadora o coordinadora de la convocatoria | T33: 0
B34: 2 | C34: DTI | D34: Desarrollo tecnológico e innovación (DTI) | G34: 1 | H34: =SUMIF($M$4:$M$54,$C34,$T$4:$T$54) -> 0 | K34: 503 | L34: 503- Nueva propuesta conducente a ingreso a la UMNG de recursos externos en efectivo, superiores a la contrapartida en especie comprometida por la UMNG por un valor mayor o igual a 200 SMMLV. Debe estar sometido a alguna convocatoria externa internacional | M34: GI | N34: 40 | P34: Gestión de la Investigación (GI) | R34: Carta de aval de institucional y registro de sometimiento a la convocatoria externa o a la entidad financiadora o coordinadora de la convocatoria | T34: 0
B35: 3 | C35: FRH | D35: Formación de Recurso Humano (FRH) | H35: =SUMIF($M$4:$M$54,$C35,$T$4:$T$54) -> 0 | K35: 504 | L35: 504- Ejecución del proyecto, sometido a la presente convocatoria, en la modalidad de cooperación a través de convenio especial de cooperación o instrumento contractual equivalente, con instituciones de carácter nacional que cumplan con el criterio de evaluación de colaboración externa, enunciado en los presentes términos de referencia. | M35: GI | N35: 5 | P35: Gestión de la Investigación (GI) | R35: Convenio perfeccionado y acta de inicio y presupuestal firmadas. | T35: 0
B36: 4 | C36: SAC | D36: Socialización y Apropiacióndel Conocimiento (SAC) | H36: =SUMIF($M$4:$M$54,$C36,$T$4:$T$54) -> 0 | K36: 505 | L36: 505- Ejecución del proyecto, sometido a la presente convocatoria, en la modalidad de cooperación a través de convenio especial de cooperación o instrumento contractual equivalente, con instituciones de carácter internacional en la que mínimo una de ellas tiene domicilio en el exterior y que cumplan con el criterio de evaluación de colaboración externa, enunciado en los presentes términos de referencia. | M36: GI | N36: 10 | P36: Gestión de la Investigación (GI) | R36: Convenio perfeccionado y acta de inicio y presupuestal firmadas. | T36: 0
B37: 5 | C37: GI | D37: Gestión de Investigación (GI) | H37: =SUMIF($M$4:$M$54,$C37,$T$4:$T$54) -> 0 | T37: 14
H39: Max Puntos
B40: Cuadro validación de productos por Sigla | F40: =IF(H5="IMP",3,2) -> 2 | G40: =Gp_Max -> 0 | H40: =IFERROR(VLOOKUP($G$40,$S$56:$U$63,$F$40,0),0) -> 0
C42: Grupo Maximo | D42: =Gp_Max -> 0 | E42: =M60& " Pts. Maximos" -> 0 Pts. Maximos | G42: ="Con : $"&N60&" Millones Max" -> Con : $0 Millones Max
C44: Validación de cumplimiento de productividad por siglas.
P56: =V_Max-H40 -> 0 | Q56: ="*Nota: supera en "&P56&" Pts. el limite máximo puntos por nivel de grupo de :"&H40&" Pts." -> *Nota: supera en 0 Pts. el limite máximo puntos por nivel de grupo de :0 Pts. | R56: =General!C7 -> Fortalecimiento Posgrados | S56: T | T56: INV | U56: IMP
Q57: * debe por lo menos tener 100 puntos para cumplir los topes requisto de la convocatoria (INV) | S57: A | T57: 199 | U57: 300
B58: Hay error de productos si es mayor a 0 | E58: =SUM(C54:F54) -> 0 | F58: =TRIM(C55&D55&E55&F55) ->  | N58: Preupuesto | S58: A1 | T58: 199 | U58: 300
B59: =IF(E58>0,"Error: Debe seleccionar producto(s) de esta(s) categoria(s): "&F58&" ","OK") -> OK | M59: Pts Sobrantes | S59: B | T59: 199 | U59: 300
B60: Validacion de Grupos con la mayor categoría | L60: TRUE | M60: =IFERROR(VLOOKUP($L$60,$L$62:$M$67,2,0),0) -> 0 | N60: =IFERROR(VLOOKUP(L60,L62:N67,3,0),0) -> 0 | O60: << Tope al que aplica el proyecto | S60: C | T60: 199 | U60: 300
B61: N | C61: No Grpos General | D61: Clasif | E61: Millo por tope | F61: Ptoy | G61: 0 | S61: R | T61: 59 | U61: 0
B62: 1 | C62: =COUNTIF(Dt!$AR$3:$AR$102,D62) -> 7 | D62: A | F62: =COUNTIF($L$71:$L$74,D62) -> 0 | G62: =IF(G61=0,IF(F62>0,D62,0),G61) -> 0 | L62: =V_Max>=M62 -> FALSE | M62: 200 | N62: 100 | S62: NR | T62: 39 | U62: 0
B63: 2 | C63: =COUNTIF(Dt!$AR$3:$AR$102,D63) -> 3 | D63: A1 | F63: 0 | G63: 0 | L63: FALSE | M63: 100 | N63: 100 | S63: NA | T63: 0 | U63: 0
B64: 3 | C64: =COUNTIF(Dt!$AR$3:$AR$102,D64) -> 6 | D64: B | F64: 0 | G64: 0 | L64: FALSE | M64: 50 | N64: 0
B65: 4 | C65: =COUNTIF(Dt!$AR$3:$AR$102,D65) -> 42 | D65: C | F65: 0 | G65: 0 | L65: FALSE | M65: 40 | N65: 0 | S65: Pts | U65: 10
B66: 5 | C66: =COUNTIF(Dt!$AR$3:$AR$102,D66) -> 6 | D66: R | F66: 0 | G66: 0 | L66: FALSE | M66: 20 | N66: 0
B67: 6 | C67: =COUNTIF(Dt!$AR$3:$AR$102,D67) -> 9 | D67: NR | F67: 0 | G67: 0 | L67: FALSE | M67: 10 | N67: 0
B68: 7 | C68: =COUNTIF(Dt!$AR$3:$AR$102,D68) -> 2 | D68: NA | E68: 0 | F68: 0 | G68: 0
E70: Mayor Grupo | F70: Final | G70: =G68 -> 0
K71: Clasificacion | N71: No | O71: Codigo | P71: Grupos Participantes
L72: =IFERROR(VLOOKUP($P72,Dt_GrpClas,2,0),0) -> 0 | O72: 1 | P72: =General!L17 -> 0 | Q72: =General!D17 -> 0
L73: =IFERROR(VLOOKUP($P73,Dt_GrpClas,2,0),0) -> 0 | O73: 2 | P73: =General!L21 -> 0 | Q73: =General!D21 -> 0
L74: =IFERROR(VLOOKUP($P74,Dt_GrpClas,2,0),0) -> 0 | O74: 3 | P74: =General!L25 -> 0 | Q74: =General!D25 -> 0
L76: Tabla de Errores | R76: Validaciones | S76: =MAX(S77:S90) -> 2
L77: =VLOOKUP($S$76,K78:L88,2,0) -> Deben por lo menos tener 100 Puntos para poder cumplir con los topes de la convocatoria! | R77: No cumple con las clases de Productividad | S77: =IF(SUM(H33:H34)<1,1,0) -> 1
K78: 0 | M78: Ok sin Error | R78: Si es menor de 20 Pts en productividad | S78: =IF(V_Max<M65,2,0) -> 2
K79: 1 | L79: ="Error: Debe tener por lo menos un producto en SIGLAS (GNC) o (DTI)." -> Error: Debe tener por lo menos un producto en SIGLAS (GNC) o (DTI). | R79: Si hay productos sin cantidad | S79: =IF(U79<=V82,0,3) -> 0 | U79: =COUNTA(C8:C27) -> 0
K80: 2 | L80: =" Deben por lo menos tener "&IF(H5="POS",100,0) &" Puntos para poder cumplir con los topes de la convocatoria!" -> Deben por lo menos tener 100 Puntos para poder cumplir con los topes de la convocatoria!
K81: 3 | L81: ="Error : Tiene selecionados "&U79 &" productos sin cantidad en algunos." -> Error : Tiene selecionados 0 productos sin cantidad en algunos.
K82: 4 | V82: =COUNTIF(F8:F27,">"&0) -> 20
K83: 5
K84: 6
K85: 7
K86: 8
K87: 9
K88: 10

Sheet Integrantes
A1: 8
B3: =Productos!B2 -> PRESENTACIÓN DE PROYECTOS EN INVESTIGACIÓN DE POSGRADOS | F3: =General!$H$2 -> Fecha de Emisión: 2018/03/07 | G3: IN-IV-F-14 | M3: Ok | N3: Puntos | O3: IP Max | P3: IP Min | Q3: CO Max | R3: CO Min | S3: CR
F4: =General!$H$3 -> Revision N°: 3 | G4: ="Página "&A1&" de "&Dt_TPG -> Página 8 de 11 | H4: ="Página "&A2&" de "&Dt_TPG -> Página de 11 | J4: 20 | M4: =IF(H6>=100,1,0) -> 0 | N4: =S8 -> 0 | O4: =VLOOKUP($M$4,$M$8:$T$23,3,0) -> 0 | P4: =VLOOKUP($M$4,$M$8:$T$23,4,0) -> 0 | Q4: =VLOOKUP($M$4,$M$8:$T$23,5,0) -> 0 | R4: =VLOOKUP($M$4,$M$8:$T$23,6,0) -> 0 | S4: =VLOOKUP($M$4,$M$8:$T$23,2,0) -> 30 | T4: =VLOOKUP($M$4,$M$8:$T$23,8,0) -> 50
A6: 11.- | B6: Investigadores Integrantes del proyecto. | F6: =Cel_TP -> POS | G6: =Cel_Fac -> NT | H6: =V_Max -> 0 | J6: =IF(F6="FOR",12,24) -> 24 | W6: * Cuadro para tener relación entre Fincion y Tipo de Vinculo
B8: No | C8: Identificacion | D8: Nombres | E8: Apellidos | F8: Nivel Academico | G8: Mes | H8: Horas | J8: Max | K8: Min | M8: Ok | N8: Puntos | O8: IP Max | P8: IP Min | Q8: CO Max | R8: CO Min | S8: =H6 -> 0 | T8: Valores | W8: Funcion | X8: y | Y8: Vinculo | Z8: Mes | AA8: Fila
B9: 1 | D9: a | G9: =J6 -> 24 | J9: =O4 -> 0 | K9: =P4 -> 0 | L9: =IF(OR(H9>J9,H9<K9),1,0) -> 0 | M9: =IF(SUM($M$10:$M$23)=0,1,IF(N9=S9,1,0)) -> 1 | N9: 20 | O9: 0 | P9: 0 | Q9: 0 | R9: 0 | S9: =INT(S8/10)*10 -> 0 | T9: 25 | W9: Investigador Principal | X9: =$X$8&"9:"&$X$8&"10" -> y9:y10 | Y9: Doc. Carrera TC | Z9: =G9 -> 24 | AA9: =ROW() -> 9
C10: Funcion : | D10: Investigador Principal | E10: Doc. Carrera TC | J10: =IFERROR(VLOOKUP($F10,V_IdNBC,2,0),0) -> 0 | L10: Doc. Carrera MT | M10: =IF(N10=S10,1,0) -> 0 | N10: =N9+10 -> 30 | O10: 0 | P10: 0 | Q10: 0 | R10: 0 | S10: =INT(S9/5)*5 -> 0 | T10: 50 | W10: Investigador Principal | X10: =$X$8&"9:"&$X$8&"10" -> y9:y10 | Y10: Doc. Carrera MT | Z10: =Z9 -> 24 | AA10: =ROW() -> 10
C11: CvLac: | J11: =IF($D10=$W$19,20,IFERROR(VLOOKUP($E10,$Y$8:$Z$20,2,0),$G$9)) -> 24 | K11: =IF($D10=$W$11,IF($E10=$Y$13,10,12),0) -> 0 | M11: 0 | N11: =N10+10 -> 40 | O11: 0 | P11: 0 | Q11: 0 | R11: 0 | S11: 0 | T11: 75 | W11: Co_Tutores | X11: =$X$8&"11:"&$X$8&"14" -> y11:y14 | Y11: Doc. Carrera TC | Z11: =Z10 -> 24 | AA11: =ROW() -> 11
B12: 2 | G12: 10 | J12: 0 | K12: =IF(E13=$Y$14,0,IF($D13="Coinvestigador",$R$4,0)) -> 0 | L12: =IF(OR(H12>J12,H12<K12),1,0) -> 0 | M12: 0 | N12: 50 | O12: 0 | P12: 0 | Q12: 0 | R12: =P12 -> 0 | S12: 0 | T12: 100 | W12: Co_Tutores | X12: =$X$8&"11:"&$X$8&"14" -> y11:y14 | Y12: Doc. Carrera MT | Z12: =Z11 -> 24 | AA12: =ROW() -> 12
B13: =+B12 -> 2 | C13: Funcion : | D13: Auxiliar de Investigación. | E13: Estímulo a estudiante | J13: =IFERROR(VLOOKUP($F13,V_IdNBC,2,0),0) -> 0 | K13: =IF($D13=$K$10,"Ok","") ->  | M13: 0 | N13: 60 | O13: 0 | P13: 0 | Q13: 0 | R13: =P13 -> 0 | S13: 0 | T13: 100 | W13: Co_Tutores | X13: =$X$8&"11:"&$X$8&"14" -> y11:y14 | Y13: Doc. Ocasional | Z13: 10 | AA13: =ROW() -> 13
B14: =+B13 -> 2 | C14: CvLac: | J14: =IF($D13=$W$19,20,IFERROR(VLOOKUP($E13,$Y$8:$Z$20,2,0),$G$9)) -> 10 | K14: =IF($D13=$W$11,IF($E13=$Y$13,10,12),0) -> 0 | M14: 0 | N14: 70 | O14: 0 | P14: 0 | Q14: 0 | R14: 0 | S14: 0 | T14: 100 | W14: Co_Tutores | X14: =$X$8&"11:"&$X$8&"14" -> y11:y14 | Y14: Externo a la UMNG | Z14: =Z12 -> 24 | AA14: =ROW() -> 14
B15: =B12+1 -> 3 | G15: =G12 -> 10 | J15: 0 | K15: =IF(E16=$Y$14,0,IF($D16="Coinvestigador",$R$4,0)) -> 0 | L15: =IF(OR(H15>J15,H15<K15),1,0) -> 0 | M15: 0 | N15: 80 | O15: 0 | P15: 0 | Q15: 0 | R15: 0 | S15: 0 | T15: 100 | W15: Asesor | X15: =$X$8&AA15&":"&$X$8&AA15 -> y15:y15 | Y15: Externo a la UMNG | Z15: =Z14 -> 24 | AA15: =ROW() -> 15
B16: =+B15 -> 3 | C16: Funcion : | J16: =IFERROR(VLOOKUP($F16,V_IdNBC,2,0),0) -> 0 | K16: =IF($D16=$K$10,"Ok","") -> Ok | M16: 0 | N16: 90 | O16: 0 | P16: 0 | Q16: 0 | R16: 0 | S16: 0 | T16: 100 | W16: Asistente OPS | X16: y16:y16 | Y16: OPS - Prestación Servicios | Z16: 10 | AA16: =ROW() -> 16
B17: =+B16 -> 3 | C17: CvLac: | J17: =IF($D16=$W$19,20,IFERROR(VLOOKUP($E16,$Y$8:$Z$20,2,0),$G$9)) -> 24 | K17: =IF($D16=$W$11,IF($E16=$Y$13,10,12),0) -> 0 | M17: 0 | N17: 100 | O17: 20 | P17: 12 | Q17: 10 | R17: 8 | S17: 0 | T17: 100 | W17: Auxiliar de Investigación. | X17: y17:y17 | Y17: Estímulo a estudiante | Z17: 10 | AA17: =ROW() -> 17
B18: =B15+1 -> 4 | G18: =G15 -> 10 | J18: =IF($E19=$Y$15,IF($D19=$W$15,0,40),IF($D19="Coinvestigador",J$9/2,40)) -> 40 | K18: =IF(E19=$Y$14,0,IF($D19="Coinvestigador",$R$4,0)) -> 0 | L18: =IF(OR(H18>J18,H18<K18),1,0) -> 0 | M18: 0 | N18: 110 | O18: =O17 -> 20 | P18: =P17 -> 12 | Q18: =Q17 -> 10 | R18: =R17 -> 8 | S18: 0 | T18: 100 | W18: Joven Investigador | X18: y18:y18 | Y18: OPS - Prestación Servicios | Z18: 10 | AA18: =ROW() -> 18
B19: =+B18 -> 4 | C19: Funcion : | J19: =IFERROR(VLOOKUP($F19,V_IdNBC,2,0),0) -> 0 | K19: =IF($D19=$K$10,"Ok","") -> Ok | M19: 0 | N19: 120 | O19: 20 | P19: 12 | Q19: 10 | R19: 8 | S19: 0 | T19: 100 | W19: Asistente Graduado | X19: y19:y19 | Y19: Estímulo a estudiante | Z19: 10 | AA19: =ROW() -> 19
B20: =+B19 -> 4 | C20: CvLac: | J20: =IF($D19=$W$19,20,IFERROR(VLOOKUP($E19,$Y$8:$Z$20,2,0),$G$9)) -> 24 | K20: =IF($D19=$W$11,IF($E19=$Y$13,10,12),0) -> 0 | M20: 0 | N20: 130 | O20: 20 | P20: 12 | Q20: 10 | R20: 8 | S20: 0 | T20: 100 | W20: Estudiante | X20: y20:y20 | Y20: Auxiliar de Investigación | Z20: 10 | AA20: =ROW() -> 20
B21: =B18+1 -> 5 | G21: =G18 -> 10 | J21: =IF($E22=$Y$15,IF($D22=$W$15,0,40),IF($D22="Coinvestigador",J$9/2,40)) -> 40 | K21: =IF(E22=$Y$14,0,IF($D22="Coinvestigador",$R$4,0)) -> 0 | L21: =IF(OR(H21>J21,H21<K21),1,0) -> 0 | M21: 0 | N21: 140 | O21: 20 | P21: 12 | Q21: 10 | R21: 8 | S21: 0 | T21: 100
B22: =+B21 -> 5 | C22: Funcion : | J22: =IFERROR(VLOOKUP($F22,V_IdNBC,2,0),0) -> 0 | K22: =IF($D22=$K$10,"Ok","") -> Ok | M22: 0 | N22: 150 | O22: 20 | P22: 12 | Q22: 10 | R22: 8 | S22: 0 | T22: 100
B23: =+B22 -> 5 | C23: CvLac: | J23: =IF($D22=$W$19,20,IFERROR(VLOOKUP($E22,$Y$8:$Z$20,2,0),$G$9)) -> 24 | K23: =IF($D22=$W$11,IF($E22=$Y$13,10,12),0) -> 0 | M23: 0 | N23: 160 | O23: 20 | P23: 12 | Q23: 10 | R23: 8 | S23: 0 | T23: 100
B24: =B21+1 -> 6 | J24: =IF($E25=$Y$15,IF($D25=$W$15,0,40),IF($D25="Coinvestigador",J$9/2,40)) -> 40 | K24: =IF(E25=$Y$14,0,IF($D25="Coinvestigador",$R$4,0)) -> 0 | L24: =IF(OR(H24>J24,H24<K24),1,0) -> 0
B25: =+B24 -> 6 | C25: Funcion : | J25: =IFERROR(VLOOKUP($F25,V_IdNBC,2,0),0) -> 0 | K25: =IF($D25=$K$10,"Ok","") -> Ok | M25: N | N25: Tipos | O25: 1 | P25: 2 | Q25: 3 | R25: No | W25: Clasificación de grupo máximo asociado a la propuesta | Z25: =Gp_Max -> 0
B26: =+B25 -> 6 | C26: CvLac: | J26: =IF($D25=$W$19,20,IFERROR(VLOOKUP($E25,$Y$8:$Z$20,2,0),$G$9)) -> 24 | K26: =IF($D25=$W$11,IF($E25=$Y$13,10,12),0) -> 0 | M26: 1 | N26: Investigador Principal | R26: =COUNTIF($D$10:$D$38,$N26) -> 1 | Z26: Inv IP
B27: =B24+1 -> 7 | J27: =IF($E28=$Y$15,IF($D28=$W$15,0,40),IF($D28="Coinvestigador",J$9/2,40)) -> 40 | K27: =IF(E28=$Y$14,0,IF($D28="Coinvestigador",$R$4,0)) -> 0 | L27: =IF(OR(H27>J27,H27<K27),1,0) -> 0 | M27: 2 | N27: Coinvestigador | R27: =COUNTIF($D$10:$D$38,$N27) -> 0 | W27: Grupos | X27: Millon | Y27: Entre | Z27: Max | AA27: Min
B28: =+B27 -> 7 | C28: Funcion : | J28: =IFERROR(VLOOKUP($F28,V_IdNBC,2,0),0) -> 0 | K28: =IF($D28=$K$10,"Ok","") -> Ok | M28: 3 | N28: Asistente OPS | R28: 0 | W28: Avalados | X28: 0 | Y28: 0 | AD28: 8 | AE28: 4
B29: =+B28 -> 7 | C29: CvLac: | J29: =IF($D28=$W$19,20,IFERROR(VLOOKUP($E28,$Y$8:$Z$20,2,0),$G$9)) -> 24 | K29: =IF($D28=$W$11,IF($E28=$Y$13,10,12),0) -> 0 | M29: 4 | N29: Joven Investigador | R29: 0 | W29: No reconicido | X29: 0 | Y29: 0 | AD29: 12 | AE29: 8
B30: =B27+1 -> 8 | J30: =IF($E31=$Y$15,IF($D31=$W$15,0,40),IF($D31="Coinvestigador",J$9/2,40)) -> 40 | K30: =IF(E31=$Y$14,0,IF($D31="Coinvestigador",$R$4,0)) -> 0 | L30: =IF(OR(H30>J30,H30<K30),1,0) -> 0 | M30: 5 | N30: Asistente Graduado | R30: 0 | W30: Reconocidos | X30: 50 | Y30: 0 | AD30: 16 | AE30: 12
B31: =+B30 -> 8 | C31: Funcion : | J31: =IFERROR(VLOOKUP($F31,V_IdNBC,2,0),0) -> 0 | K31: =IF($D31=$K$10,"Ok","") -> Ok | M31: 6 | N31: Asesor | R31: 0 | W31: Mayores de Cat. C | X31: 0 | Y31: 0 | AD31: 20 | AE31: 16
B32: =+B31 -> 8 | C32: CvLac: | J32: =IF($D31=$W$19,20,IFERROR(VLOOKUP($E31,$Y$8:$Z$20,2,0),$G$9)) -> 24 | K32: =IF($D31=$W$11,IF($E31=$Y$13,10,12),0) -> 0 | M32: 7 | N32: Estudiante | R32: 0 | W32: Mayores de Cat. C | X32: 0 | Y32: 0 | AD32: 24 | AE32: 10
B33: =B30+1 -> 9 | J33: =IF($E34=$Y$15,IF($D34=$W$15,0,40),IF($D34="Coinvestigador",J$9/2,40)) -> 40 | K33: =IF(E34=$Y$14,0,IF($D34="Coinvestigador",$R$4,0)) -> 0 | L33: =IF(OR(H33>J33,H33<K33),1,0) -> 0 | W33: IMP | X33: 0 | Y33: 0
B34: =+B33 -> 9 | C34: Funcion : | J34: =IFERROR(VLOOKUP($F34,V_IdNBC,2,0),0) -> 0 | K34: =IF($D34=$K$10,"Ok","") -> Ok | M34: N | N34: Nivel | R34: No
B35: =+B34 -> 9 | C35: CvLac: | J35: =IF($D34=$W$19,20,IFERROR(VLOOKUP($E34,$Y$8:$Z$20,2,0),$G$9)) -> 24 | K35: =IF($D34=$W$11,IF($E34=$Y$13,10,12),0) -> 0 | N35: Postdoctorado | R35: =IF($F$9=N35,1,0) -> 0 | V35: No | W35: Mensaje de Error
B36: =B33+1 -> 10 | J36: =IF($E37=$Y$15,IF($D37=$W$15,0,40),IF($D37="Coinvestigador",J$9/2,40)) -> 40 | K36: =IF(E37=$Y$14,0,IF($D37="Coinvestigador",$R$4,0)) -> 0 | L36: =IF(OR(H36>J36,H36<K36),1,0) -> 0 | N36: Doctorado | R36: =IF($F$9=N36,1,0) -> 0 | V36: 0
B37: =+B36 -> 10 | C37: Funcion : | J37: =IFERROR(VLOOKUP($F37,V_IdNBC,2,0),0) -> 0 | K37: =IF($D37=$K$10,"Ok","") -> Ok | N37: Maestría | R37: =IF($F$9=N37,1,0) -> 0 | V37: 1 | W37: Error: El lider del proyecto debe tener titulación doctoral.
B38: =+B37 -> 10 | C38: CvLac: | J38: =IF($D37=$W$19,20,IFERROR(VLOOKUP($E37,$Y$8:$Z$20,2,0),$G$9)) -> 24 | K38: =IF($D37=$W$11,IF($E37=$Y$13,10,12),0) -> 0 | V38: 2
M40: ERR | N40: =VLOOKUP(Y40,M41:O50,2,0) -> Error No tiene la productividad necesaria (100 Tps Minimo) | T40: Validaciones | Y40: =MAX(Y41:Y48) -> 5
M41: 0 | T41: 1 | U41: Validacion Pruductividad Minima | Y41: 0
M42: 1 | N42: El Investigador Principal debe tener doctorado para proyecto de Alto Impacto. | T42: 2 | U42: No hay integrantes | Y42: =IF(Z42=0,2,0) -> 2 | Z42: =SUM(H9,H12,H15,H18,H21,H24,H27,H30,H33,H36) -> 0
M43: 2 | N43: Error : hasta el momento no tiene integrantes con horas | T43: 3 | U43: Validación de las horas de investigación estan bien | Y43: =IF(SUM(L36,L33,L30,L27,L24,L21,L18,L15,L12,L9)>0,2,0) -> 0
M44: 3 | N44: Error : hay integrantes con las horas mal diligenidas | T44: 4 | U44: Validacion de contrapartida | Y44: =IF(AB44=AB45,0,4) -> 0 | AB44: =Presupuesto!H24 -> 0
M45: 4 | N45: Error: debe poner atención en los integrantes IP o CO que carge de contrapartida | T45: 5 | U45: No tiene la productividad Necesaria | Y45: =IF(H6<=100,5,0) -> 5 | AB45: =Presupuesto!P46 -> 0
M46: 5 | N46: Error No tiene la productividad necesaria (100 Tps Minimo) | T46: 6
M47: 6 | T47: 7
M48: 7 | T48: 8
M49: 8 | T49: 9
M50: 9 | T50: 10

Sheet Presupuesto
A1: 9 | R1: Tabla de Topes
M2: 1.-> Limite presupuestal | N2: =IF(MIN(N6:P6)<1, 0,MIN(N6:P6)) -> 0 | R2: Clasif
B3: =Integrantes!B3 -> PRESENTACIÓN DE PROYECTOS EN INVESTIGACIÓN DE POSGRADOS | H3: =General!$H$2 -> Fecha de Emisión: 2018/03/07 | I3: =General!$I$2 -> IN-IV-F-14 | N3: Limite Grupo | O3: Limite Producto | P3: Limite Convo | R3: A | S3: =IF($H$10="IMP",250,100) -> 100
H4: =General!$H$3 -> Revision N°: 3 | I4: ="Página "&$A$1&" de "&Dt_TPG -> Página 9 de 11 | M4: Mayor Grupo | N4: =Productos!G70 -> 0 | O4: 5 | P4: 100 | R4: A1 | S4: =IF($H$10="IMP",250,100) -> 100
R5: B | S5: =IF($H$10="IMP",250,100) -> 100
M6: 1000000 | N6: =IF(N8>3,P6,0) -> 0 | O6: =M6*Productos!N60 -> 0 | P6: =M6*P4 -> 100000000 | R6: C | S6: =IF($H$10="IMP",250,100) -> 100
B7: T | C7: Título de la Propuesta : | D7: =General!B9 -> Formato: actualizado a 06 Nov 2019 | R7: R | S7: =IF($H$10="IMP",250,50) -> 50
B8: L | C8: Lider responsable | D8: =General!C10 -> 0 | G8: Codigo VICEIN: | H8: =CLEAN(General!H7) ->  | M8: 1.67341604 | N8: =General!L29 -> 3 | R8: NR | S8: =IF($H$10="IMP",250,25) -> 25
M9: 1.5 | R9: NA | S9: 0
A10: 12.- | B10: Presupuesto rubro personal asocidado a la propuesta | G10: =V_Max -> 0 | H10: =Cel_TP -> POS | I10: =Gp_Max -> 0
I11: 1.66
B12: a. | C12: Personal de planta o ocasional que integra al proyecto de investigación. | H12: Valores de Contrapartida.
A13: =ROW() -> 13 | B13: N° | C13: Sueldo Neto (Valor Devengado) | D13: Factor | E13: Tipo de Vinculo UMNG | F13: Numero de meses | G13: Número Horas / Semanal | H13: Valor Final | I13: Identificación | L13: *tabla de consolidacion por año para proyectos IMP
B14: =ROW()-$A$13 -> 1 | D14: =IFERROR(VLOOKUP($E14,$M$14:$P$17,4,0),0) -> 1.67341604 | E14: =INDIRECT($I$24&"E"&$J14+1,1) -> Doc. Carrera TC | F14: =INDIRECT($I$24&"G"&$J14,1) -> 24 | G14: =INDIRECT($I$24&"H"&$J14,1) -> 0 | H14: =INT(((C14*F14)/40)*G14*$I$11) -> 0 | I14: =INDIRECT($I$24&"C"&$J14,1) -> 0 | J14: 9 | L14: 0 | M14: Tipo Vinculo UMNG | N14: Año1 | O14: Año2 | Q14: Validación Presupuestal
B15: =ROW()-$A$13 -> 2 | D15: =IFERROR(VLOOKUP($E15,$M$14:$P$17,4,0),0) -> 0 | E15: Estímulo a estudiante | F15: 10 | G15: 0 | H15: 0 | I15: 0 | J15: =J14+3 -> 12 | L15: 1 | M15: Doc. Carrera TC | N15: =(SUMIF($E$14:$E$23,$M15,$H$14:$H$23)/2) -> 0 | O15: =N15 -> 0 | P15: =M8 -> 1.67341604 | Q15: ="Validación de "&M38 -> Validación de (Au.) -Auxiliar Pregrado | S15: Ajustado por adenda no 2
B16: 3 | D16: 0 | E16: 0 | F16: 10 | G16: 0 | H16: 0 | I16: 0 | J16: =J15+3 -> 15 | L16: 2 | M16: Doc. Carrera MT | N16: =(SUMIF($E$14:$E$23,$M16,$H$14:$H$23)/2) -> 0 | O16: =N16 -> 0 | P16: =P15 -> 1.67341604 | Q16: Parte | R16: Cntidad | S16: por uno solo | T16: Debe ser | U16: Error de Asistente
B17: 4 | D17: 0 | E17: 0 | F17: 10 | G17: 0 | H17: 0 | I17: 0 | J17: 18 | L17: 3 | M17: Doc. Ocasional | N17: =SUMIF($E$14:$E$23,$M17,$H$14:$H$23) -> 0 | O17: 0 | P17: =M9 -> 1.5 | Q17: No de AU Preg | R17: =COUNTIF($E$29:$E$44,$M$38) -> 0 | T17: 1 | U17: 0 | X17: 25 | Y17: 0.05
B18: 5 | D18: 0 | E18: 0 | F18: 10 | G18: 0 | H18: 0 | I18: 0 | J18: 21 | L18: 1 | M18: Contrapartida Facultad IMP: | N18: =SUM(N15:N17) -> 0 | O18: =SUM(O15:O17) -> 0 | Q18: No Horas | R18: =SUMIF($E$29:$E$43,$M$38,G29:G43) -> 0 | S18: =IFERROR(R18/R17,0) -> 0 | T18: 20 | U18: =IF(S18<=T18,0,1) -> 0 | X18: 50 | Y18: 0.1
B19: 6 | D19: 0 | E19: 0 | F19: 0 | G19: 0 | H19: 0 | I19: 0 | J19: 24 | L19: 2 | M19: Contrapartida Facultad INV: | N19: =SUM(N15:O17) -> 0 | Q19: No Meses | R19: =SUMIF($E$29:$E$43,$M$38,F29:F43) -> 0 | S19: =IFERROR(R19/R17,0) -> 0 | T19: 6 | U19: =IF(S19=T19,0,1) -> 1 | X19: 75 | Y19: 0.15
B20: 7 | D20: 0 | E20: 0 | F20: 0 | G20: 0 | H20: 0 | I20: 0 | J20: 27 | T20: Si es Mas de 1 tiene problema en Auxiliar de pregrado --->> | U20: =SUM(U17:U19) -> 1 | X20: 100 | Y20: 0.15
B21: 8 | D21: 0 | E21: 0 | F21: 0 | G21: 0 | H21: 0 | I21: 0 | J21: 30 | Q21: Estiimulo a estudiantes | S21: =INT(N2/1000000) -> 0 | T21: =SUM(R36:R40) -> 0 | U21: =IFERROR(T21/N2,0) -> 0 | X21: 250 | Y21: 0.15
B22: 9 | D22: 0 | E22: 0 | F22: 0 | G22: 0 | H22: 0 | I22: 0 | J22: 33 | Q22: Limite inferior de estimulo a estudiantes | T22: =IFERROR((S21*1000000)*U22,0) -> 0 | U22: =VLOOKUP($S$21,$X$17:$Y$21,2,0) -> 
B23: 10 | D23: 0 | E23: 0 | F23: 0 | G23: 0 | H23: 0 | I23: 0 | J23: 36 | T23: =ABS(T22-T21) -> 0
C24: Sumatoria del calculo de personal de planta "Valor contrapartida Facultades": | H24: =INT(SUBTOTAL(109,H14:H23))*J24 -> 0 | I24: Integrantes! | J24: 1 | M24: Incremento al salario
M25: 0 | P25: =(J26/6)/6 -> 0
B26: b. | C26: Asistentes externos o temporales contratados por (OPS) y/o hora cadedra. | M26: Valor SMLV | N26: Max Mes
B27: > | C27: Salario Minimo Legal Vigente (SMIV) : | F27: 828116 | H27: 36885850 | J27: =(F27*J29)*10 -> 24843480 | M27: =F27*(1+M25) -> 828116 | N27: =INT(Integrantes!J6/10)*10 -> 20 | T27: 2017 | U27: Datos Pasados No Validos
A29: =ROW() -> 29 | B29: No | C29: Valor mensual | D29: Factor Salarial | E29: Tipo de vinculación | F29: ="Numero de meses" -> Numero de meses | G29: Número Horas / Semanal | H29: Valor total | I29: Valores de entidades externas | J29: 3 | K29: (Au.) | L29: No | M29: Tipo | N29: Valor total del contrato (10 mes) | O29: SMMLV por 10 Meses | P29: Valor mes contrato | Q29: Hay | R29: Hay en $ | S29: Inicia desde | T29: Valor total del contrato (10 mes) | U29: SMMLV | V29: Valor mes contrato | X29: Va desde hasta | Y29: Salarios Minimos | AA29: Figuras | AB29: arranca desde | AC29: Maximo Factor
B30: =ROW()-$A$29 -> 1 | C30: =IFERROR(H30/F30,0) -> 0 | D30: 0 | F30: 10 | G30: 0 | H30: =($F$27*D30*F30)/IF($E30=$M$38,10,1)*IF(COUNTIF($M$30:$M$35,$E30)=1,G30/40,1) -> 0 | J30: =IF($E30=$M$38,K30,IFERROR(VLOOKUP($E30,$M$29:$O$40,2,0),0)*IF($H$10="IMP",2,1)) -> 0 | K30: =IFERROR(IF(FIND($K$29,$E30,1)=1,VLOOKUP($E30,$M$38:$AC$40,2,0),0),0)/IF($E30=$M$38,10,1) -> 0 | L30: 1 | M30: (A.I.) -Técnico | N30: =$M$27*O30 -> 16562320 | O30: 20 | P30: =N30/10 -> 1656232 | Q30: =COUNTIF($E$29:$E$44,$M30) -> 0 | R30: =SUMIF($E$30:$E$44,$M30,$H$30:$H$44) -> 0 | S30: =U30 -> 20 | T30: 14754340 | U30: 20 | V30: 1475434 | X30: ="Y"&ROW() -> Y30 | Y30: 6 | AA30: =E30 -> 0 | AB30: =IFERROR(VLOOKUP($AA30,$M$29:$S$40,7,0)/10,0) -> 0 | AC30: =IFERROR(VLOOKUP($AA30,$M$29:$R$40,3,0)/IF($AA30=$M$38,6,10),0) -> 0
B31: =ROW()-$A$29 -> 2 | C31: =IFERROR(H31/F31,0) -> 0 | D31: 0 | F31: 10 | G31: 0 | H31: =($F$27*D31*F31)/IF($E31=$M$38,10,1)*IF(COUNTIF($M$30:$M$35,$E31)=1,G31/40,1) -> 0 | J31: =IF($E31=$M$38,K31,IFERROR(VLOOKUP($E31,$M$29:$O$40,2,0),0)*IF($H$10="IMP",2,1)) -> 0 | K31: =IFERROR(IF(FIND($K$29,$E31,1)=1,VLOOKUP($E31,$M$38:$AC$40,2,0),0),0)/IF($E31=$M$38,10,1) -> 0 | L31: 2 | M31: (A.I.) -Profesional | N31: 28984060 | O31: 35 | P31: 2898406 | Q31: 0 | R31: 0 | S31: 35 | T31: 25820095 | U31: 35 | V31: 2582009.5 | X31: ="Y"&ROW() -> Y31 | Y31: =Y30-0.5 -> 5.5 | AA31: =E31 -> 0 | AB31: =IFERROR(VLOOKUP($AA31,$M$29:$S$40,7,0)/10,0) -> 0 | AC31: =IFERROR(VLOOKUP($AA31,$M$29:$R$40,3,0)/IF($AA31=$M$38,6,10),0) -> 0
B32: 3 | C32: 0 | D32: 0 | F32: 10 | G32: 0 | H32: 0 | J32: =IFERROR(VLOOKUP($E32,$M$29:$O$40,2,0),0)*IF($H$10="IMP",2,1) -> 0 | K32: 0 | L32: 3 | M32: (A.I.) -Profesional especilizado | N32: 33124640 | O32: 40 | P32: 3312464 | Q32: 0 | R32: 0 | S32: 40 | T32: 29508680 | U32: 40 | V32: 2950868 | X32: Y32 | Y32: =Y31-0.5 -> 5 | AA32: 0 | AB32: 0 | AC32: 0
B33: 4 | C33: 0 | D33: 0 | F33: 10 | G33: 0 | H33: 0 | J33: 0 | K33: 0 | L33: 4 | M33: (A.I.) -Profesional magister | N33: 37265220 | O33: 45 | P33: 3726522 | Q33: 0 | R33: 0 | S33: 45 | T33: 33197265 | U33: 45 | V33: 3319726.5 | X33: Y33 | Y33: 4.5 | AA33: 0 | AB33: 0 | AC33: 0
B34: 5 | C34: 0 | D34: 0 | F34: 10 | G34: 0 | H34: 0 | J34: 0 | K34: 0 | L34: 5 | M34: (A.I.) -Profesional doctorado | N34: 45546380 | O34: 55 | P34: 4554638 | Q34: 0 | R34: 0 | S34: 55 | T34: 40574435 | U34: 55 | V34: 4057443.5 | X34: Y34 | Y34: 4 | AA34: 0 | AB34: 0 | AC34: 0
B35: 6 | C35: 0 | D35: 0 | F35: 10 | G35: 0 | H35: 0 | J35: 0 | K35: 0 | L35: 6 | M35: (J.I) -Joven investigador | N35: 28984060 | O35: 35 | P35: 2898406 | Q35: 0 | R35: 0 | S35: 35 | T35: 25820095 | U35: 35 | V35: 2582009.5 | X35: Y35 | Y35: 3.5 | AA35: 0 | AB35: 0 | AC35: 0
B36: 7 | C36: 0 | D36: 0 | F36: 10 | G36: 0 | H36: 0 | J36: 0 | K36: 0 | L36: 7 | M36: (A.G) -Asistente graduado Mg. | N36: 37265220 | O36: 45 | P36: 3726522 | Q36: 0 | R36: 0 | S36: 0.1 | T36: 36885850 | U36: 50 | V36: 3688585 | X36: Y36 | Y36: 3 | AA36: 0 | AB36: 0 | AC36: 0
B37: 8 | C37: 0 | D37: 0 | F37: 0 | G37: 0 | H37: 0 | J37: 0 | K37: 0 | L37: 8 | M37: (A.G) -Asistente graduado Dr. | N37: 49686960 | O37: 60 | P37: 4968696 | Q37: 0 | R37: 0 | S37: 0.1 | T37: 51640190 | U37: 70 | V37: 5164019 | X37: Y37 | Y37: 2.5 | AA37: 0 | AB37: 0 | AC37: 0
B38: 9 | C38: 0 | D38: 0 | F38: 0 | G38: 0 | H38: 0 | J38: 0 | K38: 0 | L38: 9 | M38: (Au.) -Auxiliar Pregrado | N38: 24843480 | O38: 30 | P38: 2604140 | Q38: 0 | R38: 0 | S38: 0.1 | T38: NA | U38: NA | V38: NA | X38: Y38 | Y38: 2 | AA38: 0 | AB38: 0 | AC38: 0
B39: 10 | C39: 0 | D39: 0 | F39: 0 | G39: 0 | H39: 0 | J39: 0 | K39: 0 | L39: 10 | M39: (Au.) -Auxiliar Prostgrado Mg. | N39: 16562320 | O39: 20 | P39: =N39/5 -> 3312464 | Q39: 0 | R39: 0 | S39: 0.1 | T39: NA | U39: NA | V39: NA | X39: Y39 | Y39: 1.5 | AA39: =E39 -> 0 | AB39: 0 | AC39: 0
B40: 11 | C40: 0 | D40: 0 | F40: 0 | G40: 0 | H40: 0 | J40: 0 | K40: 0 | L40: 11 | M40: (Au.) -Auxiliar Prostgrado Dr. | N40: 24843480 | O40: 30 | P40: =N40/5 -> 4968696 | Q40: 0 | R40: 0 | S40: 0.1 | T40: NA | U40: NA | V40: NA | X40: Y40 | Y40: 1 | AA40: =E40 -> 0 | AB40: 0 | AC40: 0
B41: 12 | C41: 0 | D41: 0 | F41: 0 | G41: 0 | H41: 0 | J41: 0 | K41: 0 | N41: Salario 12 meses | S41: Validacion de estimulo a estudiantes | V41: =G10 -> 0 | X41: Y41 | Y41: 0.5 | AA41: =E41 -> 0 | AB41: 0 | AC41: 0
B42: 13 | C42: 0 | D42: 0 | F42: 0 | G42: 0 | H42: 0 | J42: 0 | K42: 0 | U42: % | AA42: =E42 -> 0 | AB42: 0 | AC42: 0
B43: 14 | C43: 0 | D43: 0 | F43: 0 | G43: 0 | H43: 0 | J43: 0 | K43: 0 | M43: Joven investigador Colciencias | N43: =M27*3*12 -> 29812176 | S43: TRUE | T43: Estudiantes Min | U43: =IFERROR(VLOOKUP($S$43,$S$44:$V$48,3,0),0) -> 0 | V43: =IFERROR(VLOOKUP($S$43,$S$44:$V$48,4,0),0) -> 0 | AA43: =E43 -> 0 | AB43: 0 | AC43: 0
B44: =14-COUNTIF(E30:E43,"") -> 0 | C44: Sumatoria del calculo de OPS "Valor financiado Vicein" en rubro de (Personal): | G44: =IF(H44>N2,"Esta superando el total de presupuesto","") ->  | H44: =IFERROR(INT(SUM(H30:H43)),0) -> 0 | I44: 0 | J44: =IFERROR(VLOOKUP($E44,$M$29:$O$40,2,0),0)*IF($H$10="IMP",2,1) -> 0 | S44: =T44<$V$41 -> FALSE | T44: 100 | U44: 0.15 | V44: 15000000
L45: Instrucción ver Comentario… OJO VER EN ESTO IMP | S45: =T45<$V$41 -> FALSE | T45: 80 | U45: 0.15 | V45: 15000000
A46: 13.- | B46: Presupuesto detalle de Plan de compras general .- La siguiente tabla debe diligenciarse manualmente ya que no arrastra informacion de otros campos | L46: 1 | M46: Para IMP - Contrapartida Facultad Año 1 es : | O46: =N18 -> 0 | P46: =SUMIF($C$51:$C$86,$C$51,$H$51:$H$86) -> 0 | S46: =T46<$V$41 -> FALSE | T46: 60 | U46: 0.15 | V46: 11250000
L47: 2 | M47: Para IMP - Contrapartida Facultad Año 2 es : | O47: =O18 -> 0 | S47: =T47<$V$41 -> FALSE | T47: 40 | U47: 0.1 | V47: 5000000
B48: =IFERROR("Nota : "&VLOOKUP(I10,Dt_Limite,3,0)," ") ->  | L48: 3 | M48: Para Presupuesto $ VICEIN la mitad de OPS es : | O48: =H44/2 -> 0 | S48: =T48<$V$41 -> FALSE | T48: 20 | U48: 0.05 | V48: 1250000
L49: Consulte sobre los items
A50: =ROW() -> 50 | B50: No | C50: Rubro / Destino | D50: Año de Vigencia | E50: Descripción | G50: Finaciación Vicein $ | H50: =G94 -> $ Contrapartida Facultad | I50: Contrapartida Otros $ | L50: No | M50: Nombre Rubro | N50: Rubro | O50: Limite% | P50: =N2 -> 0 | Q50: Solicitado $Vicein | R50: Limites de topes
B51: =ROW()-$A$50 -> 1 | C51: Personal | D51: 1 | E51: Horas de descarga académica | G51: 0 | H51: =IF(H10="INV",N19,N18) -> 0 | K51: =M61 -> Estímulo a estudiantes Posgrado | L51: =ROW()-50 -> 1 | M51: Personal | N51: 611401 | O51: =IFERROR(P51/$P$50,0) -> 0 | P51: =SUMIF($C$50:$C$86,$M51,$G$50:$G$86) -> 0 | Q51: =IFERROR(P51/$P$50,0) -> 0 | R51: =($P$50/100)*O51*100 -> 0 | S51: Personal | T51: =SUM(R30:R35) -> 0 | U51: =SUMIF($C$51:$C$86,$S51,$G$51:$G$86) -> 0 | V51: =U51-T51 -> 0
B52: =ROW()-$A$50 -> 2 | D52: 1 | K52: =M55 -> Materiales | L52: =ROW()-50 -> 2 | M52: Equipos | N52: 632 | O52: 0 | P52: 0 | Q52: =IFERROR(P52/$P$50,0) -> 0 | R52: 0 | S52: =M60 -> Estímulo a estudiantes Pregrado | T52: =R38 -> 0 | U52: =SUMIF($C$51:$C$86,$S52,$G$51:$G$86) -> 0 | V52: =U52-T52 -> 0
B53: 3 | D53: 1 | K53: =M57 -> Salidas de Campo | L53: 3 | M53: Equipos transformables | N53: 632 | O53: 0 | P53: 0 | Q53: 0 | R53: 0 | S53: =M61 -> Estímulo a estudiantes Posgrado | T53: =SUM($R$36:$R$40)-R38 -> 0 | U53: =SUMIF($C$51:$C$86,$S53,$G$51:$G$86) -> 0 | V53: =U53-T53 -> 0
B54: 4 | D54: 1 | K54: =M54 -> Software | L54: 4 | M54: Software | N54: 612102 | O54: 1 | P54: 0 | Q54: 0 | R54: 0 | V54: =SUM(V51:V52) -> 0
B55: 5 | D55: 1 | K55: =M63 -> Licencias por suscripción | L55: 5 | M55: Materiales | N55: 612101 | O55: 1 | P55: 0 | Q55: 0 | R55: 0
B56: 6 | D56: 1 | K56: =M58 -> Servicios Técnicos | L56: 6 | M56: Materiales (Papelería) | N56: 612101 | O56: 0 | P56: 0 | Q56: 0 | R56: 0 | T56: Validación | U56: Plan | V56: OPS Catedra
B57: 7 | D57: 1 | L57: 7 | M57: Salidas de Campo | N57: 612104 | O57: 0.3 | P57: 0 | Q57: 0 | R57: 0 | T57: =M51 -> Personal | U57: =COUNTIF($C$51:$C$85,T57)-1 -> 0 | V57: =SUM(Q30:Q35) -> 0 | W57: =IF(U57<V57,1,0) -> 0
B58: 8 | D58: 1 | L58: 8 | M58: Servicios Técnicos | N58: 612103 | O58: 1 | P58: 0 | Q58: 0 | R58: 0 | T58: =M61 -> Estímulo a estudiantes Posgrado | U58: =COUNTIF($C$51:$C$85,T58) -> 0 | V58: =SUM(Q36:Q40) -> 0 | W58: =IF(U58<V58,1,0) -> 0
B59: 9 | D59: 1 | L59: 9 | M59: Recursos Biblograficos | N59: 633 | O59: 0 | P59: 0 | Q59: 0 | R59: 0 | T59: Diferencias | V59: =IF(V54=0,0,1) -> 0 | W59: =SUM(W57:W58)+V59 -> 0
B60: 10 | D60: 1 | L60: 10 | M60: Estímulo a estudiantes Pregrado | N60: 612122 | O60: 0 | P60: 0 | Q60: 0 | R60: 0
B61: 11 | D61: 1 | L61: 11 | M61: Estímulo a estudiantes Posgrado | N61: 612123 | O61: 1 | P61: 0 | Q61: 0 | R61: 0
B62: 12 | D62: 1 | L62: 12 | M62: Movilidad | N62: 635020 | O62: 0 | P62: 0 | Q62: 0 | R62: 0 | S62: =V43 -> 0 | T62: Rubros financiables | AA62: 25000000 | AB62: 0.05 | AC62: =AA62*AB62 -> 1250000
B63: 13 | D63: 1 | L63: 13 | M63: Licencias por suscripción | N63: 636012 | O63: 1 | P63: 0 | Q63: 0 | R63: 0 | T63: =M61 -> Estímulo a estudiantes Posgrado | AA63: =AA62+AA62 -> 50000000 | AB63: 0.1 | AC63: =AA63*AB63 -> 5000000
B64: 14 | D64: 1 | L64: 14 | M64: Viajes | N64: 612115 | O64: 0 | P64: 0 | Q64: 0 | R64: 0 | T64: =M55 -> Materiales | AA64: =AA63+AA62 -> 75000000 | AB64: 0.15 | AC64: =AA64*AB64 -> 11250000
B65: 15 | D65: 1 | L65: 15 | M65: Mantenimiento | N65: Pendiente | O65: 0 | P65: 0 | Q65: 0 | R65: 0 | T65: =M57 -> Salidas de Campo | AA65: =AA64+AA62 -> 100000000 | AB65: 0.15 | AC65: =AA65*AB65 -> 15000000
B66: 16 | D66: 1 | L66: 16 | M66: Administración | N66: 612118 | O66: 0 | P66: 0 | Q66: 0 | R66: 0
B67: 17 | D67: 1 | L67: 17 | M67: Construcciones | N67: Pendiente | O67: 0 | P67: 0 | Q67: 0 | R67: 0
B68: 18 | D68: 1 | L68: 18 | M68: Otros Gastos | N68: Pendiente | O68: 0 | P68: 0 | Q68: 0 | R68: 0
B69: 19 | D69: 1
B70: 20 | D70: 1
B71: 21 | D71: 1
B72: 22 | D72: 1
B73: 23 | D73: 1
B74: 24 | D74: 1
B75: 25 | D75: 1
B76: 26 | D76: 1
B77: 27 | D77: 1
B78: 28 | D78: 1
B79: 29 | D79: 1
B80: 30 | D80: 1
B81: 31 | D81: 1
B82: 32 | D82: 1
B83: 33 | D83: 1
B84: 34 | D84: 1 | M84: Tabla de errores posibles
B85: 35 | D85: 1 | M85: =VLOOKUP(R85,L85:M109,2,0) ->  | O85: Verificacion de condiciones | R85: =IFERROR(MAX(R86:R99),0) -> 0
L86: 0 | O86: Validacion de Int. Externa y Contrapartida | R86: =IF(E143=0,0,IF(H141=0,1,0)) -> 0
C87: Sumatoria general de plan de compras : | F87: =SUM(G87:I87) -> 0 | G87: =SUM(G88:G89) -> 0 | H87: =SUM(H88:H89) -> 0 | I87: =SUM(I88:I89) -> 0 | L87: 1 | M87: Error: con paricipación externa deben tener presupuesto en Contrapartida Externa. | O87: Validacion de presupuesto Maximo | R87: =IF(G87>E141,2,0) -> 0
D88: 1 | E88: ="Total Presupuesto Año 1 "&IF(H10="IMP","IMP","")&":" -> Total Presupuesto Año 1 : | G88: =IF(Cel_TP="FOR",SUMIF($D$51:$D$86,$D88,G$51:G$86),SUM(G$51:G$86)) -> 0 | H88: =SUMIF($D$51:$D$86,$D88,H$51:H$86) -> 0 | I88: =SUMIF($D$51:$D$86,$D88,I$51:I$86) -> 0 | L88: 2 | M88: ="Error: Supera en $"&TEXT(F141-E141,"###.###.###")&" el presupuesto maximo permitido." -> Error: Supera en $ el presupuesto maximo permitido. | O88: Validacion de Asistentes graduados en INV | R88: =IF(H10="INV",IF(SUM(AC36:AC37)>0,3,0),0) -> 0
D89: 2 | E89: Total Presupuesto Año 2 (IMP) : | G89: =IF(Cel_TP="FOR",SUMIF($D$51:$D$86,$D89,G$51:G$86),SUM(G$51:G$86)) -> 0 | H89: =IF(H10="INV",0,SUMIF($D$51:$D$86,$D89,H$51:H$86)) -> 0 | I89: =IF(H10="INV",0,SUMIF($D$51:$D$86,$D89,I$51:I$86)) -> 0 | L89: 3 | M89: Error : en convocatoria INV no se puede hacer contratacion de Asistentes graduados | O89: Verificación de Auxiliares de pregrado tiempo | R89: =IFERROR(IF(U20>0,0,0),0) -> 0
C90: Firma :_______________ | E90: =IF(G90>0,"Presupuesto por definir."," Error - Supero el presupuesto en : ") -> Error - Supero el presupuesto en : | G90: =E141-G87 -> 0 | L90: 4 | M90: ="Error : Tiene mal formulado el >> "&M38&" << por favor Verificar los datos presupuestales" -> Error : Tiene mal formulado el >> (Au.) -Auxiliar Pregrado << por favor Verificar los datos presupuestales | O90: Verificación Movilidad | R90: =IF(R62<P62,6,0) -> 0 | S90: Invalidada
E91: Limite de presupuesto VICEIN por año : | G91: =IFERROR(IF($H$10="IMP",$P$6/2,$N$2),"0") -> 0 | L91: 5 | M91: ="Ojo!: Tenga en cuenta del cuadro 12b (OPS). Los items con (Au.) y (A.G) son del rubro Estimulo a estudiantes, total $"&TEXT(T52,"###.###") -> Ojo!: Tenga en cuenta del cuadro 12b (OPS). Los items con (Au.) y (A.G) son del rubro Estimulo a estudiantes, total $ | O91: Verificación de Estímulo a estudiantes | R91: =IF(V52=0,0,5) -> 0
L92: 6 | M92: ="Error : Supera el maximo en el rubro de Movilidad en: $ "&TEXT(P62-R62,"###.###.###") -> Error : Supera el maximo en el rubro de Movilidad en: $ | O92: Verificación de minimo de estimulo a estudiantes | R92: 0
L93: 7 | M93: ="Error :Falta presupuesto monto minimo para el rubro de estimulo a estudiantes, faltan "&TEXT(T23,"$ ###.###")&" en cuadro 12.b." -> Error :Falta presupuesto monto minimo para el rubro de estimulo a estudiantes, faltan $ en cuadro 12.b. | O93: Verificación de Diferencias en Totales | R93: =IF(S94=T94,0,8) -> 0 | S93: > Ver--> se Anula por terminos
B94: No | C94: Rubro | D94: % | E94: Porcentaje | F94: $ Financiación solicitada a VICEIN | G94: $ Contrapartida Facultad | H94: $ Contrapartida Externa | I94: $ Total Rubro | J94: 0 | L94: 8 | M94: ="Error Tiene diferecias entre el plan de compras y el cuadro consolidado, revice el plan de compras por :"&TEXT(S94-I141,"$ ###.###.##") -> Error Tiene diferecias entre el plan de compras y el cuadro consolidado, revice el plan de compras por :$ | O94: Verificación de Equipos | R94: =IF(P52>R52,9,0) -> 0 | S94: =SUM(G87:I87) -> 0 | T94: =SUM(I141) -> 0
B95: 1 | C95: =C97 -> Personal | D95: =IFERROR(F95/F97,0) -> 0 | E95: =D95 -> 0 | F95: =SUMIFS(G$50:G$86,$C$50:$C$86,$C95,$D$50:$D$86,$J95) -> 0 | G95: 0 | H95: 0 | I95: =SUM(F95:H95) -> 0 | J95: 1 | K95: =IFERROR(VLOOKUP($B95,$L$50:$Q$67,4,0),0) -> 0 | L95: 9 | M95: ="Error : Supera el maximo en el rubro de Equipos en: $ "&TEXT(P52-R52,"###.###.###") -> Error : Supera el maximo en el rubro de Equipos en: $ | O95: Verificación de Salidas de Campo | R95: =IF(P57>R57,10,0) -> 0
B96: 1 | C96: =C97 -> Personal | D96: =IFERROR(F95/F97,0) -> 0 | E96: 0 | F96: 0 | G96: 0 | H96: 0 | I96: 0 | J96: 2 | K96: =IFERROR(VLOOKUP($B96,$L$50:$Q$67,4,0),0) -> 0 | L96: 10 | M96: ="Error : Supera el maximo en el rubro de salidas de campo en: $ "&TEXT(P57-R57,"###.###.###") -> Error : Supera el maximo en el rubro de salidas de campo en: $ | O96: Verificación de Personal y Estimulo a estudiante
B97: 1 | C97: =M51 -> Personal | D97: =IFERROR(VLOOKUP($B97,Dt_TblaPresu,6,0),0) -> 0 | E97: 0 | F97: =SUM(F95:F96) -> 0 | G97: =SUM(G95:G96) -> 0 | H97: =SUM(H95:H96) -> 0 | I97: 0 | J97: 3 | K97: =IFERROR(VLOOKUP($B97,$L$50:$Q$67,4,0),0) -> 0 | L97: 11 | M97: ="La tabla de plan de compras debe diligenciarse manualmente ya que no arrastra toda la informacion . "&IF(V59>0," Dif. $ "&TEXT(V54,"###.###.###"),"") -> La tabla de plan de compras debe diligenciarse manualmente ya que no arrastra toda la informacion . | O97: Verificación estimulos | R97: =IF(W59>0,11,0) -> 0
B98: =B95+1 -> 2 | C98: =C100 -> Equipos | D98: =IFERROR(F98/F100,0) -> 0 | E98: 0 | F98: =SUMIFS(G$50:G$86,$C$50:$C$86,$C98,$D$50:$D$86,$J98) -> 0 | G98: 0 | H98: 0 | I98: 0 | J98: =J95 -> 1 | K98: =VLOOKUP($B95,$L$50:$Q$67,4,0) -> 0 | L98: 12 | M98: Pendiente : Debe contratar un Asistente Graduado por 10 meses por cada vigencia | O98: Validación asistente Gradudado IMP | R98: =IF(H10="IMP",IF(SUM(Q36:Q37)>0,0,12),0) -> 0
B99: =B96+1 -> 2 | C99: =C100 -> Equipos | D99: =IFERROR(F98/F100,0) -> 0 | E99: 0 | F99: 0 | G99: 0 | H99: 0 | I99: 0 | J99: =J96 -> 2 | K99: =IFERROR(VLOOKUP($B99,$L$50:$Q$67,4,0),0) -> 0
B100: 2 | C100: =M52 -> Equipos | D100: =IFERROR(VLOOKUP($B100,$L$50:$Q$67,6,0),0) -> 0 | E100: 0 | F100: =SUM(F98:F99) -> 0 | G100: =SUM(G98:G99) -> 0 | H100: =SUM(H98:H99) -> 0 | I100: 0 | J100: =J97 -> 3 | K100: =IFERROR(VLOOKUP($B100,$L$50:$Q$67,4,0),0) -> 0
B101: 3 | C101: =C103 -> Equipos transformables | D101: =IFERROR(F101/F103,0) -> 0 | E101: 0 | F101: =SUMIFS(G$50:G$86,$C$50:$C$86,$C101,$D$50:$D$86,$J101) -> 0 | G101: 0 | H101: 0 | I101: 0 | J101: 1 | K101: =IFERROR(VLOOKUP($B101,$L$50:$Q$67,4,0),0) -> 0
B102: 3 | C102: =C103 -> Equipos transformables | D102: =IFERROR(F101/F103,0) -> 0 | E102: 0 | F102: 0 | G102: 0 | H102: 0 | I102: 0 | J102: 2 | K102: =IFERROR(VLOOKUP($B102,$L$50:$Q$67,4,0),0) -> 0
B103: 3 | C103: =M53 -> Equipos transformables | D103: =IFERROR(VLOOKUP($B103,$L$50:$Q$67,6,0),0) -> 0 | E103: 0 | F103: =SUM(F101:F102) -> 0 | G103: =SUM(G101:G102) -> 0 | H103: =SUM(H101:H102) -> 0 | I103: 0 | J103: 3 | K103: =VLOOKUP($B103,$L$50:$Q$67,4,0) -> 0
B104: 4 | C104: =C106 -> Software | D104: =IFERROR(F104/F106,0) -> 0 | E104: 0 | F104: =SUMIFS(G$50:G$86,$C$50:$C$86,$C104,$D$50:$D$86,$J104) -> 0 | G104: 0 | H104: 0 | I104: 0 | J104: 1 | K104: =IFERROR(VLOOKUP($B104,$L$50:$Q$67,4,0),0) -> 1
B105: 4 | C105: =C106 -> Software | D105: =IFERROR(F104/F106,0) -> 0 | E105: 0 | F105: 0 | G105: 0 | H105: 0 | I105: 0 | J105: 2 | K105: =IFERROR(VLOOKUP($B105,$L$50:$Q$67,4,0),0) -> 1
B106: 4 | C106: =M54 -> Software | D106: =IFERROR(VLOOKUP($B106,$L$50:$Q$67,6,0),0) -> 0 | E106: 0 | F106: =SUM(F104:F105) -> 0 | G106: =SUM(G104:G105) -> 0 | H106: =SUM(H104:H105) -> 0 | I106: 0 | J106: 3 | K106: =VLOOKUP($B106,$L$50:$Q$67,4,0) -> 1
B107: 5 | C107: =C109 -> Materiales | D107: =IFERROR(F107/F109,0) -> 0 | E107: 0 | F107: =SUMIFS(G$50:G$86,$C$50:$C$86,$C107,$D$50:$D$86,$J107) -> 0 | G107: 0 | H107: 0 | I107: 0 | J107: 1 | K107: =IFERROR(VLOOKUP($B107,$L$50:$Q$67,4,0),0) -> 1
B108: 5 | C108: =C109 -> Materiales | D108: =IFERROR(F107/F109,0) -> 0 | E108: 0 | F108: 0 | G108: 0 | H108: 0 | I108: 0 | J108: 2 | K108: =IFERROR(VLOOKUP($B108,$L$50:$Q$67,4,0),0) -> 1
B109: 5 | C109: =M55 -> Materiales | D109: =IFERROR(VLOOKUP($B109,$L$50:$Q$67,6,0),0) -> 0 | E109: 0 | F109: =SUM(F107:F108) -> 0 | G109: =SUM(G107:G108) -> 0 | H109: =SUM(H107:H108) -> 0 | I109: 0 | J109: 3 | K109: =VLOOKUP($B109,$L$50:$Q$67,4,0) -> 1
B110: 6 | C110: =C112 -> Materiales (Papelería) | D110: =IFERROR(F110/F112,0) -> 0 | E110: 0 | F110: =SUMIFS(G$50:G$86,$C$50:$C$86,$C110,$D$50:$D$86,$J110) -> 0 | G110: 0 | H110: 0 | I110: 0 | J110: 1 | K110: =IFERROR(VLOOKUP($B110,$L$50:$Q$67,4,0),0) -> 0
B111: 6 | C111: =C112 -> Materiales (Papelería) | D111: =IFERROR(F110/F112,0) -> 0 | E111: 0 | F111: 0 | G111: 0 | H111: 0 | I111: 0 | J111: 2 | K111: =IFERROR(VLOOKUP($B111,$L$50:$Q$67,4,0),0) -> 0
B112: 6 | C112: =M56 -> Materiales (Papelería) | D112: =IFERROR(VLOOKUP($B112,$L$50:$Q$67,6,0),0) -> 0 | E112: 0 | F112: =SUM(F110:F111) -> 0 | G112: =SUM(G110:G111) -> 0 | H112: =SUM(H110:H111) -> 0 | I112: 0 | J112: 3 | K112: =VLOOKUP($B112,$L$50:$Q$67,4,0) -> 0
B113: 7 | C113: =C115 -> Salidas de Campo | D113: =IFERROR(F113/F115,0) -> 0 | E113: 0 | F113: =SUMIFS(G$50:G$86,$C$50:$C$86,$C113,$D$50:$D$86,$J113) -> 0 | G113: 0 | H113: 0 | I113: 0 | J113: 1 | K113: =IFERROR(VLOOKUP($B113,$L$50:$Q$67,4,0),0) -> 0.3
B114: 7 | C114: =C115 -> Salidas de Campo | D114: =IFERROR(F113/F115,0) -> 0 | E114: 0 | F114: 0 | G114: 0 | H114: 0 | I114: 0 | J114: 2 | K114: =IFERROR(VLOOKUP($B114,$L$50:$Q$67,4,0),0) -> 0.3
B115: 7 | C115: =M57 -> Salidas de Campo | D115: =IFERROR(VLOOKUP($B115,$L$50:$Q$67,6,0),0) -> 0 | E115: 0 | F115: =SUM(F113:F114) -> 0 | G115: =SUM(G113:G114) -> 0 | H115: =SUM(H113:H114) -> 0 | I115: 0 | J115: 3 | K115: =VLOOKUP($B115,$L$50:$Q$67,4,0) -> 0.3 | M115: La siguiente tabla de plan de compras debe diligenciarse manualmente ya que no arrastra informacion de otros campos exceptuando la parte de contrapartida
B116: 8 | C116: =C118 -> Servicios Técnicos | D116: =IFERROR(F116/F118,0) -> 0 | E116: 0 | F116: =SUMIFS(G$50:G$86,$C$50:$C$86,$C116,$D$50:$D$86,$J116) -> 0 | G116: 0 | H116: 0 | I116: 0 | J116: 1 | K116: =IFERROR(VLOOKUP($B116,$L$50:$Q$67,4,0),0) -> 1
B117: 8 | C117: =C118 -> Servicios Técnicos | D117: =IFERROR(F116/F118,0) -> 0 | E117: 0 | F117: 0 | G117: 0 | H117: 0 | I117: 0 | J117: 2 | K117: =IFERROR(VLOOKUP($B117,$L$50:$Q$67,4,0),0) -> 1
B118: 8 | C118: =M58 -> Servicios Técnicos | D118: =IFERROR(VLOOKUP($B118,$L$50:$Q$67,6,0),0) -> 0 | E118: 0 | F118: =SUM(F116:F117) -> 0 | G118: =SUM(G116:G117) -> 0 | H118: =SUM(H116:H117) -> 0 | I118: 0 | J118: 3 | K118: =VLOOKUP($B118,$L$50:$Q$67,4,0) -> 1
B119: 9 | C119: =C121 -> Recursos Biblograficos | D119: =IFERROR(F119/F121,0) -> 0 | E119: 0 | F119: =SUMIFS(G$50:G$86,$C$50:$C$86,$C119,$D$50:$D$86,$J119) -> 0 | G119: 0 | H119: 0 | I119: 0 | J119: 1 | K119: =IFERROR(VLOOKUP($B119,$L$50:$Q$67,4,0),0) -> 0
B120: 9 | C120: =C121 -> Recursos Biblograficos | D120: =IFERROR(F119/F121,0) -> 0 | E120: 0 | F120: 0 | G120: 0 | H120: 0 | I120: 0 | J120: 2 | K120: =IFERROR(VLOOKUP($B120,$L$50:$Q$67,4,0),0) -> 0
B121: 9 | C121: =M59 -> Recursos Biblograficos | D121: =IFERROR(VLOOKUP($B121,$L$50:$Q$67,6,0),0) -> 0 | E121: 0 | F121: =SUM(F119:F120) -> 0 | G121: =SUM(G119:G120) -> 0 | H121: =SUM(H119:H120) -> 0 | I121: 0 | J121: 3 | K121: =VLOOKUP($B121,$L$50:$Q$67,4,0) -> 0
B122: 10 | C122: =C124 -> Estímulo a estudiantes Pregrado | D122: =IFERROR(F122/F124,0) -> 0 | E122: 0 | F122: =SUMIFS(G$50:G$86,$C$50:$C$86,$C122,$D$50:$D$86,$J122) -> 0 | G122: 0 | H122: 0 | I122: 0 | J122: 1 | K122: =IFERROR(VLOOKUP($B122,$L$50:$Q$67,4,0),0) -> 0
B123: 10 | C123: =C124 -> Estímulo a estudiantes Pregrado | D123: =IFERROR(F122/F124,0) -> 0 | E123: 0 | F123: 0 | G123: 0 | H123: 0 | I123: 0 | J123: 2 | K123: =IFERROR(VLOOKUP($B123,$L$50:$Q$67,4,0),0) -> 0
B124: 10 | C124: =M60 -> Estímulo a estudiantes Pregrado | D124: =IFERROR(VLOOKUP($B124,$L$50:$Q$67,6,0),0) -> 0 | E124: 0 | F124: =SUM(F122:F123) -> 0 | G124: =SUM(G122:G123) -> 0 | H124: =SUM(H122:H123) -> 0 | I124: 0 | J124: 3 | K124: =VLOOKUP($B124,$L$50:$Q$67,4,0) -> 0
B125: 11 | C125: =C127 -> Estímulo a estudiantes Posgrado | D125: =IFERROR(F125/F127,0) -> 0 | E125: =D125 -> 0 | F125: =SUMIFS(G$50:G$86,$C$50:$C$86,$C125,$D$50:$D$86,$J125) -> 0 | G125: 0 | H125: 0 | I125: 0 | J125: 1 | K125: =IFERROR(VLOOKUP($B125,$L$50:$Q$67,4,0),0) -> 1
B126: 11 | C126: =C127 -> Estímulo a estudiantes Posgrado | D126: =IFERROR(F125/F127,0) -> 0 | E126: 0 | F126: 0 | G126: 0 | H126: 0 | I126: 0 | J126: 2 | K126: =IFERROR(VLOOKUP($B126,$L$50:$Q$67,4,0),0) -> 1
B127: 11 | C127: =M61 -> Estímulo a estudiantes Posgrado | D127: =IFERROR(VLOOKUP($B127,$L$50:$Q$67,6,0),0) -> 0 | E127: 0 | F127: =SUM(F125:F126) -> 0 | G127: =SUM(G125:G126) -> 0 | H127: =SUM(H125:H126) -> 0 | I127: 0 | J127: =J124 -> 3 | K127: =VLOOKUP($B127,$L$50:$Q$67,4,0) -> 1
B128: =B125+1 -> 12 | C128: =C130 -> Movilidad | D128: =IFERROR(F128/F130,0) -> 0 | E128: 0 | F128: =SUMIFS(G$50:G$86,$C$50:$C$86,$C128,$D$50:$D$86,$J128) -> 0 | G128: 0 | H128: 0 | I128: 0 | J128: =J116 -> 1 | K128: =IFERROR(VLOOKUP($B128,$L$50:$Q$67,4,0),0) -> 0
B129: 12 | C129: =C130 -> Movilidad | D129: =IFERROR(F128/F130,0) -> 0 | E129: 0 | F129: 0 | G129: 0 | H129: 0 | I129: 0 | J129: 2 | K129: =IFERROR(VLOOKUP($B129,$L$50:$Q$67,4,0),0) -> 0
B130: 12 | C130: =M62 -> Movilidad | D130: =IFERROR(VLOOKUP($B130,$L$50:$Q$67,6,0),0) -> 0 | E130: 0 | F130: =SUM(F128:F129) -> 0 | G130: =SUM(G128:G129) -> 0 | H130: =SUM(H128:H129) -> 0 | I130: 0 | J130: 3 | K130: =VLOOKUP($B130,$L$50:$Q$67,4,0) -> 0
B131: =B128+1 -> 13 | C131: =C133 -> Licencias por suscripción | D131: =IFERROR(F131/F133,0) -> 0 | E131: 0 | F131: =SUMIFS(G$50:G$86,$C$50:$C$86,$C131,$D$50:$D$86,$J131) -> 0 | G131: 0 | H131: 0 | I131: =SUM(F131:H131) -> 0 | J131: 1 | K131: =IFERROR(VLOOKUP($B131,$L$50:$Q$67,4,0),0) -> 1
B132: =B131 -> 13 | C132: =C133 -> Licencias por suscripción | D132: =IFERROR(F131/F133,0) -> 0 | E132: 0 | F132: 0 | G132: 0 | H132: 0 | I132: =SUM(F132:H132) -> 0 | J132: 2 | K132: =IFERROR(VLOOKUP($B132,$L$50:$Q$67,4,0),0) -> 1
B133: =B132 -> 13 | C133: =M63 -> Licencias por suscripción | D133: =IFERROR(VLOOKUP($B133,$L$50:$Q$77,6,0),0) -> 0 | E133: 0 | F133: =SUM(F131:F132) -> 0 | G133: =SUM(G131:G132) -> 0 | H133: =SUM(H131:H132) -> 0 | I133: =SUM(F133:H133) -> 0 | J133: 3 | K133: =VLOOKUP($B133,$L$50:$Q$67,4,0) -> 1
B134: 13 | C134: Viajes | F134: =SUMIFS(G$50:G$86,$C$50:$C$86,$C134,$D$50:$D$86,$J134) -> 0 | G134: =SUMIFS(H$50:H$86,$C$50:$C$86,$C134) -> 0 | H134: 0 | I134: 0 | J134: =J133 -> 3 | K134: 1
B135: 14 | C135: Mantenimiento | F135: =SUMIFS(G$50:G$86,$C$50:$C$86,$C135,$D$50:$D$86,$J135) -> 0 | G135: 0 | H135: 0 | I135: 0 | J135: =J134 -> 3 | K135: 0
B136: 15 | C136: Administración | F136: =SUMIFS(G$50:G$86,$C$50:$C$86,$C136,$D$50:$D$86,$J136) -> 0 | G136: 0 | H136: 0 | I136: 0 | J136: =J135 -> 3 | K136: 0
B137: 16 | C137: Construcciones | F137: =SUMIFS(G$50:G$86,$C$50:$C$86,$C137,$D$50:$D$86,$J137) -> 0 | G137: 0 | H137: 0 | I137: 0 | J137: =J136 -> 3 | K137: 0
B138: 17 | C138: Otros Gastos | F138: =SUMIFS(G$50:G$86,$C$50:$C$86,$C138,$D$50:$D$86,$J138) -> 0 | G138: 0 | H138: 0 | I138: 0 | J138: =J137 -> 3 | K138: 0
B139: T1 | C139: $ Total General (Año 1) | F139: =SUMIF($J$95:$J$133,$J139,F$95:F$133) -> 0 | G139: 0 | H139: 0 | I139: =SUM(F139:H139) -> 0 | J139: 1
B140: T2 | C140: $ Total General (Año 2) | F140: 0 | G140: 0 | H140: 0 | I140: 0 | J140: 2
B141: T3 | C141: ="TotalesPlan compras - (máximo):" -> TotalesPlan compras - (máximo): | E141: =N2 -> 0 | F141: =SUMIFS(F$95:F$138,$J$95:$J$138,$J141) -> 0 | G141: =SUMIFS(G$95:G$138,$J$95:$J$138,$J141) -> 0 | H141: =SUMIFS(H$95:H$138,$J$95:$J$138,$J141) -> 0 | I141: 0 | J141: 3
B143: Nombre Institución Externa : | E143: =General!C43 -> 0
D145: Propuesta: | E145: =D7 -> Formato: actualizado a 06 Nov 2019
C147: Firma de responsable
C152: *Pueden Ocultar las Filas que no se utilicen ( Favor no eliminar filas).
C153: ** en el caso de necesitar mas filas en el plan de compras (Comunicarse con la VICEIN para que se pueda realizar el ajuste)

Sheet Impactos
A1: 10 | I1: *Pueden Ocultar las Filas que no se utilicen.
C2: =General!B2 -> PRESENTACIÓN DE PROYECTOS EN INVESTIGACIÓN DE POSGRADOS | F2: =General!$H$2 -> Fecha de Emisión: 2018/03/07 | G2: =General!$I$2 -> IN-IV-F-14
F3: =General!$H$3 -> Revision N°: 3 | G3: ="Página "&$A$1&" de "&Dt_TPG -> Página 10 de 11 | I3: =SUM(I7:I3500) -> 0 | J3: <== Total de palabras
A5: 14.- | B5: # | C5: Impactos asociados a la propuesta.
B7: N° | C7: Describa en detalle el impacto a desarrollar en el proyecto | L7: No | M7: Tipo | N7: Duración | O7: Tipo | P7: Alcance | Q7: Linea | R7: SRL
B8: 1 | C8: Impacto principal | E8: Principal objetivo de desarrollo sostenible: | L8: 1 | M8: Fin de la pobreza | N8: Corto (1 año) | O8: Político | P8: Regional | Q8: Transferencia e intercambio de conocimiento | R8: SRL 0 – Identificación del problema.
B9: 2 | C9: Alcance | E9: Lineas de apropiación social | L9: =L8+1 -> 2 | M9: Hambre Cero | N9: Medio (2 años) | O9: Salud | P9: Nacional | Q9: Gestión del conocimiento para la apropiación | R9: SRL 1 – Identificación del problema y el grado de madurez social.
B10: 3 | C10: =IFERROR(VLOOKUP($F9,$M$28:$O$31,2,0)," ") ->  | L10: 3 | M10: Salud y bienestar | N10: Largo (3 años) | O10: Tecnológico | P10: Internacional | Q10: Participación ciudadana en CTeI | R10: SRL 2 – Formulación del problema, soluciones propuestas e impacto potencial, grado de madurez social esperado; identificación de partes interesadas relevantes para el proyecto
L11: 4 | M11: Educación de calidad | O11: Económico | Q11: Comunicación del conocimiento | R11: SRL 3 – Pruebas iniciales de las soluciones propuestas junto con partes interesadas relevantes.
B12: . | C12: Nivel adaptación social del impacto del proyecto según los SRL (Societal Readiness Levels) | L12: 5 | M12: Igualdad de genero | O12: Legal | R12: SRL 4 – Problema validado por medio de pruebas piloto en un entorno relevantes para justificar el impacto propuesto y el grado de madurez social
B13: 4 | C13: Estado actual del SRL | I13: =IFERROR(ABS(RIGHT(LEFT(D13,6),2)),0) -> 0 | L13: 6 | M13: Agua limpia y saneamiento | O13: Cultural | R13: SRL 5 – Soluciones propuestas validadas, ahora por las partes interesadas importantes en el área.
B14: 5 | C14: SRL Comprometido al finalizar el proyecto | I14: =IFERROR(ABS(RIGHT(LEFT(D14,6),2)),0) -> 0 | L14: 7 | M14: Energía asequible y no contaminante | O14: Social | R14: SRL 6 – Soluciones demostradas en un entorno relevante, en cooperación con las partes interasadas relevantes para obtener retroalimentación inicial subre impactos potenciales
C15: =IF(I14<I13,J15," ") ->  | J15: No esta bien definido la selección de los SRL. Por favor confirmar. | L15: 8 | M15: Trabajo decente y crecimiento económico | O15: Ambiental | R15: SRL 7 – Refinamiento del proyecto y/o solución y, de ser necesario, aplicación de nuevas pruebas en el entorno relevante, con partes interesadas relevantes.
B16: 8 | C16: Evolución del impacto alcanzado como resultado de proyectos anteriores | L16: 9 | M16: Industria, innovación e infraestructura | R16: SRL 8 – Soluciones propuestas, así como un plan para la adaptación social completo y certificado.
B17: 9 | L17: 10 | M17: Reducción de las desigualdades | R17: SRL 9 – Soluciones reales del proyecto, probadas en un entorno relevante
B18: 10 | C18: Descripción de los Beneficiario(s) del impacto del proyecto | L18: 11 | M18: Ciudades y comunidades sostenibles
B19: 11 | L19: 12 | M19: Producción y consumo responsables
B20: 12 | C20: Descripción del impacto esperado. | L20: 13 | M20: Acción por el clima
B21: 13 | L21: 14 | M21: Vida submarina
L22: 15 | M22: Vida de ecosistemas terrestres
L23: 16 | M23: Paz, justicia e instituciones sólidas
L24: 17 | M24: Alianzas para lograr los objetivos
C28: *Pueden Ocultar las Filas que no se utilicen ( Favor no eliminar filas). | M28: Transferencia e intercambio de conocimiento | N28: Promover el desarrollo de iniciativas de extensión y transferencia del conocimiento científico y tecnológico que permitan su efectiva integración a contextos locales y sociales específicos, contribuyendo a su desarrollo.
M29: Gestión del conocimiento para la apropiación | N29: Incentivar el desarrollo de mecanismos de formación y medición para construir conocimiento acerca de las diversas formas en que el conocimiento científico tecnológico es apropiado en la sociedad colombiana, por los diversos grupos e individuos que la componen
M30: Participación ciudadana en CTeI | N30: Fomentar la participación ciudadana en la construcción de política pública en CTI, fortaleciendo las capacidades de la sociedad para tomar decisiones que contribuyan a la resolución de conflictos que involucran conocimientos científico-tecnológicos.
M31: Comunicación del conocimiento | N31: Favorecer el desarrollo de proyectos de comunicación reflexivos y contextualizados para la comprensión, el diálogo y la formación de opinión sobre las relaciones ciencia, tecnología, innovación y sociedad.
B39: *Pueden Ocultar las Filas que no se utilicen.

Sheet Bibliografía
A1: 11 | G1: *Pueden Ocultar las Filas que no se utilicen.
C2: =General!B2 -> PRESENTACIÓN DE PROYECTOS EN INVESTIGACIÓN DE POSGRADOS | D2: =General!$H$2 -> Fecha de Emisión: 2018/03/07 | E2: =General!$I$2 -> IN-IV-F-14
D3: =General!$H$3 -> Revision N°: 3 | E3: ="Página "&$A$1&" de "&Dt_TPG -> Página 11 de 11 | G3: =SUM(G7:G3500) -> 0 | H3: <== Total de palabras
A5: 15.- | B5: # | C5: Bibliografía de la propuesta. | G5: Largo
B7: =ROW()-6 -> 1 | G7: =IF(C7="",0,LEN(TRIM(C7))-LEN(SUBSTITUTE(TRIM(C7)," ",""))+1) -> 0
B8: =ROW()-6 -> 2 | G8: =IF(C8="",0,LEN(TRIM(C8))-LEN(SUBSTITUTE(TRIM(C8)," ",""))+1) -> 0
B9: 3 | G9: 0
B10: 4 | G10: 0
B11: 5 | G11: 0
B12: 6 | G12: 0
B13: 7 | G13: 0
B14: 8 | G14: 0
B15: 9 | G15: 0
B16: 10 | G16: 0
B17: 11 | G17: 0
B18: 12 | G18: 0
B19: 13 | G19: 0
B20: 14 | G20: 0
B21: 15 | G21: 0
B22: 16 | G22: 0
B23: 17 | G23: 0
B24: 18 | G24: 0
B25: 19 | G25: 0
B26: 20 | G26: 0
B27: 21 | G27: 0
B28: 22 | G28: 0
B29: 23 | G29: 0
B30: 24 | G30: 0
B31: 25 | G31: 0
B32: 26 | G32: 0
B33: 27 | G33: 0
B34: 28 | G34: 0
B35: 29 | G35: 0
B39: *Pueden Ocultar las Filas que no se utilicen ( Favor no eliminar filas).
